﻿organisation_name,service_responsible,supplier_code,supplier_name,payment_date,transaction_ref,net_amount_by_line_item,irrecoverable_vat,purpose_of_spend,procurement_category_name,transaction_type,payment_type,card_transaction,invoice_date,financial_year,financial_period,supplier_invoice_reference,cost_centre_code,cost_centre_desc,account_code,account_desc,SeRCOP_subdivision_code,SeRCOP_Subdivision_description,SeRCOP_division_codee,SeRCOP_division_description,SeRCOP_service_code,SeRCOP_service_description,SeRCOP_major_service_code,SeRCOP_major_service_description
GUILDFORD BOROUGH COUNCIL,Vehicle and Plant Acquisition,1000204,GM Coachwork Ltd,27/01/2022,30039807,395,0,Vehicle Purchase,,Invoice,BACS,No,24/09/2021 00:00,2021,10,313143,P58013,Vehicle & Plant Acqs 2021-22,1745,Vehicle Purchase,,,,,,,,
GUILDFORD BOROUGH COUNCIL,Vehicle and Plant Acquisition,1000204,GM Coachwork Ltd,27/01/2022,30039764,395,0,Vehicle Purchase,,Invoice,BACS,No,24/09/2021 00:00,2021,10,313142,P58013,Vehicle & Plant Acqs 2021-22,1745,Vehicle Purchase,,,,,,,,
GUILDFORD BOROUGH COUNCIL,Car Leasing Holding Code (Service),1000256,KINTO U.K. Limited,17/02/2022,30041832,3586.1,0,Car Leasing,,Invoice,BACS,No,28/10/2021 00:00,2021,11,2268043,G1131,Car Leasing Holding Code,C3002,Car Leasing,,,,,,,,
GUILDFORD BOROUGH COUNCIL,Car Leasing Holding Code (Service),1000256,KINTO U.K. Limited,22/02/2022,30041761,3516.27,0,Car Leasing,,Invoice,BACS,No,28/01/2022 00:00,2021,11,2307376,G1131,Car Leasing Holding Code,C3002,Car Leasing,,,,,,,,
GUILDFORD BOROUGH COUNCIL,Car Leasing Holding Code (Service),1000256,KINTO U.K. Limited,29/03/2022,30045090,3990.46,0,Car Leasing,,Invoice,BACS,No,23/03/2022 00:00,2021,12,2330277,G1131,Car Leasing Holding Code,C3002,Car Leasing,,,,,,,,
GUILDFORD BOROUGH COUNCIL,Executive - Miscellaneous,1000280,Blakedown Landscapes (SE) Ltd,25/01/2022,30039161,49088.79,0,Consultants Fees,,Invoice,BACS,No,10/01/2022 00:00,2021,10,L12037,P79100,Wuv - Allotment Relocation,1221,Consultants Fees,,,,,,,,
GUILDFORD BOROUGH COUNCIL,Executive - Miscellaneous,1000280,Blakedown Landscapes (SE) Ltd,15/02/2022,30040936,30896.44,0,Consultants Fees,,Invoice,BACS,No,04/02/2022 00:00,2021,11,L12059,P79100,Wuv - Allotment Relocation,1221,Consultants Fees,,,,,,,,
GUILDFORD BOROUGH COUNCIL,Renovations,1000283,Rise Adaptations Ltd,24/03/2022,30044768,8590,0,Contractor Payments,,Invoice,BACS,No,28/02/2022 00:00,2021,12,INV-0078,N40295,Disabled adaptations,1233,Contractor Payments,,,,,,,,
GUILDFORD BOROUGH COUNCIL,Renovations,1000283,Rise Adaptations Ltd,08/03/2022,30043400,4900,0,Contractor Payments,,Invoice,BACS,No,07/01/2022 00:00,2021,12,INV-0063,N40295,Disabled adaptations,1233,Contractor Payments,,,,,,,,
GUILDFORD BOROUGH COUNCIL,Renovations,1000283,Rise Adaptations Ltd,24/02/2022,30042068,52090,0,Contractor Payments,,Invoice,BACS,No,04/02/2022 00:00,2021,11,INV-0067,N40295,Disabled adaptations,1233,Contractor Payments,,,,,,,,
GUILDFORD BOROUGH COUNCIL,Modern Homes,1000287,Mainmark (UK) Ltd,04/01/2022,30037927,3750,0,Contractor Payments,,Invoice,BACS,No,08/12/2021 00:00,2021,10,1389,N48057,Structural works - various properties,1233,Contractor Payments,,,,,,,,
GUILDFORD BOROUGH COUNCIL,Renovations,1000338,3MS Gold Services Ltd,03/02/2022,30040454,3264.39,0,Contractor Payments,,Invoice,BACS,No,21/01/2022 00:00,2021,11,2693,N40295,Disabled adaptations,1233,Contractor Payments,,,,,,,,
GUILDFORD BOROUGH COUNCIL,Renovations,1000338,3MS Gold Services Ltd,03/02/2022,30040454,2176.26,0,Contractor Payments,,Invoice,BACS,No,21/01/2022 00:00,2021,11,2693,N40295,Disabled adaptations,1233,Contractor Payments,,,,,,,,
GUILDFORD BOROUGH COUNCIL,Renovations,1000338,3MS Gold Services Ltd,04/01/2022,30037945,3462.88,0,Contractor Payments,,Invoice,BACS,No,08/12/2021 00:00,2021,10,2652,N40295,Disabled adaptations,1233,Contractor Payments,,,,,,,,
GUILDFORD BOROUGH COUNCIL,Renovations,1000338,3MS Gold Services Ltd,04/01/2022,30037945,2308.59,0,Contractor Payments,,Invoice,BACS,No,08/12/2021 00:00,2021,10,2652,N40295,Disabled adaptations,1233,Contractor Payments,,,,,,,,
GUILDFORD BOROUGH COUNCIL,Renovations,1000340,Buildperfect Group Ltd,15/03/2022,30043880,4076.53,0,Contractor Payments,,Invoice,BACS,No,28/02/2022 00:00,2021,12,M-2466,N40295,Disabled adaptations,1233,Contractor Payments,,,,,,,,
GUILDFORD BOROUGH COUNCIL,Renovations,1000340,Buildperfect Group Ltd,15/03/2022,30043881,5371.18,0,Contractor Payments,,Invoice,BACS,No,28/02/2022 00:00,2021,12,M-2467,N40295,Disabled adaptations,1233,Contractor Payments,,,,,,,,
GUILDFORD BOROUGH COUNCIL,Renovations,1000340,Buildperfect Group Ltd,11/01/2022,30038387,5711.31,0,Contractor Payments,,Invoice,BACS,No,16/11/2021 00:00,2021,10,M-2350,N40295,Disabled adaptations,1233,Contractor Payments,,,,,,,,
GUILDFORD BOROUGH COUNCIL,Industrial Estates,1000349,Rider Levett Bucknall UK Ltd,24/02/2022,30040260,8850,0,Consultants Fees,,Invoice,BACS,No,31/01/2022 00:00,2021,11,929284,P72045,Strategic Property Acquisitions,1221,Consultants Fees,,,,,,,,
GUILDFORD BOROUGH COUNCIL,Renovations,1000518,Liquid Recruit Solutions Limited,25/01/2022,30037991,566.55,0,Contractor Payments,,Invoice,BACS,No,30/12/2021 00:00,2021,10,10933,N40287,Electrical testing and smoke detectors,1233,Contractor Payments,,,,,,,,
GUILDFORD BOROUGH COUNCIL,Renovations,1000518,Liquid Recruit Solutions Limited,25/01/2022,30037991,566.55,0,Contractor Payments,,Invoice,BACS,No,30/12/2021 00:00,2021,10,10933,N40292,Fire protection works,1233,Contractor Payments,,,,,,,,
GUILDFORD BOROUGH COUNCIL,Renovations,1000518,Liquid Recruit Solutions Limited,25/01/2022,30038019,1650,0,Contractor Payments,,Invoice,BACS,No,30/12/2021 00:00,2021,10,10934,N40287,Electrical testing and smoke detectors,1233,Contractor Payments,,,,,,,,
GUILDFORD BOROUGH COUNCIL,Renovations,1000518,Liquid Recruit Solutions Limited,15/02/2022,30037866,566.55,0,Contractor Payments,,Invoice,BACS,No,30/12/2021 00:00,2021,11,10932,N40292,Fire protection works,1233,Contractor Payments,,,,,,,,
GUILDFORD BOROUGH COUNCIL,Renovations,1000518,Liquid Recruit Solutions Limited,15/02/2022,30037866,566.55,0,Contractor Payments,,Invoice,BACS,No,30/12/2021 00:00,2021,11,10932,N40287,Electrical testing and smoke detectors,1233,Contractor Payments,,,,,,,,
GUILDFORD BOROUGH COUNCIL,Renovations,1000518,Liquid Recruit Solutions Limited,15/02/2022,30037866,1650,0,Contractor Payments,,Invoice,BACS,No,30/12/2021 00:00,2021,11,10932,N40287,Electrical testing and smoke detectors,1233,Contractor Payments,,,,,,,,
GUILDFORD BOROUGH COUNCIL,Renovations,1000518,Liquid Recruit Solutions Limited,15/02/2022,30039391,1925,0,Contractor Payments,,Invoice,BACS,No,19/01/2022 00:00,2021,10,11000,N40292,Fire protection works,1233,Contractor Payments,,,,,,,,
GUILDFORD BOROUGH COUNCIL,Renovations,1000518,Liquid Recruit Solutions Limited,15/02/2022,30039401,1650,0,Contractor Payments,,Invoice,BACS,No,19/01/2022 00:00,2021,10,11001,N40287,Electrical testing and smoke detectors,1233,Contractor Payments,,,,,,,,
GUILDFORD BOROUGH COUNCIL,Renovations,1000518,Liquid Recruit Solutions Limited,15/02/2022,30039423,566.55,0,Contractor Payments,,Invoice,BACS,No,19/01/2022 00:00,2021,10,11002,N40287,Electrical testing and smoke detectors,1233,Contractor Payments,,,,,,,,
GUILDFORD BOROUGH COUNCIL,Renovations,1000518,Liquid Recruit Solutions Limited,15/02/2022,30039423,566.55,0,Contractor Payments,,Invoice,BACS,No,19/01/2022 00:00,2021,10,11002,N40292,Fire protection works,1233,Contractor Payments,,,,,,,,
GUILDFORD BOROUGH COUNCIL,Renovations,1000518,Liquid Recruit Solutions Limited,27/01/2022,30038200,566.55,0,Contractor Payments,,Invoice,BACS,No,06/01/2022 00:00,2021,10,10938,N40287,Electrical testing and smoke detectors,1233,Contractor Payments,,,,,,,,
GUILDFORD BOROUGH COUNCIL,Renovations,1000518,Liquid Recruit Solutions Limited,27/01/2022,30038200,566.55,0,Contractor Payments,,Invoice,BACS,No,06/01/2022 00:00,2021,10,10938,N40292,Fire protection works,1233,Contractor Payments,,,,,,,,
GUILDFORD BOROUGH COUNCIL,Renovations,1000518,Liquid Recruit Solutions Limited,27/01/2022,30038272,1155,0,Contractor Payments,,Invoice,BACS,No,06/01/2022 00:00,2021,10,10961,N40292,Fire protection works,1233,Contractor Payments,,,,,,,,
GUILDFORD BOROUGH COUNCIL,Renovations,1000518,Liquid Recruit Solutions Limited,27/01/2022,30038275,339.93,0,Contractor Payments,,Invoice,BACS,No,06/01/2022 00:00,2021,10,10963,N40287,Electrical testing and smoke detectors,1233,Contractor Payments,,,,,,,,
GUILDFORD BOROUGH COUNCIL,Renovations,1000518,Liquid Recruit Solutions Limited,27/01/2022,30038275,339.93,0,Contractor Payments,,Invoice,BACS,No,06/01/2022 00:00,2021,10,10963,N40292,Fire protection works,1233,Contractor Payments,,,,,,,,
GUILDFORD BOROUGH COUNCIL,Renovations,1000518,Liquid Recruit Solutions Limited,27/01/2022,30038280,990,0,Contractor Payments,,Invoice,BACS,No,06/01/2022 00:00,2021,10,10962,N40287,Electrical testing and smoke detectors,1233,Contractor Payments,,,,,,,,
GUILDFORD BOROUGH COUNCIL,Renovations,1000518,Liquid Recruit Solutions Limited,27/01/2022,30038243,566.55,0,Contractor Payments,,Invoice,BACS,No,06/01/2022 00:00,2021,10,10940,N40287,Electrical testing and smoke detectors,1233,Contractor Payments,,,,,,,,
GUILDFORD BOROUGH COUNCIL,Renovations,1000518,Liquid Recruit Solutions Limited,27/01/2022,30038243,566.55,0,Contractor Payments,,Invoice,BACS,No,06/01/2022 00:00,2021,10,10940,N40292,Fire protection works,1233,Contractor Payments,,,,,,,,
GUILDFORD BOROUGH COUNCIL,Renovations,1000518,Liquid Recruit Solutions Limited,27/01/2022,30038247,1925,0,Contractor Payments,,Invoice,BACS,No,06/01/2022 00:00,2021,10,10937,N40292,Fire protection works,1233,Contractor Payments,,,,,,,,
GUILDFORD BOROUGH COUNCIL,Renovations,1000518,Liquid Recruit Solutions Limited,27/01/2022,30038248,1925,0,Contractor Payments,,Invoice,BACS,No,06/01/2022 00:00,2021,10,10939,N40292,Fire protection works,1233,Contractor Payments,,,,,,,,
GUILDFORD BOROUGH COUNCIL,Renovations,1000518,Liquid Recruit Solutions Limited,08/02/2022,30039355,1925,0,Contractor Payments,,Invoice,BACS,No,13/01/2022 00:00,2021,10,10995,N40292,Fire protection works,1233,Contractor Payments,,,,,,,,
GUILDFORD BOROUGH COUNCIL,Renovations,1000518,Liquid Recruit Solutions Limited,08/02/2022,30038816,1320,0,Contractor Payments,,Invoice,BACS,No,13/01/2022 00:00,2021,10,10997,N40287,Electrical testing and smoke detectors,1233,Contractor Payments,,,,,,,,
GUILDFORD BOROUGH COUNCIL,Renovations,1000518,Liquid Recruit Solutions Limited,08/02/2022,30038812,453.24,0,Contractor Payments,,Invoice,BACS,No,13/01/2022 00:00,2021,10,10996,N40287,Electrical testing and smoke detectors,1233,Contractor Payments,,,,,,,,
GUILDFORD BOROUGH COUNCIL,Renovations,1000518,Liquid Recruit Solutions Limited,08/02/2022,30038812,453.24,0,Contractor Payments,,Invoice,BACS,No,13/01/2022 00:00,2021,10,10996,N40292,Fire protection works,1233,Contractor Payments,,,,,,,,
GUILDFORD BOROUGH COUNCIL,Renovations,1000518,Liquid Recruit Solutions Limited,22/02/2022,30039987,566.55,0,Contractor Payments,,Invoice,BACS,No,26/01/2022 00:00,2021,11,11059,N40287,Electrical testing and smoke detectors,1233,Contractor Payments,,,,,,,,
GUILDFORD BOROUGH COUNCIL,Renovations,1000518,Liquid Recruit Solutions Limited,22/02/2022,30039987,566.55,0,Contractor Payments,,Invoice,BACS,No,26/01/2022 00:00,2021,11,11059,N40292,Fire protection works,1233,Contractor Payments,,,,,,,,
GUILDFORD BOROUGH COUNCIL,Renovations,1000518,Liquid Recruit Solutions Limited,22/02/2022,30039989,1925,0,Contractor Payments,,Invoice,BACS,No,26/01/2022 00:00,2021,11,11058,N40292,Fire protection works,1233,Contractor Payments,,,,,,,,
GUILDFORD BOROUGH COUNCIL,Renovations,1000518,Liquid Recruit Solutions Limited,22/02/2022,30039981,1650,0,Contractor Payments,,Invoice,BACS,No,26/01/2022 00:00,2021,11,11060,N40287,Electrical testing and smoke detectors,1233,Contractor Payments,,,,,,,,
GUILDFORD BOROUGH COUNCIL,Renovations,1000518,Liquid Recruit Solutions Limited,11/01/2022,30035881,3058.1,0,Contractor Payments,,Invoice,BACS,No,25/11/2021 00:00,2021,10,10786,N40292,Fire protection works,1233,Contractor Payments,,,,,,,,
GUILDFORD BOROUGH COUNCIL,Renovations,1000518,Liquid Recruit Solutions Limited,11/01/2022,30036030,3058.1,0,Contractor Payments,,Invoice,BACS,No,01/12/2021 00:00,2021,10,10814,N40292,Fire protection works,1233,Contractor Payments,,,,,,,,
GUILDFORD BOROUGH COUNCIL,Renovations,1000518,Liquid Recruit Solutions Limited,29/03/2022,30043273,566.55,0,Contractor Payments,,Invoice,BACS,No,03/03/2022 00:00,2021,12,11208,N40287,Electrical testing and smoke detectors,1233,Contractor Payments,,,,,,,,
GUILDFORD BOROUGH COUNCIL,Renovations,1000518,Liquid Recruit Solutions Limited,29/03/2022,30043273,566.55,0,Contractor Payments,,Invoice,BACS,No,03/03/2022 00:00,2021,12,11208,N40292,Fire protection works,1233,Contractor Payments,,,,,,,,
GUILDFORD BOROUGH COUNCIL,Renovations,1000518,Liquid Recruit Solutions Limited,29/03/2022,30043294,1925,0,Contractor Payments,,Invoice,BACS,No,03/03/2022 00:00,2021,12,11207,N40292,Fire protection works,1233,Contractor Payments,,,,,,,,
GUILDFORD BOROUGH COUNCIL,Renovations,1000518,Liquid Recruit Solutions Limited,29/03/2022,30043296,1650,0,Contractor Payments,,Invoice,BACS,No,03/03/2022 00:00,2021,12,11209,N40287,Electrical testing and smoke detectors,1233,Contractor Payments,,,,,,,,
GUILDFORD BOROUGH COUNCIL,Renovations,1000518,Liquid Recruit Solutions Limited,29/03/2022,30043895,1650,0,Contractor Payments,,Invoice,BACS,No,10/03/2022 00:00,2021,12,11215,N40287,Electrical testing and smoke detectors,1233,Contractor Payments,,,,,,,,
GUILDFORD BOROUGH COUNCIL,Renovations,1000518,Liquid Recruit Solutions Limited,29/03/2022,30043896,1979.9,0,Contractor Payments,,Invoice,BACS,No,10/03/2022 00:00,2021,12,11214,N40292,Fire protection works,1233,Contractor Payments,,,,,,,,
GUILDFORD BOROUGH COUNCIL,Renovations,1000518,Liquid Recruit Solutions Limited,29/03/2022,30043914,566.55,0,Contractor Payments,,Invoice,BACS,No,10/03/2022 00:00,2021,12,11213,N40287,Electrical testing and smoke detectors,1233,Contractor Payments,,,,,,,,
GUILDFORD BOROUGH COUNCIL,Renovations,1000518,Liquid Recruit Solutions Limited,29/03/2022,30043914,566.55,0,Contractor Payments,,Invoice,BACS,No,10/03/2022 00:00,2021,12,11213,N40292,Fire protection works,1233,Contractor Payments,,,,,,,,
GUILDFORD BOROUGH COUNCIL,Renovations,1000518,Liquid Recruit Solutions Limited,29/03/2022,30044268,1925,0,Contractor Payments,,Invoice,BACS,No,17/03/2022 00:00,2021,12,11248,N40292,Fire protection works,1233,Contractor Payments,,,,,,,,
GUILDFORD BOROUGH COUNCIL,Renovations,1000518,Liquid Recruit Solutions Limited,29/03/2022,30044271,566.55,0,Contractor Payments,,Invoice,BACS,No,17/03/2022 00:00,2021,12,11250,N40287,Electrical testing and smoke detectors,1233,Contractor Payments,,,,,,,,
GUILDFORD BOROUGH COUNCIL,Renovations,1000518,Liquid Recruit Solutions Limited,29/03/2022,30044271,566.55,0,Contractor Payments,,Invoice,BACS,No,17/03/2022 00:00,2021,12,11250,N40292,Fire protection works,1233,Contractor Payments,,,,,,,,
GUILDFORD BOROUGH COUNCIL,Renovations,1000518,Liquid Recruit Solutions Limited,29/03/2022,30044272,1650,0,Contractor Payments,,Invoice,BACS,No,17/03/2022 00:00,2021,12,11249,N40287,Electrical testing and smoke detectors,1233,Contractor Payments,,,,,,,,
GUILDFORD BOROUGH COUNCIL,Renovations,1000518,Liquid Recruit Solutions Limited,24/02/2022,30040593,1925,0,Contractor Payments,,Invoice,BACS,No,02/02/2022 00:00,2021,11,11086,N40292,Fire protection works,1233,Contractor Payments,,,,,,,,
GUILDFORD BOROUGH COUNCIL,Renovations,1000518,Liquid Recruit Solutions Limited,24/02/2022,30040606,1650,0,Contractor Payments,,Invoice,BACS,No,02/02/2022 00:00,2021,11,11085,N40287,Electrical testing and smoke detectors,1233,Contractor Payments,,,,,,,,
GUILDFORD BOROUGH COUNCIL,Renovations,1000518,Liquid Recruit Solutions Limited,24/02/2022,30040584,566.55,0,Contractor Payments,,Invoice,BACS,No,02/02/2022 00:00,2021,11,11087,N40287,Electrical testing and smoke detectors,1233,Contractor Payments,,,,,,,,
GUILDFORD BOROUGH COUNCIL,Renovations,1000518,Liquid Recruit Solutions Limited,24/02/2022,30040584,566.55,0,Contractor Payments,,Invoice,BACS,No,02/02/2022 00:00,2021,11,11087,N40292,Fire protection works,1233,Contractor Payments,,,,,,,,
GUILDFORD BOROUGH COUNCIL,Renovations,1000518,Liquid Recruit Solutions Limited,15/03/2022,30041930,566.55,0,Contractor Payments,,Invoice,BACS,No,16/02/2022 00:00,2021,11,11142,N40287,Electrical testing and smoke detectors,1233,Contractor Payments,,,,,,,,
GUILDFORD BOROUGH COUNCIL,Renovations,1000518,Liquid Recruit Solutions Limited,15/03/2022,30041930,566.55,0,Contractor Payments,,Invoice,BACS,No,16/02/2022 00:00,2021,11,11142,N40292,Fire protection works,1233,Contractor Payments,,,,,,,,
GUILDFORD BOROUGH COUNCIL,Renovations,1000518,Liquid Recruit Solutions Limited,15/03/2022,30041948,1925,0,Contractor Payments,,Invoice,BACS,No,16/02/2022 00:00,2021,11,11143,N40292,Fire protection works,1233,Contractor Payments,,,,,,,,
GUILDFORD BOROUGH COUNCIL,Renovations,1000518,Liquid Recruit Solutions Limited,15/03/2022,30041962,1650,0,Contractor Payments,,Invoice,BACS,No,16/02/2022 00:00,2021,11,11144,N40287,Electrical testing and smoke detectors,1233,Contractor Payments,,,,,,,,
GUILDFORD BOROUGH COUNCIL,Renovations,1000518,Liquid Recruit Solutions Limited,08/03/2022,30041543,1650,0,Contractor Payments,,Invoice,BACS,No,10/02/2022 00:00,2021,11,11116,N40287,Electrical testing and smoke detectors,1233,Contractor Payments,,,,,,,,
GUILDFORD BOROUGH COUNCIL,Renovations,1000518,Liquid Recruit Solutions Limited,08/03/2022,30041553,1925,0,Contractor Payments,,Invoice,BACS,No,10/02/2022 00:00,2021,11,11114,N40292,Fire protection works,1233,Contractor Payments,,,,,,,,
GUILDFORD BOROUGH COUNCIL,Renovations,1000518,Liquid Recruit Solutions Limited,08/03/2022,30041589,566.55,0,Contractor Payments,,Invoice,BACS,No,10/02/2022 00:00,2021,11,11115,N40287,Electrical testing and smoke detectors,1233,Contractor Payments,,,,,,,,
GUILDFORD BOROUGH COUNCIL,Renovations,1000518,Liquid Recruit Solutions Limited,08/03/2022,30041589,566.55,0,Contractor Payments,,Invoice,BACS,No,10/02/2022 00:00,2021,11,11115,N40292,Fire protection works,1233,Contractor Payments,,,,,,,,
GUILDFORD BOROUGH COUNCIL,Renovations,1000518,Liquid Recruit Solutions Limited,22/03/2022,30042852,566.55,0,Contractor Payments,,Invoice,BACS,No,24/02/2022 00:00,2021,12,11147,N40287,Electrical testing and smoke detectors,1233,Contractor Payments,,,,,,,,
GUILDFORD BOROUGH COUNCIL,Renovations,1000518,Liquid Recruit Solutions Limited,22/03/2022,30042852,566.55,0,Contractor Payments,,Invoice,BACS,No,24/02/2022 00:00,2021,12,11147,N40292,Fire protection works,1233,Contractor Payments,,,,,,,,
GUILDFORD BOROUGH COUNCIL,Renovations,1000518,Liquid Recruit Solutions Limited,22/03/2022,30042851,1925,0,Contractor Payments,,Invoice,BACS,No,24/02/2022 00:00,2021,12,11149,N40292,Fire protection works,1233,Contractor Payments,,,,,,,,
GUILDFORD BOROUGH COUNCIL,Renovations,1000518,Liquid Recruit Solutions Limited,22/03/2022,30042845,1650,0,Contractor Payments,,Invoice,BACS,No,24/02/2022 00:00,2021,12,11148,N40287,Electrical testing and smoke detectors,1233,Contractor Payments,,,,,,,,
GUILDFORD BOROUGH COUNCIL,Renovations,1000554,Seville Developments,03/02/2022,30040348,1176.45,0,Contractor Payments,,Invoice,BACS,No,13/12/2021 00:00,2021,10,5064,N40287,Electrical testing and smoke detectors,1233,Contractor Payments,,,,,,,,
GUILDFORD BOROUGH COUNCIL,Renovations,1000554,Seville Developments,03/02/2022,30040348,3550,0,Contractor Payments,,Invoice,BACS,No,13/12/2021 00:00,2021,10,5064,N40287,Electrical testing and smoke detectors,1233,Contractor Payments,,,,,,,,
GUILDFORD BOROUGH COUNCIL,Renovations,1000554,Seville Developments,03/02/2022,30040348,3550,0,Contractor Payments,,Invoice,BACS,No,13/12/2021 00:00,2021,10,5064,N40287,Electrical testing and smoke detectors,1233,Contractor Payments,,,,,,,,
GUILDFORD BOROUGH COUNCIL,Renovations,1000554,Seville Developments,03/02/2022,30040348,3550,0,Contractor Payments,,Invoice,BACS,No,13/12/2021 00:00,2021,10,5064,N40287,Electrical testing and smoke detectors,1233,Contractor Payments,,,,,,,,
GUILDFORD BOROUGH COUNCIL,Renovations,1000554,Seville Developments,03/02/2022,30040348,440.65,0,Contractor Payments,,Invoice,BACS,No,13/12/2021 00:00,2021,10,5064,N40287,Electrical testing and smoke detectors,1233,Contractor Payments,,,,,,,,
GUILDFORD BOROUGH COUNCIL,Renovations,1000554,Seville Developments,03/02/2022,30040348,785.55,0,Contractor Payments,,Invoice,BACS,No,13/12/2021 00:00,2021,10,5064,N40287,Electrical testing and smoke detectors,1233,Contractor Payments,,,,,,,,
GUILDFORD BOROUGH COUNCIL,Renovations,1000554,Seville Developments,03/02/2022,30040348,1191.04,0,Contractor Payments,,Invoice,BACS,No,13/12/2021 00:00,2021,10,5064,N40287,Electrical testing and smoke detectors,1233,Contractor Payments,,,,,,,,
GUILDFORD BOROUGH COUNCIL,Renovations,1000554,Seville Developments,03/02/2022,30040348,1043.14,0,Contractor Payments,,Invoice,BACS,No,13/12/2021 00:00,2021,10,5064,N40287,Electrical testing and smoke detectors,1233,Contractor Payments,,,,,,,,
GUILDFORD BOROUGH COUNCIL,Renovations,1000554,Seville Developments,03/02/2022,30040348,286.22,0,Contractor Payments,,Invoice,BACS,No,13/12/2021 00:00,2021,10,5064,N40287,Electrical testing and smoke detectors,1233,Contractor Payments,,,,,,,,
GUILDFORD BOROUGH COUNCIL,Renovations,1000554,Seville Developments,03/02/2022,30040348,458.14,0,Contractor Payments,,Invoice,BACS,No,13/12/2021 00:00,2021,10,5064,N40287,Electrical testing and smoke detectors,1233,Contractor Payments,,,,,,,,
GUILDFORD BOROUGH COUNCIL,Renovations,1000554,Seville Developments,03/02/2022,30040348,1406.98,0,Contractor Payments,,Invoice,BACS,No,13/12/2021 00:00,2021,10,5064,N40287,Electrical testing and smoke detectors,1233,Contractor Payments,,,,,,,,
GUILDFORD BOROUGH COUNCIL,Renovations,1000554,Seville Developments,03/02/2022,30040348,571.42,0,Contractor Payments,,Invoice,BACS,No,13/12/2021 00:00,2021,10,5064,N40287,Electrical testing and smoke detectors,1233,Contractor Payments,,,,,,,,
GUILDFORD BOROUGH COUNCIL,Renovations,1000554,Seville Developments,03/02/2022,30040348,528.97,0,Contractor Payments,,Invoice,BACS,No,13/12/2021 00:00,2021,10,5064,N40287,Electrical testing and smoke detectors,1233,Contractor Payments,,,,,,,,
GUILDFORD BOROUGH COUNCIL,Renovations,1000554,Seville Developments,03/02/2022,30040348,528.97,0,Contractor Payments,,Invoice,BACS,No,13/12/2021 00:00,2021,10,5064,N40287,Electrical testing and smoke detectors,1233,Contractor Payments,,,,,,,,
GUILDFORD BOROUGH COUNCIL,Renovations,1000554,Seville Developments,03/02/2022,30040348,336.82,0,Contractor Payments,,Invoice,BACS,No,13/12/2021 00:00,2021,10,5064,N40287,Electrical testing and smoke detectors,1233,Contractor Payments,,,,,,,,
GUILDFORD BOROUGH COUNCIL,Renovations,1000554,Seville Developments,03/02/2022,30040348,523.41,0,Contractor Payments,,Invoice,BACS,No,13/12/2021 00:00,2021,10,5064,N40287,Electrical testing and smoke detectors,1233,Contractor Payments,,,,,,,,
GUILDFORD BOROUGH COUNCIL,Renovations,1000554,Seville Developments,03/02/2022,30040348,805.54,0,Contractor Payments,,Invoice,BACS,No,13/12/2021 00:00,2021,10,5064,N40287,Electrical testing and smoke detectors,1233,Contractor Payments,,,,,,,,
GUILDFORD BOROUGH COUNCIL,Renovations,1000554,Seville Developments,03/02/2022,30040348,770.62,0,Contractor Payments,,Invoice,BACS,No,13/12/2021 00:00,2021,10,5064,N40287,Electrical testing and smoke detectors,1233,Contractor Payments,,,,,,,,
GUILDFORD BOROUGH COUNCIL,Renovations,1000554,Seville Developments,03/02/2022,30040348,677.84,0,Contractor Payments,,Invoice,BACS,No,13/12/2021 00:00,2021,10,5064,N40287,Electrical testing and smoke detectors,1233,Contractor Payments,,,,,,,,
GUILDFORD BOROUGH COUNCIL,Renovations,1000554,Seville Developments,03/02/2022,30040348,586.99,0,Contractor Payments,,Invoice,BACS,No,13/12/2021 00:00,2021,10,5064,N40287,Electrical testing and smoke detectors,1233,Contractor Payments,,,,,,,,
GUILDFORD BOROUGH COUNCIL,Renovations,1000554,Seville Developments,03/02/2022,30040348,286.22,0,Contractor Payments,,Invoice,BACS,No,13/12/2021 00:00,2021,10,5064,N40287,Electrical testing and smoke detectors,1233,Contractor Payments,,,,,,,,
GUILDFORD BOROUGH COUNCIL,Renovations,1000554,Seville Developments,03/02/2022,30040348,676.66,0,Contractor Payments,,Invoice,BACS,No,13/12/2021 00:00,2021,10,5064,N40287,Electrical testing and smoke detectors,1233,Contractor Payments,,,,,,,,
GUILDFORD BOROUGH COUNCIL,Renovations,1000554,Seville Developments,03/02/2022,30040348,353.87,0,Contractor Payments,,Invoice,BACS,No,13/12/2021 00:00,2021,10,5064,N40287,Electrical testing and smoke detectors,1233,Contractor Payments,,,,,,,,
GUILDFORD BOROUGH COUNCIL,Renovations,1000554,Seville Developments,03/02/2022,30040348,615.5,0,Contractor Payments,,Invoice,BACS,No,13/12/2021 00:00,2021,10,5064,N40287,Electrical testing and smoke detectors,1233,Contractor Payments,,,,,,,,
GUILDFORD BOROUGH COUNCIL,Renovations,1000554,Seville Developments,03/02/2022,30040348,955.6,0,Contractor Payments,,Invoice,BACS,No,13/12/2021 00:00,2021,10,5064,N40287,Electrical testing and smoke detectors,1233,Contractor Payments,,,,,,,,
GUILDFORD BOROUGH COUNCIL,Renovations,1000554,Seville Developments,03/02/2022,30040348,379.56,0,Contractor Payments,,Invoice,BACS,No,13/12/2021 00:00,2021,10,5064,N40287,Electrical testing and smoke detectors,1233,Contractor Payments,,,,,,,,
GUILDFORD BOROUGH COUNCIL,Renovations,1000554,Seville Developments,03/02/2022,30040348,854.66,0,Contractor Payments,,Invoice,BACS,No,13/12/2021 00:00,2021,10,5064,N40287,Electrical testing and smoke detectors,1233,Contractor Payments,,,,,,,,
GUILDFORD BOROUGH COUNCIL,Renovations,1000554,Seville Developments,03/02/2022,30040348,817.62,0,Contractor Payments,,Invoice,BACS,No,13/12/2021 00:00,2021,10,5064,N40287,Electrical testing and smoke detectors,1233,Contractor Payments,,,,,,,,
GUILDFORD BOROUGH COUNCIL,Renovations,1000554,Seville Developments,03/02/2022,30040348,638.62,0,Contractor Payments,,Invoice,BACS,No,13/12/2021 00:00,2021,10,5064,N40287,Electrical testing and smoke detectors,1233,Contractor Payments,,,,,,,,
GUILDFORD BOROUGH COUNCIL,Renovations,1000554,Seville Developments,03/02/2022,30040348,699.15,0,Contractor Payments,,Invoice,BACS,No,13/12/2021 00:00,2021,10,5064,N40287,Electrical testing and smoke detectors,1233,Contractor Payments,,,,,,,,
GUILDFORD BOROUGH COUNCIL,Renovations,1000554,Seville Developments,03/02/2022,30040348,655.92,0,Contractor Payments,,Invoice,BACS,No,13/12/2021 00:00,2021,10,5064,N40287,Electrical testing and smoke detectors,1233,Contractor Payments,,,,,,,,
GUILDFORD BOROUGH COUNCIL,Renovations,1000554,Seville Developments,03/02/2022,30040348,811.09,0,Contractor Payments,,Invoice,BACS,No,13/12/2021 00:00,2021,10,5064,N40287,Electrical testing and smoke detectors,1233,Contractor Payments,,,,,,,,
GUILDFORD BOROUGH COUNCIL,Renovations,1000554,Seville Developments,03/02/2022,30040348,850.6,0,Contractor Payments,,Invoice,BACS,No,13/12/2021 00:00,2021,10,5064,N40287,Electrical testing and smoke detectors,1233,Contractor Payments,,,,,,,,
GUILDFORD BOROUGH COUNCIL,Renovations,1000554,Seville Developments,03/02/2022,30040348,1319.22,0,Contractor Payments,,Invoice,BACS,No,13/12/2021 00:00,2021,10,5064,N40287,Electrical testing and smoke detectors,1233,Contractor Payments,,,,,,,,
GUILDFORD BOROUGH COUNCIL,Renovations,1000554,Seville Developments,03/02/2022,30040348,337.22,0,Contractor Payments,,Invoice,BACS,No,13/12/2021 00:00,2021,10,5064,N40287,Electrical testing and smoke detectors,1233,Contractor Payments,,,,,,,,
GUILDFORD BOROUGH COUNCIL,Renovations,1000554,Seville Developments,03/02/2022,30040348,421.74,0,Contractor Payments,,Invoice,BACS,No,13/12/2021 00:00,2021,10,5064,N40287,Electrical testing and smoke detectors,1233,Contractor Payments,,,,,,,,
GUILDFORD BOROUGH COUNCIL,Renovations,1000554,Seville Developments,03/02/2022,30040348,727.41,0,Contractor Payments,,Invoice,BACS,No,13/12/2021 00:00,2021,10,5064,N40287,Electrical testing and smoke detectors,1233,Contractor Payments,,,,,,,,
GUILDFORD BOROUGH COUNCIL,Renovations,1000554,Seville Developments,03/02/2022,30040348,1005.51,0,Contractor Payments,,Invoice,BACS,No,13/12/2021 00:00,2021,10,5064,N40287,Electrical testing and smoke detectors,1233,Contractor Payments,,,,,,,,
GUILDFORD BOROUGH COUNCIL,Renovations,1000554,Seville Developments,03/02/2022,30040348,847.89,0,Contractor Payments,,Invoice,BACS,No,13/12/2021 00:00,2021,10,5064,N40287,Electrical testing and smoke detectors,1233,Contractor Payments,,,,,,,,
GUILDFORD BOROUGH COUNCIL,Renovations,1000554,Seville Developments,03/02/2022,30040348,362.12,0,Contractor Payments,,Invoice,BACS,No,13/12/2021 00:00,2021,10,5064,N40287,Electrical testing and smoke detectors,1233,Contractor Payments,,,,,,,,
GUILDFORD BOROUGH COUNCIL,Renovations,1000554,Seville Developments,03/02/2022,30040348,362.12,0,Contractor Payments,,Invoice,BACS,No,13/12/2021 00:00,2021,10,5064,N40287,Electrical testing and smoke detectors,1233,Contractor Payments,,,,,,,,
GUILDFORD BOROUGH COUNCIL,Renovations,1000554,Seville Developments,03/02/2022,30040348,620.01,0,Contractor Payments,,Invoice,BACS,No,13/12/2021 00:00,2021,10,5064,N40287,Electrical testing and smoke detectors,1233,Contractor Payments,,,,,,,,
GUILDFORD BOROUGH COUNCIL,Renovations,1000554,Seville Developments,03/02/2022,30040348,612.49,0,Contractor Payments,,Invoice,BACS,No,13/12/2021 00:00,2021,10,5064,N40287,Electrical testing and smoke detectors,1233,Contractor Payments,,,,,,,,
GUILDFORD BOROUGH COUNCIL,Renovations,1000554,Seville Developments,03/02/2022,30040348,838.78,0,Contractor Payments,,Invoice,BACS,No,13/12/2021 00:00,2021,10,5064,N40287,Electrical testing and smoke detectors,1233,Contractor Payments,,,,,,,,
GUILDFORD BOROUGH COUNCIL,Renovations,1000554,Seville Developments,03/02/2022,30040348,254.89,0,Contractor Payments,,Invoice,BACS,No,13/12/2021 00:00,2021,10,5064,N40287,Electrical testing and smoke detectors,1233,Contractor Payments,,,,,,,,
GUILDFORD BOROUGH COUNCIL,Renovations,1000554,Seville Developments,03/02/2022,30040348,582.29,0,Contractor Payments,,Invoice,BACS,No,13/12/2021 00:00,2021,10,5064,N40287,Electrical testing and smoke detectors,1233,Contractor Payments,,,,,,,,
GUILDFORD BOROUGH COUNCIL,Renovations,1000554,Seville Developments,03/02/2022,30040348,311.52,0,Contractor Payments,,Invoice,BACS,No,13/12/2021 00:00,2021,10,5064,N40287,Electrical testing and smoke detectors,1233,Contractor Payments,,,,,,,,
GUILDFORD BOROUGH COUNCIL,Renovations,1000554,Seville Developments,03/02/2022,30040348,488.47,0,Contractor Payments,,Invoice,BACS,No,13/12/2021 00:00,2021,10,5064,N40287,Electrical testing and smoke detectors,1233,Contractor Payments,,,,,,,,
GUILDFORD BOROUGH COUNCIL,Renovations,1000554,Seville Developments,03/02/2022,30040348,756.19,0,Contractor Payments,,Invoice,BACS,No,13/12/2021 00:00,2021,10,5064,N40287,Electrical testing and smoke detectors,1233,Contractor Payments,,,,,,,,
GUILDFORD BOROUGH COUNCIL,Renovations,1000554,Seville Developments,03/02/2022,30040348,1199.97,0,Contractor Payments,,Invoice,BACS,No,13/12/2021 00:00,2021,10,5064,N40287,Electrical testing and smoke detectors,1233,Contractor Payments,,,,,,,,
GUILDFORD BOROUGH COUNCIL,Renovations,1000554,Seville Developments,03/02/2022,30040348,818.91,0,Contractor Payments,,Invoice,BACS,No,13/12/2021 00:00,2021,10,5064,N40287,Electrical testing and smoke detectors,1233,Contractor Payments,,,,,,,,
GUILDFORD BOROUGH COUNCIL,Renovations,1000554,Seville Developments,03/02/2022,30040348,1118.43,0,Contractor Payments,,Invoice,BACS,No,13/12/2021 00:00,2021,10,5064,N40287,Electrical testing and smoke detectors,1233,Contractor Payments,,,,,,,,
GUILDFORD BOROUGH COUNCIL,Renovations,1000554,Seville Developments,03/02/2022,30040348,777.33,0,Contractor Payments,,Invoice,BACS,No,13/12/2021 00:00,2021,10,5064,N40287,Electrical testing and smoke detectors,1233,Contractor Payments,,,,,,,,
GUILDFORD BOROUGH COUNCIL,Renovations,1000554,Seville Developments,03/02/2022,30040348,793.67,0,Contractor Payments,,Invoice,BACS,No,13/12/2021 00:00,2021,10,5064,N40287,Electrical testing and smoke detectors,1233,Contractor Payments,,,,,,,,
GUILDFORD BOROUGH COUNCIL,Renovations,1000554,Seville Developments,03/02/2022,30040348,726.88,0,Contractor Payments,,Invoice,BACS,No,13/12/2021 00:00,2021,10,5064,N40287,Electrical testing and smoke detectors,1233,Contractor Payments,,,,,,,,
GUILDFORD BOROUGH COUNCIL,Renovations,1000554,Seville Developments,03/02/2022,30040348,607.59,0,Contractor Payments,,Invoice,BACS,No,13/12/2021 00:00,2021,10,5064,N40287,Electrical testing and smoke detectors,1233,Contractor Payments,,,,,,,,
GUILDFORD BOROUGH COUNCIL,Renovations,1000554,Seville Developments,03/02/2022,30040348,410.52,0,Contractor Payments,,Invoice,BACS,No,13/12/2021 00:00,2021,10,5064,N40287,Electrical testing and smoke detectors,1233,Contractor Payments,,,,,,,,
GUILDFORD BOROUGH COUNCIL,Renovations,1000554,Seville Developments,03/02/2022,30040348,535.44,0,Contractor Payments,,Invoice,BACS,No,13/12/2021 00:00,2021,10,5064,N40287,Electrical testing and smoke detectors,1233,Contractor Payments,,,,,,,,
GUILDFORD BOROUGH COUNCIL,Renovations,1000554,Seville Developments,03/02/2022,30040348,679.15,0,Contractor Payments,,Invoice,BACS,No,13/12/2021 00:00,2021,10,5064,N40287,Electrical testing and smoke detectors,1233,Contractor Payments,,,,,,,,
GUILDFORD BOROUGH COUNCIL,Renovations,1000554,Seville Developments,03/02/2022,30040348,1125.48,0,Contractor Payments,,Invoice,BACS,No,13/12/2021 00:00,2021,10,5064,N40287,Electrical testing and smoke detectors,1233,Contractor Payments,,,,,,,,
GUILDFORD BOROUGH COUNCIL,Renovations,1000554,Seville Developments,03/02/2022,30040348,491.25,0,Contractor Payments,,Invoice,BACS,No,13/12/2021 00:00,2021,10,5064,N40287,Electrical testing and smoke detectors,1233,Contractor Payments,,,,,,,,
GUILDFORD BOROUGH COUNCIL,Renovations,1000554,Seville Developments,03/02/2022,30040348,470.83,0,Contractor Payments,,Invoice,BACS,No,13/12/2021 00:00,2021,10,5064,N40287,Electrical testing and smoke detectors,1233,Contractor Payments,,,,,,,,
GUILDFORD BOROUGH COUNCIL,Renovations,1000554,Seville Developments,03/02/2022,30040348,491.25,0,Contractor Payments,,Invoice,BACS,No,13/12/2021 00:00,2021,10,5064,N40287,Electrical testing and smoke detectors,1233,Contractor Payments,,,,,,,,
GUILDFORD BOROUGH COUNCIL,Renovations,1000554,Seville Developments,03/02/2022,30040348,3550,0,Contractor Payments,,Invoice,BACS,No,13/12/2021 00:00,2021,10,5064,N40287,Electrical testing and smoke detectors,1233,Contractor Payments,,,,,,,,
GUILDFORD BOROUGH COUNCIL,Renovations,1000554,Seville Developments,03/02/2022,30040348,391.11,0,Contractor Payments,,Invoice,BACS,No,13/12/2021 00:00,2021,10,5064,N40287,Electrical testing and smoke detectors,1233,Contractor Payments,,,,,,,,
GUILDFORD BOROUGH COUNCIL,Renovations,1000554,Seville Developments,03/02/2022,30040348,519.4,0,Contractor Payments,,Invoice,BACS,No,13/12/2021 00:00,2021,10,5064,N40287,Electrical testing and smoke detectors,1233,Contractor Payments,,,,,,,,
GUILDFORD BOROUGH COUNCIL,Renovations,1000554,Seville Developments,03/02/2022,30040348,556.74,0,Contractor Payments,,Invoice,BACS,No,13/12/2021 00:00,2021,10,5064,N40287,Electrical testing and smoke detectors,1233,Contractor Payments,,,,,,,,
GUILDFORD BOROUGH COUNCIL,Renovations,1000554,Seville Developments,03/02/2022,30040348,415.67,0,Contractor Payments,,Invoice,BACS,No,13/12/2021 00:00,2021,10,5064,N40287,Electrical testing and smoke detectors,1233,Contractor Payments,,,,,,,,
GUILDFORD BOROUGH COUNCIL,Renovations,1000554,Seville Developments,03/02/2022,30040348,455.66,0,Contractor Payments,,Invoice,BACS,No,13/12/2021 00:00,2021,10,5064,N40287,Electrical testing and smoke detectors,1233,Contractor Payments,,,,,,,,
GUILDFORD BOROUGH COUNCIL,Renovations,1000554,Seville Developments,03/02/2022,30040349,311.52,0,Contractor Payments,,Invoice,BACS,No,20/01/2022 00:00,2021,10,5115,N40287,Electrical testing and smoke detectors,1233,Contractor Payments,,,,,,,,
GUILDFORD BOROUGH COUNCIL,Renovations,1000554,Seville Developments,03/02/2022,30040349,336.84,0,Contractor Payments,,Invoice,BACS,No,20/01/2022 00:00,2021,10,5115,N40287,Electrical testing and smoke detectors,1233,Contractor Payments,,,,,,,,
GUILDFORD BOROUGH COUNCIL,Renovations,1000554,Seville Developments,03/02/2022,30040349,336.82,0,Contractor Payments,,Invoice,BACS,No,20/01/2022 00:00,2021,10,5115,N40287,Electrical testing and smoke detectors,1233,Contractor Payments,,,,,,,,
GUILDFORD BOROUGH COUNCIL,Renovations,1000554,Seville Developments,03/02/2022,30040349,362.12,0,Contractor Payments,,Invoice,BACS,No,20/01/2022 00:00,2021,10,5115,N40287,Electrical testing and smoke detectors,1233,Contractor Payments,,,,,,,,
GUILDFORD BOROUGH COUNCIL,Renovations,1000554,Seville Developments,03/02/2022,30040349,336.82,0,Contractor Payments,,Invoice,BACS,No,20/01/2022 00:00,2021,10,5115,N40287,Electrical testing and smoke detectors,1233,Contractor Payments,,,,,,,,
GUILDFORD BOROUGH COUNCIL,Renovations,1000554,Seville Developments,03/02/2022,30040349,645.3,0,Contractor Payments,,Invoice,BACS,No,20/01/2022 00:00,2021,10,5115,N40287,Electrical testing and smoke detectors,1233,Contractor Payments,,,,,,,,
GUILDFORD BOROUGH COUNCIL,Renovations,1000554,Seville Developments,03/02/2022,30040349,491.25,0,Contractor Payments,,Invoice,BACS,No,20/01/2022 00:00,2021,10,5115,N40287,Electrical testing and smoke detectors,1233,Contractor Payments,,,,,,,,
GUILDFORD BOROUGH COUNCIL,Renovations,1000554,Seville Developments,03/02/2022,30040349,641.07,0,Contractor Payments,,Invoice,BACS,No,20/01/2022 00:00,2021,10,5115,N40287,Electrical testing and smoke detectors,1233,Contractor Payments,,,,,,,,
GUILDFORD BOROUGH COUNCIL,Renovations,1000554,Seville Developments,03/02/2022,30040349,664.12,0,Contractor Payments,,Invoice,BACS,No,20/01/2022 00:00,2021,10,5115,N40287,Electrical testing and smoke detectors,1233,Contractor Payments,,,,,,,,
GUILDFORD BOROUGH COUNCIL,Renovations,1000554,Seville Developments,03/02/2022,30040349,712.07,0,Contractor Payments,,Invoice,BACS,No,20/01/2022 00:00,2021,10,5115,N40287,Electrical testing and smoke detectors,1233,Contractor Payments,,,,,,,,
GUILDFORD BOROUGH COUNCIL,Renovations,1000554,Seville Developments,03/02/2022,30040349,1007.57,0,Contractor Payments,,Invoice,BACS,No,20/01/2022 00:00,2021,10,5115,N40287,Electrical testing and smoke detectors,1233,Contractor Payments,,,,,,,,
GUILDFORD BOROUGH COUNCIL,Renovations,1000554,Seville Developments,03/02/2022,30040349,620.01,0,Contractor Payments,,Invoice,BACS,No,20/01/2022 00:00,2021,10,5115,N40287,Electrical testing and smoke detectors,1233,Contractor Payments,,,,,,,,
GUILDFORD BOROUGH COUNCIL,Renovations,1000554,Seville Developments,03/02/2022,30040349,593.76,0,Contractor Payments,,Invoice,BACS,No,20/01/2022 00:00,2021,10,5115,N40287,Electrical testing and smoke detectors,1233,Contractor Payments,,,,,,,,
GUILDFORD BOROUGH COUNCIL,Renovations,1000554,Seville Developments,03/02/2022,30040349,469.44,0,Contractor Payments,,Invoice,BACS,No,20/01/2022 00:00,2021,10,5115,N40287,Electrical testing and smoke detectors,1233,Contractor Payments,,,,,,,,
GUILDFORD BOROUGH COUNCIL,Renovations,1000554,Seville Developments,03/02/2022,30040349,1181.28,0,Contractor Payments,,Invoice,BACS,No,20/01/2022 00:00,2021,10,5115,N40287,Electrical testing and smoke detectors,1233,Contractor Payments,,,,,,,,
GUILDFORD BOROUGH COUNCIL,Renovations,1000554,Seville Developments,03/02/2022,30040349,1214.54,0,Contractor Payments,,Invoice,BACS,No,20/01/2022 00:00,2021,10,5115,N40287,Electrical testing and smoke detectors,1233,Contractor Payments,,,,,,,,
GUILDFORD BOROUGH COUNCIL,Renovations,1000554,Seville Developments,03/02/2022,30040349,491.25,0,Contractor Payments,,Invoice,BACS,No,20/01/2022 00:00,2021,10,5115,N40287,Electrical testing and smoke detectors,1233,Contractor Payments,,,,,,,,
GUILDFORD BOROUGH COUNCIL,Renovations,1000554,Seville Developments,03/02/2022,30040349,1233.54,0,Contractor Payments,,Invoice,BACS,No,20/01/2022 00:00,2021,10,5115,N40287,Electrical testing and smoke detectors,1233,Contractor Payments,,,,,,,,
GUILDFORD BOROUGH COUNCIL,Renovations,1000554,Seville Developments,03/02/2022,30040349,317.35,0,Contractor Payments,,Invoice,BACS,No,20/01/2022 00:00,2021,10,5115,N40287,Electrical testing and smoke detectors,1233,Contractor Payments,,,,,,,,
GUILDFORD BOROUGH COUNCIL,Renovations,1000554,Seville Developments,03/02/2022,30040349,1140.44,0,Contractor Payments,,Invoice,BACS,No,20/01/2022 00:00,2021,10,5115,N40287,Electrical testing and smoke detectors,1233,Contractor Payments,,,,,,,,
GUILDFORD BOROUGH COUNCIL,Renovations,1000554,Seville Developments,03/02/2022,30040349,1461.79,0,Contractor Payments,,Invoice,BACS,No,20/01/2022 00:00,2021,10,5115,N40287,Electrical testing and smoke detectors,1233,Contractor Payments,,,,,,,,
GUILDFORD BOROUGH COUNCIL,Renovations,1000554,Seville Developments,03/02/2022,30040349,524.53,0,Contractor Payments,,Invoice,BACS,No,20/01/2022 00:00,2021,10,5115,N40287,Electrical testing and smoke detectors,1233,Contractor Payments,,,,,,,,
GUILDFORD BOROUGH COUNCIL,Renovations,1000554,Seville Developments,03/02/2022,30040349,1322.27,0,Contractor Payments,,Invoice,BACS,No,20/01/2022 00:00,2021,10,5115,N40287,Electrical testing and smoke detectors,1233,Contractor Payments,,,,,,,,
GUILDFORD BOROUGH COUNCIL,Renovations,1000554,Seville Developments,03/02/2022,30040349,1638.67,0,Contractor Payments,,Invoice,BACS,No,20/01/2022 00:00,2021,10,5115,N40287,Electrical testing and smoke detectors,1233,Contractor Payments,,,,,,,,
GUILDFORD BOROUGH COUNCIL,Renovations,1000554,Seville Developments,03/02/2022,30040349,415.67,0,Contractor Payments,,Invoice,BACS,No,20/01/2022 00:00,2021,10,5115,N40287,Electrical testing and smoke detectors,1233,Contractor Payments,,,,,,,,
GUILDFORD BOROUGH COUNCIL,Renovations,1000554,Seville Developments,03/02/2022,30040349,310.37,0,Contractor Payments,,Invoice,BACS,No,20/01/2022 00:00,2021,10,5115,N40287,Electrical testing and smoke detectors,1233,Contractor Payments,,,,,,,,
GUILDFORD BOROUGH COUNCIL,Renovations,1000554,Seville Developments,03/02/2022,30040349,539.69,0,Contractor Payments,,Invoice,BACS,No,20/01/2022 00:00,2021,10,5115,N40287,Electrical testing and smoke detectors,1233,Contractor Payments,,,,,,,,
GUILDFORD BOROUGH COUNCIL,Renovations,1000554,Seville Developments,03/02/2022,30040349,357.72,0,Contractor Payments,,Invoice,BACS,No,20/01/2022 00:00,2021,10,5115,N40287,Electrical testing and smoke detectors,1233,Contractor Payments,,,,,,,,
GUILDFORD BOROUGH COUNCIL,Renovations,1000554,Seville Developments,03/02/2022,30040349,618.04,0,Contractor Payments,,Invoice,BACS,No,20/01/2022 00:00,2021,10,5115,N40287,Electrical testing and smoke detectors,1233,Contractor Payments,,,,,,,,
GUILDFORD BOROUGH COUNCIL,Renovations,1000554,Seville Developments,03/02/2022,30040349,262.17,0,Contractor Payments,,Invoice,BACS,No,20/01/2022 00:00,2021,10,5115,N40287,Electrical testing and smoke detectors,1233,Contractor Payments,,,,,,,,
GUILDFORD BOROUGH COUNCIL,Renovations,1000554,Seville Developments,03/02/2022,30040349,295.77,0,Contractor Payments,,Invoice,BACS,No,20/01/2022 00:00,2021,10,5115,N40287,Electrical testing and smoke detectors,1233,Contractor Payments,,,,,,,,
GUILDFORD BOROUGH COUNCIL,Renovations,1000554,Seville Developments,03/02/2022,30040349,645.3,0,Contractor Payments,,Invoice,BACS,No,20/01/2022 00:00,2021,10,5115,N40287,Electrical testing and smoke detectors,1233,Contractor Payments,,,,,,,,
GUILDFORD BOROUGH COUNCIL,Renovations,1000554,Seville Developments,03/02/2022,30040349,517.76,0,Contractor Payments,,Invoice,BACS,No,20/01/2022 00:00,2021,10,5115,N40287,Electrical testing and smoke detectors,1233,Contractor Payments,,,,,,,,
GUILDFORD BOROUGH COUNCIL,Renovations,1000554,Seville Developments,03/02/2022,30040349,452.56,0,Contractor Payments,,Invoice,BACS,No,20/01/2022 00:00,2021,10,5115,N40287,Electrical testing and smoke detectors,1233,Contractor Payments,,,,,,,,
GUILDFORD BOROUGH COUNCIL,Renovations,1000554,Seville Developments,03/02/2022,30040349,582.29,0,Contractor Payments,,Invoice,BACS,No,20/01/2022 00:00,2021,10,5115,N40287,Electrical testing and smoke detectors,1233,Contractor Payments,,,,,,,,
GUILDFORD BOROUGH COUNCIL,Renovations,1000554,Seville Developments,03/02/2022,30040349,659.8,0,Contractor Payments,,Invoice,BACS,No,20/01/2022 00:00,2021,10,5115,N40287,Electrical testing and smoke detectors,1233,Contractor Payments,,,,,,,,
GUILDFORD BOROUGH COUNCIL,Renovations,1000554,Seville Developments,03/02/2022,30040349,681.28,0,Contractor Payments,,Invoice,BACS,No,20/01/2022 00:00,2021,10,5115,N40287,Electrical testing and smoke detectors,1233,Contractor Payments,,,,,,,,
GUILDFORD BOROUGH COUNCIL,Renovations,1000554,Seville Developments,03/02/2022,30040349,790.21,0,Contractor Payments,,Invoice,BACS,No,20/01/2022 00:00,2021,10,5115,N40287,Electrical testing and smoke detectors,1233,Contractor Payments,,,,,,,,
GUILDFORD BOROUGH COUNCIL,Renovations,1000554,Seville Developments,03/02/2022,30040349,569.15,0,Contractor Payments,,Invoice,BACS,No,20/01/2022 00:00,2021,10,5115,N40287,Electrical testing and smoke detectors,1233,Contractor Payments,,,,,,,,
GUILDFORD BOROUGH COUNCIL,Renovations,1000554,Seville Developments,03/02/2022,30040349,582.29,0,Contractor Payments,,Invoice,BACS,No,20/01/2022 00:00,2021,10,5115,N40287,Electrical testing and smoke detectors,1233,Contractor Payments,,,,,,,,
GUILDFORD BOROUGH COUNCIL,Renovations,1000554,Seville Developments,03/02/2022,30040349,582.29,0,Contractor Payments,,Invoice,BACS,No,20/01/2022 00:00,2021,10,5115,N40287,Electrical testing and smoke detectors,1233,Contractor Payments,,,,,,,,
GUILDFORD BOROUGH COUNCIL,Renovations,1000554,Seville Developments,03/02/2022,30040349,790.21,0,Contractor Payments,,Invoice,BACS,No,20/01/2022 00:00,2021,10,5115,N40287,Electrical testing and smoke detectors,1233,Contractor Payments,,,,,,,,
GUILDFORD BOROUGH COUNCIL,Renovations,1000554,Seville Developments,03/02/2022,30040349,336.82,0,Contractor Payments,,Invoice,BACS,No,20/01/2022 00:00,2021,10,5115,N40287,Electrical testing and smoke detectors,1233,Contractor Payments,,,,,,,,
GUILDFORD BOROUGH COUNCIL,Renovations,1000554,Seville Developments,03/02/2022,30040349,559.94,0,Contractor Payments,,Invoice,BACS,No,20/01/2022 00:00,2021,10,5115,N40287,Electrical testing and smoke detectors,1233,Contractor Payments,,,,,,,,
GUILDFORD BOROUGH COUNCIL,Renovations,1000554,Seville Developments,03/02/2022,30040349,286.22,0,Contractor Payments,,Invoice,BACS,No,20/01/2022 00:00,2021,10,5115,N40287,Electrical testing and smoke detectors,1233,Contractor Payments,,,,,,,,
GUILDFORD BOROUGH COUNCIL,Renovations,1000554,Seville Developments,03/02/2022,30040349,336.82,0,Contractor Payments,,Invoice,BACS,No,20/01/2022 00:00,2021,10,5115,N40287,Electrical testing and smoke detectors,1233,Contractor Payments,,,,,,,,
GUILDFORD BOROUGH COUNCIL,Renovations,1000554,Seville Developments,03/02/2022,30040349,723.7,0,Contractor Payments,,Invoice,BACS,No,20/01/2022 00:00,2021,10,5115,N40287,Electrical testing and smoke detectors,1233,Contractor Payments,,,,,,,,
GUILDFORD BOROUGH COUNCIL,Renovations,1000554,Seville Developments,20/01/2022,30039202,23644.72,0,Contractor Payments,,Invoice,BACS,No,27/12/2021 00:00,2021,10,4986,N40287,Electrical testing and smoke detectors,1233,Contractor Payments,,,,,,,,
GUILDFORD BOROUGH COUNCIL,Renovations,1000554,Seville Developments,20/01/2022,30039202,4728.95,0,Contractor Payments,,Invoice,BACS,No,27/12/2021 00:00,2021,10,4986,N40287,Electrical testing and smoke detectors,1233,Contractor Payments,,,,,,,,
GUILDFORD BOROUGH COUNCIL,Renovations,1000554,Seville Developments,20/01/2022,30039202,1740,0,Contractor Payments,,Invoice,BACS,No,27/12/2021 00:00,2021,10,4986,N40287,Electrical testing and smoke detectors,1233,Contractor Payments,,,,,,,,
GUILDFORD BOROUGH COUNCIL,Renovations,1000554,Seville Developments,20/01/2022,30039202,5136,0,Contractor Payments,,Invoice,BACS,No,27/12/2021 00:00,2021,10,4986,N40287,Electrical testing and smoke detectors,1233,Contractor Payments,,,,,,,,
GUILDFORD BOROUGH COUNCIL,Renovations,1000554,Seville Developments,20/01/2022,30039202,27394.77,0,Contractor Payments,,Invoice,BACS,No,27/12/2021 00:00,2021,10,4986,N40287,Electrical testing and smoke detectors,1233,Contractor Payments,,,,,,,,
GUILDFORD BOROUGH COUNCIL,Renovations,1000554,Seville Developments,24/03/2022,30044892,40175.2,0,Contractor Payments,,Invoice,BACS,No,28/02/2022 00:00,2021,12,5274,N40287,Electrical testing and smoke detectors,1233,Contractor Payments,,,,,,,,
GUILDFORD BOROUGH COUNCIL,Renovations,1000554,Seville Developments,24/03/2022,30044889,20271,0,Contractor Payments,,Invoice,BACS,No,28/02/2022 00:00,2021,12,5271,N40287,Electrical testing and smoke detectors,1233,Contractor Payments,,,,,,,,
GUILDFORD BOROUGH COUNCIL,Renovations,1000554,Seville Developments,24/03/2022,30044886,931.42,0,Contractor Payments,,Invoice,BACS,No,28/02/2022 00:00,2021,12,5260,N40287,Electrical testing and smoke detectors,1233,Contractor Payments,,,,,,,,
GUILDFORD BOROUGH COUNCIL,Renovations,1000554,Seville Developments,24/03/2022,30044886,1400.67,0,Contractor Payments,,Invoice,BACS,No,28/02/2022 00:00,2021,12,5260,N40287,Electrical testing and smoke detectors,1233,Contractor Payments,,,,,,,,
GUILDFORD BOROUGH COUNCIL,Renovations,1000554,Seville Developments,24/03/2022,30044886,1448.32,0,Contractor Payments,,Invoice,BACS,No,28/02/2022 00:00,2021,12,5260,N40287,Electrical testing and smoke detectors,1233,Contractor Payments,,,,,,,,
GUILDFORD BOROUGH COUNCIL,Renovations,1000554,Seville Developments,24/03/2022,30044886,918.79,0,Contractor Payments,,Invoice,BACS,No,28/02/2022 00:00,2021,12,5260,N40287,Electrical testing and smoke detectors,1233,Contractor Payments,,,,,,,,
GUILDFORD BOROUGH COUNCIL,Renovations,1000554,Seville Developments,24/03/2022,30044886,1251.66,0,Contractor Payments,,Invoice,BACS,No,28/02/2022 00:00,2021,12,5260,N40287,Electrical testing and smoke detectors,1233,Contractor Payments,,,,,,,,
GUILDFORD BOROUGH COUNCIL,Renovations,1000554,Seville Developments,24/03/2022,30044886,1560.93,0,Contractor Payments,,Invoice,BACS,No,28/02/2022 00:00,2021,12,5260,N40287,Electrical testing and smoke detectors,1233,Contractor Payments,,,,,,,,
GUILDFORD BOROUGH COUNCIL,Renovations,1000554,Seville Developments,24/03/2022,30044886,1230.1,0,Contractor Payments,,Invoice,BACS,No,28/02/2022 00:00,2021,12,5260,N40287,Electrical testing and smoke detectors,1233,Contractor Payments,,,,,,,,
GUILDFORD BOROUGH COUNCIL,Renovations,1000554,Seville Developments,24/03/2022,30044886,926.59,0,Contractor Payments,,Invoice,BACS,No,28/02/2022 00:00,2021,12,5260,N40287,Electrical testing and smoke detectors,1233,Contractor Payments,,,,,,,,
GUILDFORD BOROUGH COUNCIL,Renovations,1000554,Seville Developments,24/03/2022,30044886,873.53,0,Contractor Payments,,Invoice,BACS,No,28/02/2022 00:00,2021,12,5260,N40287,Electrical testing and smoke detectors,1233,Contractor Payments,,,,,,,,
GUILDFORD BOROUGH COUNCIL,Renovations,1000554,Seville Developments,24/03/2022,30044886,1050.47,0,Contractor Payments,,Invoice,BACS,No,28/02/2022 00:00,2021,12,5260,N40287,Electrical testing and smoke detectors,1233,Contractor Payments,,,,,,,,
GUILDFORD BOROUGH COUNCIL,Renovations,1000554,Seville Developments,24/03/2022,30044886,1013.21,0,Contractor Payments,,Invoice,BACS,No,28/02/2022 00:00,2021,12,5260,N40287,Electrical testing and smoke detectors,1233,Contractor Payments,,,,,,,,
GUILDFORD BOROUGH COUNCIL,Renovations,1000554,Seville Developments,24/03/2022,30044886,991.21,0,Contractor Payments,,Invoice,BACS,No,28/02/2022 00:00,2021,12,5260,N40287,Electrical testing and smoke detectors,1233,Contractor Payments,,,,,,,,
GUILDFORD BOROUGH COUNCIL,Renovations,1000554,Seville Developments,24/03/2022,30044886,961.72,0,Contractor Payments,,Invoice,BACS,No,28/02/2022 00:00,2021,12,5260,N40287,Electrical testing and smoke detectors,1233,Contractor Payments,,,,,,,,
GUILDFORD BOROUGH COUNCIL,Renovations,1000554,Seville Developments,24/03/2022,30044886,1126.95,0,Contractor Payments,,Invoice,BACS,No,28/02/2022 00:00,2021,12,5260,N40287,Electrical testing and smoke detectors,1233,Contractor Payments,,,,,,,,
GUILDFORD BOROUGH COUNCIL,Renovations,1000554,Seville Developments,24/03/2022,30044886,885.85,0,Contractor Payments,,Invoice,BACS,No,28/02/2022 00:00,2021,12,5260,N40287,Electrical testing and smoke detectors,1233,Contractor Payments,,,,,,,,
GUILDFORD BOROUGH COUNCIL,Renovations,1000554,Seville Developments,24/03/2022,30044886,578.64,0,Contractor Payments,,Invoice,BACS,No,28/02/2022 00:00,2021,12,5260,N40287,Electrical testing and smoke detectors,1233,Contractor Payments,,,,,,,,
GUILDFORD BOROUGH COUNCIL,Renovations,1000554,Seville Developments,24/03/2022,30044886,273.76,0,Contractor Payments,,Invoice,BACS,No,28/02/2022 00:00,2021,12,5260,N40287,Electrical testing and smoke detectors,1233,Contractor Payments,,,,,,,,
GUILDFORD BOROUGH COUNCIL,Renovations,1000554,Seville Developments,24/03/2022,30044886,498.01,0,Contractor Payments,,Invoice,BACS,No,28/02/2022 00:00,2021,12,5260,N40287,Electrical testing and smoke detectors,1233,Contractor Payments,,,,,,,,
GUILDFORD BOROUGH COUNCIL,Renovations,1000554,Seville Developments,24/03/2022,30044886,885.96,0,Contractor Payments,,Invoice,BACS,No,28/02/2022 00:00,2021,12,5260,N40287,Electrical testing and smoke detectors,1233,Contractor Payments,,,,,,,,
GUILDFORD BOROUGH COUNCIL,Renovations,1000554,Seville Developments,24/03/2022,30044886,1122.75,0,Contractor Payments,,Invoice,BACS,No,28/02/2022 00:00,2021,12,5260,N40287,Electrical testing and smoke detectors,1233,Contractor Payments,,,,,,,,
GUILDFORD BOROUGH COUNCIL,Renovations,1000554,Seville Developments,24/03/2022,30044886,796.29,0,Contractor Payments,,Invoice,BACS,No,28/02/2022 00:00,2021,12,5260,N40287,Electrical testing and smoke detectors,1233,Contractor Payments,,,,,,,,
GUILDFORD BOROUGH COUNCIL,Renovations,1000554,Seville Developments,24/03/2022,30044886,1667.63,0,Contractor Payments,,Invoice,BACS,No,28/02/2022 00:00,2021,12,5260,N40287,Electrical testing and smoke detectors,1233,Contractor Payments,,,,,,,,
GUILDFORD BOROUGH COUNCIL,Renovations,1000554,Seville Developments,24/03/2022,30044886,811.53,0,Contractor Payments,,Invoice,BACS,No,28/02/2022 00:00,2021,12,5260,N40287,Electrical testing and smoke detectors,1233,Contractor Payments,,,,,,,,
GUILDFORD BOROUGH COUNCIL,Renovations,1000554,Seville Developments,24/03/2022,30044886,1471.75,0,Contractor Payments,,Invoice,BACS,No,28/02/2022 00:00,2021,12,5260,N40287,Electrical testing and smoke detectors,1233,Contractor Payments,,,,,,,,
GUILDFORD BOROUGH COUNCIL,Renovations,1000554,Seville Developments,24/03/2022,30044886,1526.07,0,Contractor Payments,,Invoice,BACS,No,28/02/2022 00:00,2021,12,5260,N40287,Electrical testing and smoke detectors,1233,Contractor Payments,,,,,,,,
GUILDFORD BOROUGH COUNCIL,Renovations,1000554,Seville Developments,24/03/2022,30044886,960.16,0,Contractor Payments,,Invoice,BACS,No,28/02/2022 00:00,2021,12,5260,N40287,Electrical testing and smoke detectors,1233,Contractor Payments,,,,,,,,
GUILDFORD BOROUGH COUNCIL,Renovations,1000554,Seville Developments,24/03/2022,30044886,1040.21,0,Contractor Payments,,Invoice,BACS,No,28/02/2022 00:00,2021,12,5260,N40287,Electrical testing and smoke detectors,1233,Contractor Payments,,,,,,,,
GUILDFORD BOROUGH COUNCIL,Renovations,1000554,Seville Developments,24/03/2022,30044886,881.72,0,Contractor Payments,,Invoice,BACS,No,28/02/2022 00:00,2021,12,5260,N40287,Electrical testing and smoke detectors,1233,Contractor Payments,,,,,,,,
GUILDFORD BOROUGH COUNCIL,Renovations,1000554,Seville Developments,24/03/2022,30044886,1197.07,0,Contractor Payments,,Invoice,BACS,No,28/02/2022 00:00,2021,12,5260,N40287,Electrical testing and smoke detectors,1233,Contractor Payments,,,,,,,,
GUILDFORD BOROUGH COUNCIL,Renovations,1000554,Seville Developments,24/03/2022,30044886,1184.1,0,Contractor Payments,,Invoice,BACS,No,28/02/2022 00:00,2021,12,5260,N40287,Electrical testing and smoke detectors,1233,Contractor Payments,,,,,,,,
GUILDFORD BOROUGH COUNCIL,Renovations,1000554,Seville Developments,24/03/2022,30044886,1550.35,0,Contractor Payments,,Invoice,BACS,No,28/02/2022 00:00,2021,12,5260,N40287,Electrical testing and smoke detectors,1233,Contractor Payments,,,,,,,,
GUILDFORD BOROUGH COUNCIL,Renovations,1000554,Seville Developments,24/03/2022,30044886,1159.81,0,Contractor Payments,,Invoice,BACS,No,28/02/2022 00:00,2021,12,5260,N40287,Electrical testing and smoke detectors,1233,Contractor Payments,,,,,,,,
GUILDFORD BOROUGH COUNCIL,Renovations,1000554,Seville Developments,24/03/2022,30044886,887.17,0,Contractor Payments,,Invoice,BACS,No,28/02/2022 00:00,2021,12,5260,N40287,Electrical testing and smoke detectors,1233,Contractor Payments,,,,,,,,
GUILDFORD BOROUGH COUNCIL,Renovations,1000554,Seville Developments,24/03/2022,30044886,980.67,0,Contractor Payments,,Invoice,BACS,No,28/02/2022 00:00,2021,12,5260,N40287,Electrical testing and smoke detectors,1233,Contractor Payments,,,,,,,,
GUILDFORD BOROUGH COUNCIL,Renovations,1000554,Seville Developments,24/03/2022,30044886,980.67,0,Contractor Payments,,Invoice,BACS,No,28/02/2022 00:00,2021,12,5260,N40287,Electrical testing and smoke detectors,1233,Contractor Payments,,,,,,,,
GUILDFORD BOROUGH COUNCIL,Renovations,1000554,Seville Developments,24/03/2022,30044886,1439.1,0,Contractor Payments,,Invoice,BACS,No,28/02/2022 00:00,2021,12,5260,N40287,Electrical testing and smoke detectors,1233,Contractor Payments,,,,,,,,
GUILDFORD BOROUGH COUNCIL,Renovations,1000554,Seville Developments,24/03/2022,30044886,1482.03,0,Contractor Payments,,Invoice,BACS,No,28/02/2022 00:00,2021,12,5260,N40287,Electrical testing and smoke detectors,1233,Contractor Payments,,,,,,,,
GUILDFORD BOROUGH COUNCIL,Renovations,1000554,Seville Developments,24/03/2022,30044886,275.33,0,Contractor Payments,,Invoice,BACS,No,28/02/2022 00:00,2021,12,5260,N40287,Electrical testing and smoke detectors,1233,Contractor Payments,,,,,,,,
GUILDFORD BOROUGH COUNCIL,Renovations,1000554,Seville Developments,24/03/2022,30044886,980.67,0,Contractor Payments,,Invoice,BACS,No,28/02/2022 00:00,2021,12,5260,N40287,Electrical testing and smoke detectors,1233,Contractor Payments,,,,,,,,
GUILDFORD BOROUGH COUNCIL,Renovations,1000554,Seville Developments,24/03/2022,30044886,873.54,0,Contractor Payments,,Invoice,BACS,No,28/02/2022 00:00,2021,12,5260,N40287,Electrical testing and smoke detectors,1233,Contractor Payments,,,,,,,,
GUILDFORD BOROUGH COUNCIL,Renovations,1000554,Seville Developments,24/03/2022,30044886,1144.98,0,Contractor Payments,,Invoice,BACS,No,28/02/2022 00:00,2021,12,5260,N40287,Electrical testing and smoke detectors,1233,Contractor Payments,,,,,,,,
GUILDFORD BOROUGH COUNCIL,Renovations,1000554,Seville Developments,24/03/2022,30044886,1215.79,0,Contractor Payments,,Invoice,BACS,No,28/02/2022 00:00,2021,12,5260,N40287,Electrical testing and smoke detectors,1233,Contractor Payments,,,,,,,,
GUILDFORD BOROUGH COUNCIL,Renovations,1000554,Seville Developments,24/03/2022,30044886,899.12,0,Contractor Payments,,Invoice,BACS,No,28/02/2022 00:00,2021,12,5260,N40287,Electrical testing and smoke detectors,1233,Contractor Payments,,,,,,,,
GUILDFORD BOROUGH COUNCIL,Renovations,1000554,Seville Developments,24/03/2022,30044886,582.02,0,Contractor Payments,,Invoice,BACS,No,28/02/2022 00:00,2021,12,5260,N40287,Electrical testing and smoke detectors,1233,Contractor Payments,,,,,,,,
GUILDFORD BOROUGH COUNCIL,Renovations,1000554,Seville Developments,24/03/2022,30044886,1840.97,0,Contractor Payments,,Invoice,BACS,No,28/02/2022 00:00,2021,12,5260,N40287,Electrical testing and smoke detectors,1233,Contractor Payments,,,,,,,,
GUILDFORD BOROUGH COUNCIL,Renovations,1000554,Seville Developments,24/03/2022,30044886,1027.21,0,Contractor Payments,,Invoice,BACS,No,28/02/2022 00:00,2021,12,5260,N40287,Electrical testing and smoke detectors,1233,Contractor Payments,,,,,,,,
GUILDFORD BOROUGH COUNCIL,Renovations,1000554,Seville Developments,24/03/2022,30044886,3550,0,Contractor Payments,,Invoice,BACS,No,28/02/2022 00:00,2021,12,5260,N40287,Electrical testing and smoke detectors,1233,Contractor Payments,,,,,,,,
GUILDFORD BOROUGH COUNCIL,Renovations,1000554,Seville Developments,24/03/2022,30044886,3424,0,Contractor Payments,,Invoice,BACS,No,28/02/2022 00:00,2021,12,5260,N40287,Electrical testing and smoke detectors,1233,Contractor Payments,,,,,,,,
GUILDFORD BOROUGH COUNCIL,Renovations,1000554,Seville Developments,24/03/2022,30044886,18915.78,0,Contractor Payments,,Invoice,BACS,No,28/02/2022 00:00,2021,12,5260,N40287,Electrical testing and smoke detectors,1233,Contractor Payments,,,,,,,,
GUILDFORD BOROUGH COUNCIL,Renovations,1000554,Seville Developments,24/03/2022,30044886,18915.78,0,Contractor Payments,,Invoice,BACS,No,28/02/2022 00:00,2021,12,5260,N40287,Electrical testing and smoke detectors,1233,Contractor Payments,,,,,,,,
GUILDFORD BOROUGH COUNCIL,Renovations,1000554,Seville Developments,24/03/2022,30044886,435,0,Contractor Payments,,Invoice,BACS,No,28/02/2022 00:00,2021,12,5260,N40287,Electrical testing and smoke detectors,1233,Contractor Payments,,,,,,,,
GUILDFORD BOROUGH COUNCIL,Renovations,1000554,Seville Developments,24/03/2022,30044887,6848,0,Contractor Payments,,Invoice,BACS,No,14/03/2022 00:00,2021,12,5264,N40287,Electrical testing and smoke detectors,1233,Contractor Payments,,,,,,,,
GUILDFORD BOROUGH COUNCIL,Renovations,1000554,Seville Developments,24/03/2022,30044887,4900,0,Contractor Payments,,Invoice,BACS,No,14/03/2022 00:00,2021,12,5264,N40287,Electrical testing and smoke detectors,1233,Contractor Payments,,,,,,,,
GUILDFORD BOROUGH COUNCIL,Renovations,1000554,Seville Developments,24/03/2022,30044887,870,0,Contractor Payments,,Invoice,BACS,No,14/03/2022 00:00,2021,12,5264,N40287,Electrical testing and smoke detectors,1233,Contractor Payments,,,,,,,,
GUILDFORD BOROUGH COUNCIL,Renovations,1000554,Seville Developments,24/03/2022,30044887,23644.73,0,Contractor Payments,,Invoice,BACS,No,14/03/2022 00:00,2021,12,5264,N40287,Electrical testing and smoke detectors,1233,Contractor Payments,,,,,,,,
GUILDFORD BOROUGH COUNCIL,Renovations,1000554,Seville Developments,24/03/2022,30044887,23644.73,0,Contractor Payments,,Invoice,BACS,No,14/03/2022 00:00,2021,12,5264,N40287,Electrical testing and smoke detectors,1233,Contractor Payments,,,,,,,,
GUILDFORD BOROUGH COUNCIL,Renovations,1000554,Seville Developments,24/03/2022,30044891,48635.6,0,Contractor Payments,,Invoice,BACS,No,28/02/2022 00:00,2021,12,5273,N40287,Electrical testing and smoke detectors,1233,Contractor Payments,,,,,,,,
GUILDFORD BOROUGH COUNCIL,Renovations,1000554,Seville Developments,18/01/2022,30038887,681.49,0,Contractor Payments,,Invoice,BACS,No,09/12/2021 00:00,2021,10,4919,N40287,Electrical testing and smoke detectors,1233,Contractor Payments,,,,,,,,
GUILDFORD BOROUGH COUNCIL,Renovations,1000554,Seville Developments,18/01/2022,30038887,700.91,0,Contractor Payments,,Invoice,BACS,No,09/12/2021 00:00,2021,10,4919,N40287,Electrical testing and smoke detectors,1233,Contractor Payments,,,,,,,,
GUILDFORD BOROUGH COUNCIL,Renovations,1000554,Seville Developments,18/01/2022,30038887,254.15,0,Contractor Payments,,Invoice,BACS,No,09/12/2021 00:00,2021,10,4919,N40287,Electrical testing and smoke detectors,1233,Contractor Payments,,,,,,,,
GUILDFORD BOROUGH COUNCIL,Renovations,1000554,Seville Developments,18/01/2022,30038887,556.99,0,Contractor Payments,,Invoice,BACS,No,09/12/2021 00:00,2021,10,4919,N40287,Electrical testing and smoke detectors,1233,Contractor Payments,,,,,,,,
GUILDFORD BOROUGH COUNCIL,Renovations,1000554,Seville Developments,18/01/2022,30038887,468.99,0,Contractor Payments,,Invoice,BACS,No,09/12/2021 00:00,2021,10,4919,N40287,Electrical testing and smoke detectors,1233,Contractor Payments,,,,,,,,
GUILDFORD BOROUGH COUNCIL,Renovations,1000554,Seville Developments,18/01/2022,30038887,286.06,0,Contractor Payments,,Invoice,BACS,No,09/12/2021 00:00,2021,10,4919,N40287,Electrical testing and smoke detectors,1233,Contractor Payments,,,,,,,,
GUILDFORD BOROUGH COUNCIL,Renovations,1000554,Seville Developments,18/01/2022,30038887,603.82,0,Contractor Payments,,Invoice,BACS,No,09/12/2021 00:00,2021,10,4919,N40287,Electrical testing and smoke detectors,1233,Contractor Payments,,,,,,,,
GUILDFORD BOROUGH COUNCIL,Renovations,1000554,Seville Developments,18/01/2022,30038887,422.65,0,Contractor Payments,,Invoice,BACS,No,09/12/2021 00:00,2021,10,4919,N40287,Electrical testing and smoke detectors,1233,Contractor Payments,,,,,,,,
GUILDFORD BOROUGH COUNCIL,Renovations,1000554,Seville Developments,18/01/2022,30038887,494.73,0,Contractor Payments,,Invoice,BACS,No,09/12/2021 00:00,2021,10,4919,N40287,Electrical testing and smoke detectors,1233,Contractor Payments,,,,,,,,
GUILDFORD BOROUGH COUNCIL,Renovations,1000554,Seville Developments,18/01/2022,30038887,536.2,0,Contractor Payments,,Invoice,BACS,No,09/12/2021 00:00,2021,10,4919,N40287,Electrical testing and smoke detectors,1233,Contractor Payments,,,,,,,,
GUILDFORD BOROUGH COUNCIL,Renovations,1000554,Seville Developments,18/01/2022,30038887,867.48,0,Contractor Payments,,Invoice,BACS,No,09/12/2021 00:00,2021,10,4919,N40287,Electrical testing and smoke detectors,1233,Contractor Payments,,,,,,,,
GUILDFORD BOROUGH COUNCIL,Renovations,1000554,Seville Developments,18/01/2022,30038887,653.39,0,Contractor Payments,,Invoice,BACS,No,09/12/2021 00:00,2021,10,4919,N40287,Electrical testing and smoke detectors,1233,Contractor Payments,,,,,,,,
GUILDFORD BOROUGH COUNCIL,Renovations,1000554,Seville Developments,18/01/2022,30038887,855.48,0,Contractor Payments,,Invoice,BACS,No,09/12/2021 00:00,2021,10,4919,N40287,Electrical testing and smoke detectors,1233,Contractor Payments,,,,,,,,
GUILDFORD BOROUGH COUNCIL,Renovations,1000554,Seville Developments,18/01/2022,30038887,541.39,0,Contractor Payments,,Invoice,BACS,No,09/12/2021 00:00,2021,10,4919,N40287,Electrical testing and smoke detectors,1233,Contractor Payments,,,,,,,,
GUILDFORD BOROUGH COUNCIL,Renovations,1000554,Seville Developments,18/01/2022,30038887,323.68,0,Contractor Payments,,Invoice,BACS,No,09/12/2021 00:00,2021,10,4919,N40287,Electrical testing and smoke detectors,1233,Contractor Payments,,,,,,,,
GUILDFORD BOROUGH COUNCIL,Renovations,1000554,Seville Developments,18/01/2022,30038887,569.41,0,Contractor Payments,,Invoice,BACS,No,09/12/2021 00:00,2021,10,4919,N40287,Electrical testing and smoke detectors,1233,Contractor Payments,,,,,,,,
GUILDFORD BOROUGH COUNCIL,Renovations,1000554,Seville Developments,18/01/2022,30038887,576.94,0,Contractor Payments,,Invoice,BACS,No,09/12/2021 00:00,2021,10,4919,N40287,Electrical testing and smoke detectors,1233,Contractor Payments,,,,,,,,
GUILDFORD BOROUGH COUNCIL,Renovations,1000554,Seville Developments,18/01/2022,30038887,414.98,0,Contractor Payments,,Invoice,BACS,No,09/12/2021 00:00,2021,10,4919,N40287,Electrical testing and smoke detectors,1233,Contractor Payments,,,,,,,,
GUILDFORD BOROUGH COUNCIL,Renovations,1000554,Seville Developments,18/01/2022,30038887,968.79,0,Contractor Payments,,Invoice,BACS,No,09/12/2021 00:00,2021,10,4919,N40287,Electrical testing and smoke detectors,1233,Contractor Payments,,,,,,,,
GUILDFORD BOROUGH COUNCIL,Renovations,1000554,Seville Developments,18/01/2022,30038887,848.08,0,Contractor Payments,,Invoice,BACS,No,09/12/2021 00:00,2021,10,4919,N40287,Electrical testing and smoke detectors,1233,Contractor Payments,,,,,,,,
GUILDFORD BOROUGH COUNCIL,Renovations,1000554,Seville Developments,18/01/2022,30038887,748.09,0,Contractor Payments,,Invoice,BACS,No,09/12/2021 00:00,2021,10,4919,N40287,Electrical testing and smoke detectors,1233,Contractor Payments,,,,,,,,
GUILDFORD BOROUGH COUNCIL,Renovations,1000554,Seville Developments,18/01/2022,30038887,262.17,0,Contractor Payments,,Invoice,BACS,No,09/12/2021 00:00,2021,10,4919,N40287,Electrical testing and smoke detectors,1233,Contractor Payments,,,,,,,,
GUILDFORD BOROUGH COUNCIL,Renovations,1000554,Seville Developments,18/01/2022,30038887,630.73,0,Contractor Payments,,Invoice,BACS,No,09/12/2021 00:00,2021,10,4919,N40287,Electrical testing and smoke detectors,1233,Contractor Payments,,,,,,,,
GUILDFORD BOROUGH COUNCIL,Renovations,1000554,Seville Developments,18/01/2022,30038887,293.75,0,Contractor Payments,,Invoice,BACS,No,09/12/2021 00:00,2021,10,4919,N40287,Electrical testing and smoke detectors,1233,Contractor Payments,,,,,,,,
GUILDFORD BOROUGH COUNCIL,Renovations,1000554,Seville Developments,18/01/2022,30038887,376.99,0,Contractor Payments,,Invoice,BACS,No,09/12/2021 00:00,2021,10,4919,N40287,Electrical testing and smoke detectors,1233,Contractor Payments,,,,,,,,
GUILDFORD BOROUGH COUNCIL,Renovations,1000554,Seville Developments,18/01/2022,30038887,1014.3,0,Contractor Payments,,Invoice,BACS,No,09/12/2021 00:00,2021,10,4919,N40287,Electrical testing and smoke detectors,1233,Contractor Payments,,,,,,,,
GUILDFORD BOROUGH COUNCIL,Renovations,1000554,Seville Developments,18/01/2022,30038887,1133.53,0,Contractor Payments,,Invoice,BACS,No,09/12/2021 00:00,2021,10,4919,N40287,Electrical testing and smoke detectors,1233,Contractor Payments,,,,,,,,
GUILDFORD BOROUGH COUNCIL,Renovations,1000554,Seville Developments,18/01/2022,30038887,1041.47,0,Contractor Payments,,Invoice,BACS,No,09/12/2021 00:00,2021,10,4919,N40287,Electrical testing and smoke detectors,1233,Contractor Payments,,,,,,,,
GUILDFORD BOROUGH COUNCIL,Renovations,1000554,Seville Developments,18/01/2022,30038887,607.59,0,Contractor Payments,,Invoice,BACS,No,09/12/2021 00:00,2021,10,4919,N40287,Electrical testing and smoke detectors,1233,Contractor Payments,,,,,,,,
GUILDFORD BOROUGH COUNCIL,Renovations,1000554,Seville Developments,18/01/2022,30038887,826.8,0,Contractor Payments,,Invoice,BACS,No,09/12/2021 00:00,2021,10,4919,N40287,Electrical testing and smoke detectors,1233,Contractor Payments,,,,,,,,
GUILDFORD BOROUGH COUNCIL,Renovations,1000554,Seville Developments,18/01/2022,30038887,610.04,0,Contractor Payments,,Invoice,BACS,No,09/12/2021 00:00,2021,10,4919,N40287,Electrical testing and smoke detectors,1233,Contractor Payments,,,,,,,,
GUILDFORD BOROUGH COUNCIL,Renovations,1000554,Seville Developments,18/01/2022,30038887,679.89,0,Contractor Payments,,Invoice,BACS,No,09/12/2021 00:00,2021,10,4919,N40287,Electrical testing and smoke detectors,1233,Contractor Payments,,,,,,,,
GUILDFORD BOROUGH COUNCIL,Renovations,1000554,Seville Developments,18/01/2022,30038887,568.43,0,Contractor Payments,,Invoice,BACS,No,09/12/2021 00:00,2021,10,4919,N40287,Electrical testing and smoke detectors,1233,Contractor Payments,,,,,,,,
GUILDFORD BOROUGH COUNCIL,Renovations,1000554,Seville Developments,18/01/2022,30038887,654.92,0,Contractor Payments,,Invoice,BACS,No,09/12/2021 00:00,2021,10,4919,N40287,Electrical testing and smoke detectors,1233,Contractor Payments,,,,,,,,
GUILDFORD BOROUGH COUNCIL,Renovations,1000554,Seville Developments,18/01/2022,30038887,597.26,0,Contractor Payments,,Invoice,BACS,No,09/12/2021 00:00,2021,10,4919,N40287,Electrical testing and smoke detectors,1233,Contractor Payments,,,,,,,,
GUILDFORD BOROUGH COUNCIL,Renovations,1000554,Seville Developments,18/01/2022,30038887,996.15,0,Contractor Payments,,Invoice,BACS,No,09/12/2021 00:00,2021,10,4919,N40287,Electrical testing and smoke detectors,1233,Contractor Payments,,,,,,,,
GUILDFORD BOROUGH COUNCIL,Renovations,1000554,Seville Developments,18/01/2022,30038887,462.38,0,Contractor Payments,,Invoice,BACS,No,09/12/2021 00:00,2021,10,4919,N40287,Electrical testing and smoke detectors,1233,Contractor Payments,,,,,,,,
GUILDFORD BOROUGH COUNCIL,Renovations,1000554,Seville Developments,18/01/2022,30038887,607.15,0,Contractor Payments,,Invoice,BACS,No,09/12/2021 00:00,2021,10,4919,N40287,Electrical testing and smoke detectors,1233,Contractor Payments,,,,,,,,
GUILDFORD BOROUGH COUNCIL,Renovations,1000554,Seville Developments,18/01/2022,30038887,1072.63,0,Contractor Payments,,Invoice,BACS,No,09/12/2021 00:00,2021,10,4919,N40287,Electrical testing and smoke detectors,1233,Contractor Payments,,,,,,,,
GUILDFORD BOROUGH COUNCIL,Renovations,1000554,Seville Developments,18/01/2022,30038887,1084.38,0,Contractor Payments,,Invoice,BACS,No,09/12/2021 00:00,2021,10,4919,N40287,Electrical testing and smoke detectors,1233,Contractor Payments,,,,,,,,
GUILDFORD BOROUGH COUNCIL,Renovations,1000554,Seville Developments,18/01/2022,30038887,1414.89,0,Contractor Payments,,Invoice,BACS,No,09/12/2021 00:00,2021,10,4919,N40287,Electrical testing and smoke detectors,1233,Contractor Payments,,,,,,,,
GUILDFORD BOROUGH COUNCIL,Renovations,1000554,Seville Developments,18/01/2022,30038887,353.72,0,Contractor Payments,,Invoice,BACS,No,09/12/2021 00:00,2021,10,4919,N40287,Electrical testing and smoke detectors,1233,Contractor Payments,,,,,,,,
GUILDFORD BOROUGH COUNCIL,Renovations,1000554,Seville Developments,18/01/2022,30038887,448.18,0,Contractor Payments,,Invoice,BACS,No,09/12/2021 00:00,2021,10,4919,N40287,Electrical testing and smoke detectors,1233,Contractor Payments,,,,,,,,
GUILDFORD BOROUGH COUNCIL,Renovations,1000554,Seville Developments,18/01/2022,30038887,569.41,0,Contractor Payments,,Invoice,BACS,No,09/12/2021 00:00,2021,10,4919,N40287,Electrical testing and smoke detectors,1233,Contractor Payments,,,,,,,,
GUILDFORD BOROUGH COUNCIL,Renovations,1000554,Seville Developments,18/01/2022,30038887,1127.85,0,Contractor Payments,,Invoice,BACS,No,09/12/2021 00:00,2021,10,4919,N40287,Electrical testing and smoke detectors,1233,Contractor Payments,,,,,,,,
GUILDFORD BOROUGH COUNCIL,Renovations,1000554,Seville Developments,18/01/2022,30038887,416.49,0,Contractor Payments,,Invoice,BACS,No,09/12/2021 00:00,2021,10,4919,N40287,Electrical testing and smoke detectors,1233,Contractor Payments,,,,,,,,
GUILDFORD BOROUGH COUNCIL,Renovations,1000554,Seville Developments,18/01/2022,30038887,755.68,0,Contractor Payments,,Invoice,BACS,No,09/12/2021 00:00,2021,10,4919,N40287,Electrical testing and smoke detectors,1233,Contractor Payments,,,,,,,,
GUILDFORD BOROUGH COUNCIL,Renovations,1000554,Seville Developments,18/01/2022,30038887,493.59,0,Contractor Payments,,Invoice,BACS,No,09/12/2021 00:00,2021,10,4919,N40287,Electrical testing and smoke detectors,1233,Contractor Payments,,,,,,,,
GUILDFORD BOROUGH COUNCIL,Renovations,1000554,Seville Developments,18/01/2022,30038887,292.35,0,Contractor Payments,,Invoice,BACS,No,09/12/2021 00:00,2021,10,4919,N40287,Electrical testing and smoke detectors,1233,Contractor Payments,,,,,,,,
GUILDFORD BOROUGH COUNCIL,Renovations,1000554,Seville Developments,18/01/2022,30038887,1312.83,0,Contractor Payments,,Invoice,BACS,No,09/12/2021 00:00,2021,10,4919,N40287,Electrical testing and smoke detectors,1233,Contractor Payments,,,,,,,,
GUILDFORD BOROUGH COUNCIL,Renovations,1000554,Seville Developments,18/01/2022,30038887,714.72,0,Contractor Payments,,Invoice,BACS,No,09/12/2021 00:00,2021,10,4919,N40287,Electrical testing and smoke detectors,1233,Contractor Payments,,,,,,,,
GUILDFORD BOROUGH COUNCIL,Renovations,1000554,Seville Developments,18/01/2022,30038887,397.63,0,Contractor Payments,,Invoice,BACS,No,09/12/2021 00:00,2021,10,4919,N40287,Electrical testing and smoke detectors,1233,Contractor Payments,,,,,,,,
GUILDFORD BOROUGH COUNCIL,Renovations,1000554,Seville Developments,18/01/2022,30038887,728.65,0,Contractor Payments,,Invoice,BACS,No,09/12/2021 00:00,2021,10,4919,N40287,Electrical testing and smoke detectors,1233,Contractor Payments,,,,,,,,
GUILDFORD BOROUGH COUNCIL,Renovations,1000554,Seville Developments,18/01/2022,30038887,900.67,0,Contractor Payments,,Invoice,BACS,No,09/12/2021 00:00,2021,10,4919,N40287,Electrical testing and smoke detectors,1233,Contractor Payments,,,,,,,,
GUILDFORD BOROUGH COUNCIL,Renovations,1000554,Seville Developments,18/01/2022,30038887,368.44,0,Contractor Payments,,Invoice,BACS,No,09/12/2021 00:00,2021,10,4919,N40287,Electrical testing and smoke detectors,1233,Contractor Payments,,,,,,,,
GUILDFORD BOROUGH COUNCIL,Renovations,1000554,Seville Developments,18/01/2022,30038887,344.84,0,Contractor Payments,,Invoice,BACS,No,09/12/2021 00:00,2021,10,4919,N40287,Electrical testing and smoke detectors,1233,Contractor Payments,,,,,,,,
GUILDFORD BOROUGH COUNCIL,Renovations,1000554,Seville Developments,18/01/2022,30038887,538.52,0,Contractor Payments,,Invoice,BACS,No,09/12/2021 00:00,2021,10,4919,N40287,Electrical testing and smoke detectors,1233,Contractor Payments,,,,,,,,
GUILDFORD BOROUGH COUNCIL,Renovations,1000554,Seville Developments,18/01/2022,30038887,556.99,0,Contractor Payments,,Invoice,BACS,No,09/12/2021 00:00,2021,10,4919,N40287,Electrical testing and smoke detectors,1233,Contractor Payments,,,,,,,,
GUILDFORD BOROUGH COUNCIL,Renovations,1000554,Seville Developments,18/01/2022,30038887,368.08,0,Contractor Payments,,Invoice,BACS,No,09/12/2021 00:00,2021,10,4919,N40287,Electrical testing and smoke detectors,1233,Contractor Payments,,,,,,,,
GUILDFORD BOROUGH COUNCIL,Renovations,1000554,Seville Developments,18/01/2022,30038887,375.61,0,Contractor Payments,,Invoice,BACS,No,09/12/2021 00:00,2021,10,4919,N40287,Electrical testing and smoke detectors,1233,Contractor Payments,,,,,,,,
GUILDFORD BOROUGH COUNCIL,Renovations,1000554,Seville Developments,18/01/2022,30038887,368.08,0,Contractor Payments,,Invoice,BACS,No,09/12/2021 00:00,2021,10,4919,N40287,Electrical testing and smoke detectors,1233,Contractor Payments,,,,,,,,
GUILDFORD BOROUGH COUNCIL,Renovations,1000554,Seville Developments,18/01/2022,30038887,368.08,0,Contractor Payments,,Invoice,BACS,No,09/12/2021 00:00,2021,10,4919,N40287,Electrical testing and smoke detectors,1233,Contractor Payments,,,,,,,,
GUILDFORD BOROUGH COUNCIL,Renovations,1000554,Seville Developments,18/01/2022,30038887,375.61,0,Contractor Payments,,Invoice,BACS,No,09/12/2021 00:00,2021,10,4919,N40287,Electrical testing and smoke detectors,1233,Contractor Payments,,,,,,,,
GUILDFORD BOROUGH COUNCIL,Renovations,1000554,Seville Developments,18/01/2022,30038887,368.08,0,Contractor Payments,,Invoice,BACS,No,09/12/2021 00:00,2021,10,4919,N40287,Electrical testing and smoke detectors,1233,Contractor Payments,,,,,,,,
GUILDFORD BOROUGH COUNCIL,Renovations,1000554,Seville Developments,18/01/2022,30038887,428.66,0,Contractor Payments,,Invoice,BACS,No,09/12/2021 00:00,2021,10,4919,N40287,Electrical testing and smoke detectors,1233,Contractor Payments,,,,,,,,
GUILDFORD BOROUGH COUNCIL,Renovations,1000554,Seville Developments,18/01/2022,30038887,428.66,0,Contractor Payments,,Invoice,BACS,No,09/12/2021 00:00,2021,10,4919,N40287,Electrical testing and smoke detectors,1233,Contractor Payments,,,,,,,,
GUILDFORD BOROUGH COUNCIL,Renovations,1000554,Seville Developments,22/02/2022,30042087,1520.44,0,Contractor Payments,,Invoice,BACS,No,10/01/2022 00:00,2021,11,5120,N40287,Electrical testing and smoke detectors,1233,Contractor Payments,,,,,,,,
GUILDFORD BOROUGH COUNCIL,Renovations,1000554,Seville Developments,22/02/2022,30042087,541.61,0,Contractor Payments,,Invoice,BACS,No,10/01/2022 00:00,2021,11,5120,N40287,Electrical testing and smoke detectors,1233,Contractor Payments,,,,,,,,
GUILDFORD BOROUGH COUNCIL,Renovations,1000554,Seville Developments,22/02/2022,30042087,254.09,0,Contractor Payments,,Invoice,BACS,No,10/01/2022 00:00,2021,11,5120,N40287,Electrical testing and smoke detectors,1233,Contractor Payments,,,,,,,,
GUILDFORD BOROUGH COUNCIL,Renovations,1000554,Seville Developments,22/02/2022,30042087,606.25,0,Contractor Payments,,Invoice,BACS,No,10/01/2022 00:00,2021,11,5120,N40287,Electrical testing and smoke detectors,1233,Contractor Payments,,,,,,,,
GUILDFORD BOROUGH COUNCIL,Renovations,1000554,Seville Developments,22/02/2022,30042087,290.95,0,Contractor Payments,,Invoice,BACS,No,10/01/2022 00:00,2021,11,5120,N40287,Electrical testing and smoke detectors,1233,Contractor Payments,,,,,,,,
GUILDFORD BOROUGH COUNCIL,Renovations,1000554,Seville Developments,22/02/2022,30042087,332.22,0,Contractor Payments,,Invoice,BACS,No,10/01/2022 00:00,2021,11,5120,N40287,Electrical testing and smoke detectors,1233,Contractor Payments,,,,,,,,
GUILDFORD BOROUGH COUNCIL,Renovations,1000554,Seville Developments,22/02/2022,30042087,421.93,0,Contractor Payments,,Invoice,BACS,No,10/01/2022 00:00,2021,11,5120,N40287,Electrical testing and smoke detectors,1233,Contractor Payments,,,,,,,,
GUILDFORD BOROUGH COUNCIL,Renovations,1000554,Seville Developments,22/02/2022,30042087,313.33,0,Contractor Payments,,Invoice,BACS,No,10/01/2022 00:00,2021,11,5120,N40287,Electrical testing and smoke detectors,1233,Contractor Payments,,,,,,,,
GUILDFORD BOROUGH COUNCIL,Renovations,1000554,Seville Developments,22/02/2022,30042087,257.12,0,Contractor Payments,,Invoice,BACS,No,10/01/2022 00:00,2021,11,5120,N40287,Electrical testing and smoke detectors,1233,Contractor Payments,,,,,,,,
GUILDFORD BOROUGH COUNCIL,Renovations,1000554,Seville Developments,22/02/2022,30042087,527.37,0,Contractor Payments,,Invoice,BACS,No,10/01/2022 00:00,2021,11,5120,N40287,Electrical testing and smoke detectors,1233,Contractor Payments,,,,,,,,
GUILDFORD BOROUGH COUNCIL,Renovations,1000554,Seville Developments,22/02/2022,30042087,256.32,0,Contractor Payments,,Invoice,BACS,No,10/01/2022 00:00,2021,11,5120,N40287,Electrical testing and smoke detectors,1233,Contractor Payments,,,,,,,,
GUILDFORD BOROUGH COUNCIL,Renovations,1000554,Seville Developments,22/02/2022,30042087,611.02,0,Contractor Payments,,Invoice,BACS,No,10/01/2022 00:00,2021,11,5120,N40287,Electrical testing and smoke detectors,1233,Contractor Payments,,,,,,,,
GUILDFORD BOROUGH COUNCIL,Renovations,1000554,Seville Developments,22/02/2022,30042087,281.62,0,Contractor Payments,,Invoice,BACS,No,10/01/2022 00:00,2021,11,5120,N40287,Electrical testing and smoke detectors,1233,Contractor Payments,,,,,,,,
GUILDFORD BOROUGH COUNCIL,Renovations,1000554,Seville Developments,22/02/2022,30042087,534.9,0,Contractor Payments,,Invoice,BACS,No,10/01/2022 00:00,2021,11,5120,N40287,Electrical testing and smoke detectors,1233,Contractor Payments,,,,,,,,
GUILDFORD BOROUGH COUNCIL,Renovations,1000554,Seville Developments,22/02/2022,30042087,551.27,0,Contractor Payments,,Invoice,BACS,No,10/01/2022 00:00,2021,11,5120,N40287,Electrical testing and smoke detectors,1233,Contractor Payments,,,,,,,,
GUILDFORD BOROUGH COUNCIL,Renovations,1000554,Seville Developments,22/02/2022,30042087,551.27,0,Contractor Payments,,Invoice,BACS,No,10/01/2022 00:00,2021,11,5120,N40287,Electrical testing and smoke detectors,1233,Contractor Payments,,,,,,,,
GUILDFORD BOROUGH COUNCIL,Renovations,1000554,Seville Developments,22/02/2022,30042087,265.5,0,Contractor Payments,,Invoice,BACS,No,10/01/2022 00:00,2021,11,5120,N40287,Electrical testing and smoke detectors,1233,Contractor Payments,,,,,,,,
GUILDFORD BOROUGH COUNCIL,Renovations,1000554,Seville Developments,22/02/2022,30042087,267.83,0,Contractor Payments,,Invoice,BACS,No,10/01/2022 00:00,2021,11,5120,N40287,Electrical testing and smoke detectors,1233,Contractor Payments,,,,,,,,
GUILDFORD BOROUGH COUNCIL,Renovations,1000554,Seville Developments,22/02/2022,30042087,659.3,0,Contractor Payments,,Invoice,BACS,No,10/01/2022 00:00,2021,11,5120,N40287,Electrical testing and smoke detectors,1233,Contractor Payments,,,,,,,,
GUILDFORD BOROUGH COUNCIL,Renovations,1000554,Seville Developments,22/02/2022,30042087,1311.94,0,Contractor Payments,,Invoice,BACS,No,10/01/2022 00:00,2021,11,5120,N40287,Electrical testing and smoke detectors,1233,Contractor Payments,,,,,,,,
GUILDFORD BOROUGH COUNCIL,Renovations,1000554,Seville Developments,22/02/2022,30042087,873.54,0,Contractor Payments,,Invoice,BACS,No,10/01/2022 00:00,2021,11,5120,N40287,Electrical testing and smoke detectors,1233,Contractor Payments,,,,,,,,
GUILDFORD BOROUGH COUNCIL,Renovations,1000554,Seville Developments,22/02/2022,30042087,1642.86,0,Contractor Payments,,Invoice,BACS,No,10/01/2022 00:00,2021,11,5120,N40287,Electrical testing and smoke detectors,1233,Contractor Payments,,,,,,,,
GUILDFORD BOROUGH COUNCIL,Renovations,1000554,Seville Developments,22/02/2022,30042087,555.65,0,Contractor Payments,,Invoice,BACS,No,10/01/2022 00:00,2021,11,5120,N40287,Electrical testing and smoke detectors,1233,Contractor Payments,,,,,,,,
GUILDFORD BOROUGH COUNCIL,Renovations,1000554,Seville Developments,22/02/2022,30042087,524.03,0,Contractor Payments,,Invoice,BACS,No,10/01/2022 00:00,2021,11,5120,N40287,Electrical testing and smoke detectors,1233,Contractor Payments,,,,,,,,
GUILDFORD BOROUGH COUNCIL,Renovations,1000554,Seville Developments,22/02/2022,30042087,448.83,0,Contractor Payments,,Invoice,BACS,No,10/01/2022 00:00,2021,11,5120,N40287,Electrical testing and smoke detectors,1233,Contractor Payments,,,,,,,,
GUILDFORD BOROUGH COUNCIL,Renovations,1000554,Seville Developments,22/02/2022,30042087,873.54,0,Contractor Payments,,Invoice,BACS,No,10/01/2022 00:00,2021,11,5120,N40287,Electrical testing and smoke detectors,1233,Contractor Payments,,,,,,,,
GUILDFORD BOROUGH COUNCIL,Renovations,1000554,Seville Developments,22/02/2022,30042087,577.29,0,Contractor Payments,,Invoice,BACS,No,10/01/2022 00:00,2021,11,5120,N40287,Electrical testing and smoke detectors,1233,Contractor Payments,,,,,,,,
GUILDFORD BOROUGH COUNCIL,Renovations,1000554,Seville Developments,22/02/2022,30042087,368.08,0,Contractor Payments,,Invoice,BACS,No,10/01/2022 00:00,2021,11,5120,N40287,Electrical testing and smoke detectors,1233,Contractor Payments,,,,,,,,
GUILDFORD BOROUGH COUNCIL,Renovations,1000554,Seville Developments,22/02/2022,30042087,926.59,0,Contractor Payments,,Invoice,BACS,No,10/01/2022 00:00,2021,11,5120,N40287,Electrical testing and smoke detectors,1233,Contractor Payments,,,,,,,,
GUILDFORD BOROUGH COUNCIL,Renovations,1000554,Seville Developments,22/02/2022,30042087,1030.29,0,Contractor Payments,,Invoice,BACS,No,10/01/2022 00:00,2021,11,5120,N40287,Electrical testing and smoke detectors,1233,Contractor Payments,,,,,,,,
GUILDFORD BOROUGH COUNCIL,Renovations,1000554,Seville Developments,22/02/2022,30042087,830.77,0,Contractor Payments,,Invoice,BACS,No,10/01/2022 00:00,2021,11,5120,N40287,Electrical testing and smoke detectors,1233,Contractor Payments,,,,,,,,
GUILDFORD BOROUGH COUNCIL,Renovations,1000554,Seville Developments,22/02/2022,30042087,892.79,0,Contractor Payments,,Invoice,BACS,No,10/01/2022 00:00,2021,11,5120,N40287,Electrical testing and smoke detectors,1233,Contractor Payments,,,,,,,,
GUILDFORD BOROUGH COUNCIL,Renovations,1000554,Seville Developments,22/02/2022,30042087,1356.14,0,Contractor Payments,,Invoice,BACS,No,10/01/2022 00:00,2021,11,5120,N40287,Electrical testing and smoke detectors,1233,Contractor Payments,,,,,,,,
GUILDFORD BOROUGH COUNCIL,Renovations,1000554,Seville Developments,22/02/2022,30042087,555.57,0,Contractor Payments,,Invoice,BACS,No,10/01/2022 00:00,2021,11,5120,N40287,Electrical testing and smoke detectors,1233,Contractor Payments,,,,,,,,
GUILDFORD BOROUGH COUNCIL,Renovations,1000554,Seville Developments,22/02/2022,30042087,476.31,0,Contractor Payments,,Invoice,BACS,No,10/01/2022 00:00,2021,11,5120,N40287,Electrical testing and smoke detectors,1233,Contractor Payments,,,,,,,,
GUILDFORD BOROUGH COUNCIL,Renovations,1000554,Seville Developments,22/02/2022,30042087,726.07,0,Contractor Payments,,Invoice,BACS,No,10/01/2022 00:00,2021,11,5120,N40287,Electrical testing and smoke detectors,1233,Contractor Payments,,,,,,,,
GUILDFORD BOROUGH COUNCIL,Renovations,1000554,Seville Developments,22/02/2022,30042087,353.02,0,Contractor Payments,,Invoice,BACS,No,10/01/2022 00:00,2021,11,5120,N40287,Electrical testing and smoke detectors,1233,Contractor Payments,,,,,,,,
GUILDFORD BOROUGH COUNCIL,Renovations,1000554,Seville Developments,22/02/2022,30042087,1122.85,0,Contractor Payments,,Invoice,BACS,No,10/01/2022 00:00,2021,11,5120,N40287,Electrical testing and smoke detectors,1233,Contractor Payments,,,,,,,,
GUILDFORD BOROUGH COUNCIL,Renovations,1000554,Seville Developments,22/02/2022,30042087,619.34,0,Contractor Payments,,Invoice,BACS,No,10/01/2022 00:00,2021,11,5120,N40287,Electrical testing and smoke detectors,1233,Contractor Payments,,,,,,,,
GUILDFORD BOROUGH COUNCIL,Renovations,1000554,Seville Developments,22/02/2022,30042087,510.04,0,Contractor Payments,,Invoice,BACS,No,10/01/2022 00:00,2021,11,5120,N40287,Electrical testing and smoke detectors,1233,Contractor Payments,,,,,,,,
GUILDFORD BOROUGH COUNCIL,Renovations,1000554,Seville Developments,22/02/2022,30042087,334.65,0,Contractor Payments,,Invoice,BACS,No,10/01/2022 00:00,2021,11,5120,N40287,Electrical testing and smoke detectors,1233,Contractor Payments,,,,,,,,
GUILDFORD BOROUGH COUNCIL,Renovations,1000554,Seville Developments,22/02/2022,30042087,1108.12,0,Contractor Payments,,Invoice,BACS,No,10/01/2022 00:00,2021,11,5120,N40287,Electrical testing and smoke detectors,1233,Contractor Payments,,,,,,,,
GUILDFORD BOROUGH COUNCIL,Renovations,1000554,Seville Developments,22/02/2022,30042087,372.66,0,Contractor Payments,,Invoice,BACS,No,10/01/2022 00:00,2021,11,5120,N40287,Electrical testing and smoke detectors,1233,Contractor Payments,,,,,,,,
GUILDFORD BOROUGH COUNCIL,Renovations,1000554,Seville Developments,22/02/2022,30042087,797.14,0,Contractor Payments,,Invoice,BACS,No,10/01/2022 00:00,2021,11,5120,N40287,Electrical testing and smoke detectors,1233,Contractor Payments,,,,,,,,
GUILDFORD BOROUGH COUNCIL,Renovations,1000554,Seville Developments,22/02/2022,30042087,555.65,0,Contractor Payments,,Invoice,BACS,No,10/01/2022 00:00,2021,11,5120,N40287,Electrical testing and smoke detectors,1233,Contractor Payments,,,,,,,,
GUILDFORD BOROUGH COUNCIL,Renovations,1000554,Seville Developments,22/02/2022,30042087,593.67,0,Contractor Payments,,Invoice,BACS,No,10/01/2022 00:00,2021,11,5120,N40287,Electrical testing and smoke detectors,1233,Contractor Payments,,,,,,,,
GUILDFORD BOROUGH COUNCIL,Renovations,1000554,Seville Developments,22/02/2022,30042087,1003.51,0,Contractor Payments,,Invoice,BACS,No,10/01/2022 00:00,2021,11,5120,N40287,Electrical testing and smoke detectors,1233,Contractor Payments,,,,,,,,
GUILDFORD BOROUGH COUNCIL,Renovations,1000554,Seville Developments,22/02/2022,30042087,372.66,0,Contractor Payments,,Invoice,BACS,No,10/01/2022 00:00,2021,11,5120,N40287,Electrical testing and smoke detectors,1233,Contractor Payments,,,,,,,,
GUILDFORD BOROUGH COUNCIL,Renovations,1000554,Seville Developments,22/02/2022,30042087,1212.4,0,Contractor Payments,,Invoice,BACS,No,10/01/2022 00:00,2021,11,5120,N40287,Electrical testing and smoke detectors,1233,Contractor Payments,,,,,,,,
GUILDFORD BOROUGH COUNCIL,Renovations,1000554,Seville Developments,22/02/2022,30042087,881.97,0,Contractor Payments,,Invoice,BACS,No,10/01/2022 00:00,2021,11,5120,N40287,Electrical testing and smoke detectors,1233,Contractor Payments,,,,,,,,
GUILDFORD BOROUGH COUNCIL,Renovations,1000554,Seville Developments,22/02/2022,30042087,532.8,0,Contractor Payments,,Invoice,BACS,No,10/01/2022 00:00,2021,11,5120,N40287,Electrical testing and smoke detectors,1233,Contractor Payments,,,,,,,,
GUILDFORD BOROUGH COUNCIL,Renovations,1000554,Seville Developments,22/02/2022,30042087,1319.19,0,Contractor Payments,,Invoice,BACS,No,10/01/2022 00:00,2021,11,5120,N40287,Electrical testing and smoke detectors,1233,Contractor Payments,,,,,,,,
GUILDFORD BOROUGH COUNCIL,Renovations,1000554,Seville Developments,22/02/2022,30042087,477.12,0,Contractor Payments,,Invoice,BACS,No,10/01/2022 00:00,2021,11,5120,N40287,Electrical testing and smoke detectors,1233,Contractor Payments,,,,,,,,
GUILDFORD BOROUGH COUNCIL,Renovations,1000554,Seville Developments,22/02/2022,30042087,1226.56,0,Contractor Payments,,Invoice,BACS,No,10/01/2022 00:00,2021,11,5120,N40287,Electrical testing and smoke detectors,1233,Contractor Payments,,,,,,,,
GUILDFORD BOROUGH COUNCIL,Renovations,1000554,Seville Developments,22/02/2022,30042087,1082.06,0,Contractor Payments,,Invoice,BACS,No,10/01/2022 00:00,2021,11,5120,N40287,Electrical testing and smoke detectors,1233,Contractor Payments,,,,,,,,
GUILDFORD BOROUGH COUNCIL,Renovations,1000554,Seville Developments,22/02/2022,30042087,1222.05,0,Contractor Payments,,Invoice,BACS,No,10/01/2022 00:00,2021,11,5120,N40287,Electrical testing and smoke detectors,1233,Contractor Payments,,,,,,,,
GUILDFORD BOROUGH COUNCIL,Renovations,1000554,Seville Developments,22/02/2022,30042087,257.12,0,Contractor Payments,,Invoice,BACS,No,10/01/2022 00:00,2021,11,5120,N40287,Electrical testing and smoke detectors,1233,Contractor Payments,,,,,,,,
GUILDFORD BOROUGH COUNCIL,Renovations,1000554,Seville Developments,22/02/2022,30042087,401.22,0,Contractor Payments,,Invoice,BACS,No,10/01/2022 00:00,2021,11,5120,N40287,Electrical testing and smoke detectors,1233,Contractor Payments,,,,,,,,
GUILDFORD BOROUGH COUNCIL,Renovations,1000554,Seville Developments,22/02/2022,30042087,401.22,0,Contractor Payments,,Invoice,BACS,No,10/01/2022 00:00,2021,11,5120,N40287,Electrical testing and smoke detectors,1233,Contractor Payments,,,,,,,,
GUILDFORD BOROUGH COUNCIL,Renovations,1000554,Seville Developments,22/02/2022,30042087,1149.33,0,Contractor Payments,,Invoice,BACS,No,10/01/2022 00:00,2021,11,5120,N40287,Electrical testing and smoke detectors,1233,Contractor Payments,,,,,,,,
GUILDFORD BOROUGH COUNCIL,Renovations,1000554,Seville Developments,22/02/2022,30042087,1359.85,0,Contractor Payments,,Invoice,BACS,No,10/01/2022 00:00,2021,11,5120,N40287,Electrical testing and smoke detectors,1233,Contractor Payments,,,,,,,,
GUILDFORD BOROUGH COUNCIL,Renovations,1000554,Seville Developments,22/02/2022,30042087,401.22,0,Contractor Payments,,Invoice,BACS,No,10/01/2022 00:00,2021,11,5120,N40287,Electrical testing and smoke detectors,1233,Contractor Payments,,,,,,,,
GUILDFORD BOROUGH COUNCIL,Renovations,1000554,Seville Developments,22/02/2022,30042087,987.23,0,Contractor Payments,,Invoice,BACS,No,10/01/2022 00:00,2021,11,5120,N40287,Electrical testing and smoke detectors,1233,Contractor Payments,,,,,,,,
GUILDFORD BOROUGH COUNCIL,Renovations,1000554,Seville Developments,22/02/2022,30042086,3424,0,Contractor Payments,,Invoice,BACS,No,17/01/2022 00:00,2021,11,5116,N40287,Electrical testing and smoke detectors,1233,Contractor Payments,,,,,,,,
GUILDFORD BOROUGH COUNCIL,Renovations,1000554,Seville Developments,22/02/2022,30042086,18915.79,0,Contractor Payments,,Invoice,BACS,No,17/01/2022 00:00,2021,11,5116,N40287,Electrical testing and smoke detectors,1233,Contractor Payments,,,,,,,,
GUILDFORD BOROUGH COUNCIL,Renovations,1000554,Seville Developments,22/02/2022,30042086,435,0,Contractor Payments,,Invoice,BACS,No,17/01/2022 00:00,2021,11,5116,N40287,Electrical testing and smoke detectors,1233,Contractor Payments,,,,,,,,
GUILDFORD BOROUGH COUNCIL,Renovations,1000554,Seville Developments,10/03/2022,30043751,444.14,0,Contractor Payments,,Invoice,BACS,No,21/02/2022 00:00,2021,12,5219,N40287,Electrical testing and smoke detectors,1233,Contractor Payments,,,,,,,,
GUILDFORD BOROUGH COUNCIL,Renovations,1000554,Seville Developments,10/03/2022,30043751,287.47,0,Contractor Payments,,Invoice,BACS,No,21/02/2022 00:00,2021,12,5219,N40287,Electrical testing and smoke detectors,1233,Contractor Payments,,,,,,,,
GUILDFORD BOROUGH COUNCIL,Renovations,1000554,Seville Developments,10/03/2022,30043751,999.78,0,Contractor Payments,,Invoice,BACS,No,21/02/2022 00:00,2021,12,5219,N40287,Electrical testing and smoke detectors,1233,Contractor Payments,,,,,,,,
GUILDFORD BOROUGH COUNCIL,Renovations,1000554,Seville Developments,10/03/2022,30043751,1767.9,0,Contractor Payments,,Invoice,BACS,No,21/02/2022 00:00,2021,12,5219,N40287,Electrical testing and smoke detectors,1233,Contractor Payments,,,,,,,,
GUILDFORD BOROUGH COUNCIL,Renovations,1000554,Seville Developments,10/03/2022,30043751,1245.3,0,Contractor Payments,,Invoice,BACS,No,21/02/2022 00:00,2021,12,5219,N40287,Electrical testing and smoke detectors,1233,Contractor Payments,,,,,,,,
GUILDFORD BOROUGH COUNCIL,Renovations,1000554,Seville Developments,10/03/2022,30043751,1018.44,0,Contractor Payments,,Invoice,BACS,No,21/02/2022 00:00,2021,12,5219,N40287,Electrical testing and smoke detectors,1233,Contractor Payments,,,,,,,,
GUILDFORD BOROUGH COUNCIL,Renovations,1000554,Seville Developments,10/03/2022,30043751,1247.15,0,Contractor Payments,,Invoice,BACS,No,21/02/2022 00:00,2021,12,5219,N40287,Electrical testing and smoke detectors,1233,Contractor Payments,,,,,,,,
GUILDFORD BOROUGH COUNCIL,Renovations,1000554,Seville Developments,10/03/2022,30043751,961.59,0,Contractor Payments,,Invoice,BACS,No,21/02/2022 00:00,2021,12,5219,N40287,Electrical testing and smoke detectors,1233,Contractor Payments,,,,,,,,
GUILDFORD BOROUGH COUNCIL,Renovations,1000554,Seville Developments,10/03/2022,30043751,741.05,0,Contractor Payments,,Invoice,BACS,No,21/02/2022 00:00,2021,12,5219,N40287,Electrical testing and smoke detectors,1233,Contractor Payments,,,,,,,,
GUILDFORD BOROUGH COUNCIL,Renovations,1000554,Seville Developments,10/03/2022,30043751,728.64,0,Contractor Payments,,Invoice,BACS,No,21/02/2022 00:00,2021,12,5219,N40287,Electrical testing and smoke detectors,1233,Contractor Payments,,,,,,,,
GUILDFORD BOROUGH COUNCIL,Renovations,1000554,Seville Developments,10/03/2022,30043751,1395.52,0,Contractor Payments,,Invoice,BACS,No,21/02/2022 00:00,2021,12,5219,N40287,Electrical testing and smoke detectors,1233,Contractor Payments,,,,,,,,
GUILDFORD BOROUGH COUNCIL,Renovations,1000554,Seville Developments,10/03/2022,30043751,1153.25,0,Contractor Payments,,Invoice,BACS,No,21/02/2022 00:00,2021,12,5219,N40287,Electrical testing and smoke detectors,1233,Contractor Payments,,,,,,,,
GUILDFORD BOROUGH COUNCIL,Renovations,1000554,Seville Developments,10/03/2022,30043751,897.87,0,Contractor Payments,,Invoice,BACS,No,21/02/2022 00:00,2021,12,5219,N40287,Electrical testing and smoke detectors,1233,Contractor Payments,,,,,,,,
GUILDFORD BOROUGH COUNCIL,Renovations,1000554,Seville Developments,10/03/2022,30043751,985.27,0,Contractor Payments,,Invoice,BACS,No,21/02/2022 00:00,2021,12,5219,N40287,Electrical testing and smoke detectors,1233,Contractor Payments,,,,,,,,
GUILDFORD BOROUGH COUNCIL,Renovations,1000554,Seville Developments,10/03/2022,30043751,586.63,0,Contractor Payments,,Invoice,BACS,No,21/02/2022 00:00,2021,12,5219,N40287,Electrical testing and smoke detectors,1233,Contractor Payments,,,,,,,,
GUILDFORD BOROUGH COUNCIL,Renovations,1000554,Seville Developments,10/03/2022,30043751,710.76,0,Contractor Payments,,Invoice,BACS,No,21/02/2022 00:00,2021,12,5219,N40287,Electrical testing and smoke detectors,1233,Contractor Payments,,,,,,,,
GUILDFORD BOROUGH COUNCIL,Renovations,1000554,Seville Developments,10/03/2022,30043751,948.22,0,Contractor Payments,,Invoice,BACS,No,21/02/2022 00:00,2021,12,5219,N40287,Electrical testing and smoke detectors,1233,Contractor Payments,,,,,,,,
GUILDFORD BOROUGH COUNCIL,Renovations,1000554,Seville Developments,10/03/2022,30043751,1069.83,0,Contractor Payments,,Invoice,BACS,No,21/02/2022 00:00,2021,12,5219,N40287,Electrical testing and smoke detectors,1233,Contractor Payments,,,,,,,,
GUILDFORD BOROUGH COUNCIL,Renovations,1000554,Seville Developments,10/03/2022,30043751,1160.6,0,Contractor Payments,,Invoice,BACS,No,21/02/2022 00:00,2021,12,5219,N40287,Electrical testing and smoke detectors,1233,Contractor Payments,,,,,,,,
GUILDFORD BOROUGH COUNCIL,Renovations,1000554,Seville Developments,10/03/2022,30043751,936.1,0,Contractor Payments,,Invoice,BACS,No,21/02/2022 00:00,2021,12,5219,N40287,Electrical testing and smoke detectors,1233,Contractor Payments,,,,,,,,
GUILDFORD BOROUGH COUNCIL,Renovations,1000554,Seville Developments,10/03/2022,30043751,873.54,0,Contractor Payments,,Invoice,BACS,No,21/02/2022 00:00,2021,12,5219,N40287,Electrical testing and smoke detectors,1233,Contractor Payments,,,,,,,,
GUILDFORD BOROUGH COUNCIL,Renovations,1000554,Seville Developments,10/03/2022,30043751,873.54,0,Contractor Payments,,Invoice,BACS,No,21/02/2022 00:00,2021,12,5219,N40287,Electrical testing and smoke detectors,1233,Contractor Payments,,,,,,,,
GUILDFORD BOROUGH COUNCIL,Renovations,1000554,Seville Developments,10/03/2022,30043751,974.28,0,Contractor Payments,,Invoice,BACS,No,21/02/2022 00:00,2021,12,5219,N40287,Electrical testing and smoke detectors,1233,Contractor Payments,,,,,,,,
GUILDFORD BOROUGH COUNCIL,Renovations,1000554,Seville Developments,10/03/2022,30043751,736.85,0,Contractor Payments,,Invoice,BACS,No,21/02/2022 00:00,2021,12,5219,N40287,Electrical testing and smoke detectors,1233,Contractor Payments,,,,,,,,
GUILDFORD BOROUGH COUNCIL,Renovations,1000554,Seville Developments,10/03/2022,30043751,1126.61,0,Contractor Payments,,Invoice,BACS,No,21/02/2022 00:00,2021,12,5219,N40287,Electrical testing and smoke detectors,1233,Contractor Payments,,,,,,,,
GUILDFORD BOROUGH COUNCIL,Renovations,1000554,Seville Developments,10/03/2022,30043751,1000.03,0,Contractor Payments,,Invoice,BACS,No,21/02/2022 00:00,2021,12,5219,N40287,Electrical testing and smoke detectors,1233,Contractor Payments,,,,,,,,
GUILDFORD BOROUGH COUNCIL,Renovations,1000554,Seville Developments,10/03/2022,30043751,1132.61,0,Contractor Payments,,Invoice,BACS,No,21/02/2022 00:00,2021,12,5219,N40287,Electrical testing and smoke detectors,1233,Contractor Payments,,,,,,,,
GUILDFORD BOROUGH COUNCIL,Renovations,1000554,Seville Developments,10/03/2022,30043751,1747.48,0,Contractor Payments,,Invoice,BACS,No,21/02/2022 00:00,2021,12,5219,N40287,Electrical testing and smoke detectors,1233,Contractor Payments,,,,,,,,
GUILDFORD BOROUGH COUNCIL,Renovations,1000554,Seville Developments,10/03/2022,30043751,1260.76,0,Contractor Payments,,Invoice,BACS,No,21/02/2022 00:00,2021,12,5219,N40287,Electrical testing and smoke detectors,1233,Contractor Payments,,,,,,,,
GUILDFORD BOROUGH COUNCIL,Renovations,1000554,Seville Developments,10/03/2022,30043751,1046.6,0,Contractor Payments,,Invoice,BACS,No,21/02/2022 00:00,2021,12,5219,N40287,Electrical testing and smoke detectors,1233,Contractor Payments,,,,,,,,
GUILDFORD BOROUGH COUNCIL,Renovations,1000554,Seville Developments,10/03/2022,30043751,927.3,0,Contractor Payments,,Invoice,BACS,No,21/02/2022 00:00,2021,12,5219,N40287,Electrical testing and smoke detectors,1233,Contractor Payments,,,,,,,,
GUILDFORD BOROUGH COUNCIL,Renovations,1000554,Seville Developments,10/03/2022,30043751,866.76,0,Contractor Payments,,Invoice,BACS,No,21/02/2022 00:00,2021,12,5219,N40287,Electrical testing and smoke detectors,1233,Contractor Payments,,,,,,,,
GUILDFORD BOROUGH COUNCIL,Renovations,1000554,Seville Developments,10/03/2022,30043751,807.67,0,Contractor Payments,,Invoice,BACS,No,21/02/2022 00:00,2021,12,5219,N40287,Electrical testing and smoke detectors,1233,Contractor Payments,,,,,,,,
GUILDFORD BOROUGH COUNCIL,Renovations,1000554,Seville Developments,10/03/2022,30043751,1157.35,0,Contractor Payments,,Invoice,BACS,No,21/02/2022 00:00,2021,12,5219,N40287,Electrical testing and smoke detectors,1233,Contractor Payments,,,,,,,,
GUILDFORD BOROUGH COUNCIL,Renovations,1000554,Seville Developments,10/03/2022,30043751,860.96,0,Contractor Payments,,Invoice,BACS,No,21/02/2022 00:00,2021,12,5219,N40287,Electrical testing and smoke detectors,1233,Contractor Payments,,,,,,,,
GUILDFORD BOROUGH COUNCIL,Renovations,1000554,Seville Developments,10/03/2022,30043751,1305.42,0,Contractor Payments,,Invoice,BACS,No,21/02/2022 00:00,2021,12,5219,N40287,Electrical testing and smoke detectors,1233,Contractor Payments,,,,,,,,
GUILDFORD BOROUGH COUNCIL,Renovations,1000554,Seville Developments,10/03/2022,30043751,1066.2,0,Contractor Payments,,Invoice,BACS,No,21/02/2022 00:00,2021,12,5219,N40287,Electrical testing and smoke detectors,1233,Contractor Payments,,,,,,,,
GUILDFORD BOROUGH COUNCIL,Renovations,1000554,Seville Developments,10/03/2022,30043751,1439.46,0,Contractor Payments,,Invoice,BACS,No,21/02/2022 00:00,2021,12,5219,N40287,Electrical testing and smoke detectors,1233,Contractor Payments,,,,,,,,
GUILDFORD BOROUGH COUNCIL,Renovations,1000554,Seville Developments,10/03/2022,30043751,1430.97,0,Contractor Payments,,Invoice,BACS,No,21/02/2022 00:00,2021,12,5219,N40287,Electrical testing and smoke detectors,1233,Contractor Payments,,,,,,,,
GUILDFORD BOROUGH COUNCIL,Renovations,1000554,Seville Developments,10/03/2022,30043751,435,0,Contractor Payments,,Invoice,BACS,No,21/02/2022 00:00,2021,12,5219,N40287,Electrical testing and smoke detectors,1233,Contractor Payments,,,,,,,,
GUILDFORD BOROUGH COUNCIL,Renovations,1000554,Seville Developments,10/03/2022,30043751,4728.95,0,Contractor Payments,,Invoice,BACS,No,21/02/2022 00:00,2021,12,5219,N40287,Electrical testing and smoke detectors,1233,Contractor Payments,,,,,,,,
GUILDFORD BOROUGH COUNCIL,Renovations,1000554,Seville Developments,10/03/2022,30043751,4728.95,0,Contractor Payments,,Invoice,BACS,No,21/02/2022 00:00,2021,12,5219,N40287,Electrical testing and smoke detectors,1233,Contractor Payments,,,,,,,,
GUILDFORD BOROUGH COUNCIL,Renovations,1000554,Seville Developments,10/03/2022,30043751,3000,0,Contractor Payments,,Invoice,BACS,No,21/02/2022 00:00,2021,12,5219,N40287,Electrical testing and smoke detectors,1233,Contractor Payments,,,,,,,,
GUILDFORD BOROUGH COUNCIL,Renovations,1000554,Seville Developments,10/03/2022,30043751,3000,0,Contractor Payments,,Invoice,BACS,No,21/02/2022 00:00,2021,12,5219,N40287,Electrical testing and smoke detectors,1233,Contractor Payments,,,,,,,,
GUILDFORD BOROUGH COUNCIL,Renovations,1000554,Seville Developments,10/03/2022,30043751,1200,0,Contractor Payments,,Invoice,BACS,No,21/02/2022 00:00,2021,12,5219,N40287,Electrical testing and smoke detectors,1233,Contractor Payments,,,,,,,,
GUILDFORD BOROUGH COUNCIL,Renovations,1000554,Seville Developments,10/03/2022,30043751,450,0,Contractor Payments,,Invoice,BACS,No,21/02/2022 00:00,2021,12,5219,N40287,Electrical testing and smoke detectors,1233,Contractor Payments,,,,,,,,
GUILDFORD BOROUGH COUNCIL,Renovations,1000554,Seville Developments,10/03/2022,30043751,900,0,Contractor Payments,,Invoice,BACS,No,21/02/2022 00:00,2021,12,5219,N40287,Electrical testing and smoke detectors,1233,Contractor Payments,,,,,,,,
GUILDFORD BOROUGH COUNCIL,Renovations,1000554,Seville Developments,10/03/2022,30043751,1800,0,Contractor Payments,,Invoice,BACS,No,21/02/2022 00:00,2021,12,5219,N40287,Electrical testing and smoke detectors,1233,Contractor Payments,,,,,,,,
GUILDFORD BOROUGH COUNCIL,Renovations,1000554,Seville Developments,10/03/2022,30043751,1800,0,Contractor Payments,,Invoice,BACS,No,21/02/2022 00:00,2021,12,5219,N40287,Electrical testing and smoke detectors,1233,Contractor Payments,,,,,,,,
GUILDFORD BOROUGH COUNCIL,Renovations,1000554,Seville Developments,10/03/2022,30043751,2025,0,Contractor Payments,,Invoice,BACS,No,21/02/2022 00:00,2021,12,5219,N40287,Electrical testing and smoke detectors,1233,Contractor Payments,,,,,,,,
GUILDFORD BOROUGH COUNCIL,Renovations,1000554,Seville Developments,10/03/2022,30043751,900,0,Contractor Payments,,Invoice,BACS,No,21/02/2022 00:00,2021,12,5219,N40287,Electrical testing and smoke detectors,1233,Contractor Payments,,,,,,,,
GUILDFORD BOROUGH COUNCIL,Renovations,1000554,Seville Developments,10/03/2022,30043751,675,0,Contractor Payments,,Invoice,BACS,No,21/02/2022 00:00,2021,12,5219,N40287,Electrical testing and smoke detectors,1233,Contractor Payments,,,,,,,,
GUILDFORD BOROUGH COUNCIL,Renovations,1000554,Seville Developments,10/03/2022,30043751,675,0,Contractor Payments,,Invoice,BACS,No,21/02/2022 00:00,2021,12,5219,N40287,Electrical testing and smoke detectors,1233,Contractor Payments,,,,,,,,
GUILDFORD BOROUGH COUNCIL,Renovations,1000554,Seville Developments,10/03/2022,30043751,1350,0,Contractor Payments,,Invoice,BACS,No,21/02/2022 00:00,2021,12,5219,N40287,Electrical testing and smoke detectors,1233,Contractor Payments,,,,,,,,
GUILDFORD BOROUGH COUNCIL,Renovations,1000554,Seville Developments,10/03/2022,30043751,900,0,Contractor Payments,,Invoice,BACS,No,21/02/2022 00:00,2021,12,5219,N40287,Electrical testing and smoke detectors,1233,Contractor Payments,,,,,,,,
GUILDFORD BOROUGH COUNCIL,Renovations,1000554,Seville Developments,10/03/2022,30043751,900,0,Contractor Payments,,Invoice,BACS,No,21/02/2022 00:00,2021,12,5219,N40287,Electrical testing and smoke detectors,1233,Contractor Payments,,,,,,,,
GUILDFORD BOROUGH COUNCIL,Renovations,1000554,Seville Developments,10/03/2022,30043751,1800,0,Contractor Payments,,Invoice,BACS,No,21/02/2022 00:00,2021,12,5219,N40287,Electrical testing and smoke detectors,1233,Contractor Payments,,,,,,,,
GUILDFORD BOROUGH COUNCIL,Renovations,1000554,Seville Developments,10/03/2022,30043751,1800,0,Contractor Payments,,Invoice,BACS,No,21/02/2022 00:00,2021,12,5219,N40287,Electrical testing and smoke detectors,1233,Contractor Payments,,,,,,,,
GUILDFORD BOROUGH COUNCIL,Renovations,1000554,Seville Developments,10/03/2022,30043751,3000,0,Contractor Payments,,Invoice,BACS,No,21/02/2022 00:00,2021,12,5219,N40287,Electrical testing and smoke detectors,1233,Contractor Payments,,,,,,,,
GUILDFORD BOROUGH COUNCIL,Renovations,1000554,Seville Developments,10/03/2022,30043751,600,0,Contractor Payments,,Invoice,BACS,No,21/02/2022 00:00,2021,12,5219,N40287,Electrical testing and smoke detectors,1233,Contractor Payments,,,,,,,,
GUILDFORD BOROUGH COUNCIL,Renovations,1000554,Seville Developments,10/03/2022,30043751,2925,0,Contractor Payments,,Invoice,BACS,No,21/02/2022 00:00,2021,12,5219,N40287,Electrical testing and smoke detectors,1233,Contractor Payments,,,,,,,,
GUILDFORD BOROUGH COUNCIL,Renovations,1000554,Seville Developments,10/03/2022,30043751,928.09,0,Contractor Payments,,Invoice,BACS,No,21/02/2022 00:00,2021,12,5219,N40287,Electrical testing and smoke detectors,1233,Contractor Payments,,,,,,,,
GUILDFORD BOROUGH COUNCIL,Renovations,1000554,Seville Developments,10/03/2022,30043751,3665,0,Contractor Payments,,Invoice,BACS,No,21/02/2022 00:00,2021,12,5219,N40287,Electrical testing and smoke detectors,1233,Contractor Payments,,,,,,,,
GUILDFORD BOROUGH COUNCIL,Renovations,1000554,Seville Developments,10/03/2022,30043751,3665,0,Contractor Payments,,Invoice,BACS,No,21/02/2022 00:00,2021,12,5219,N40287,Electrical testing and smoke detectors,1233,Contractor Payments,,,,,,,,
GUILDFORD BOROUGH COUNCIL,Renovations,1000554,Seville Developments,10/03/2022,30043751,1608.5,0,Contractor Payments,,Invoice,BACS,No,21/02/2022 00:00,2021,12,5219,N40287,Electrical testing and smoke detectors,1233,Contractor Payments,,,,,,,,
GUILDFORD BOROUGH COUNCIL,Renovations,1000554,Seville Developments,10/03/2022,30043751,548.86,0,Contractor Payments,,Invoice,BACS,No,21/02/2022 00:00,2021,12,5219,N40287,Electrical testing and smoke detectors,1233,Contractor Payments,,,,,,,,
GUILDFORD BOROUGH COUNCIL,Renovations,1000554,Seville Developments,10/03/2022,30043751,611.14,0,Contractor Payments,,Invoice,BACS,No,21/02/2022 00:00,2021,12,5219,N40287,Electrical testing and smoke detectors,1233,Contractor Payments,,,,,,,,
GUILDFORD BOROUGH COUNCIL,Renovations,1000554,Seville Developments,10/03/2022,30043751,1229.02,0,Contractor Payments,,Invoice,BACS,No,21/02/2022 00:00,2021,12,5219,N40287,Electrical testing and smoke detectors,1233,Contractor Payments,,,,,,,,
GUILDFORD BOROUGH COUNCIL,Renovations,1000554,Seville Developments,10/03/2022,30043751,1021.42,0,Contractor Payments,,Invoice,BACS,No,21/02/2022 00:00,2021,12,5219,N40287,Electrical testing and smoke detectors,1233,Contractor Payments,,,,,,,,
GUILDFORD BOROUGH COUNCIL,Renovations,1000554,Seville Developments,10/03/2022,30043751,550.21,0,Contractor Payments,,Invoice,BACS,No,21/02/2022 00:00,2021,12,5219,N40287,Electrical testing and smoke detectors,1233,Contractor Payments,,,,,,,,
GUILDFORD BOROUGH COUNCIL,Renovations,1000554,Seville Developments,10/03/2022,30043751,2054.4,0,Contractor Payments,,Invoice,BACS,No,21/02/2022 00:00,2021,12,5219,N40287,Electrical testing and smoke detectors,1233,Contractor Payments,,,,,,,,
GUILDFORD BOROUGH COUNCIL,Renovations,1000554,Seville Developments,10/03/2022,30043751,2450,0,Contractor Payments,,Invoice,BACS,No,21/02/2022 00:00,2021,12,5219,N40287,Electrical testing and smoke detectors,1233,Contractor Payments,,,,,,,,
GUILDFORD BOROUGH COUNCIL,Renovations,1000554,Seville Developments,10/03/2022,30043752,4625,0,Contractor Payments,,Invoice,BACS,No,28/02/2022 00:00,2021,12,5245,N40287,Electrical testing and smoke detectors,1233,Contractor Payments,,,,,,,,
GUILDFORD BOROUGH COUNCIL,Renovations,1000554,Seville Developments,10/03/2022,30043752,1850,0,Contractor Payments,,Invoice,BACS,No,28/02/2022 00:00,2021,12,5245,N40287,Electrical testing and smoke detectors,1233,Contractor Payments,,,,,,,,
GUILDFORD BOROUGH COUNCIL,Renovations,1000554,Seville Developments,10/03/2022,30043752,12080,0,Contractor Payments,,Invoice,BACS,No,28/02/2022 00:00,2021,12,5245,N40287,Electrical testing and smoke detectors,1233,Contractor Payments,,,,,,,,
GUILDFORD BOROUGH COUNCIL,Renovations,1000554,Seville Developments,10/03/2022,30043752,75725,0,Contractor Payments,,Invoice,BACS,No,28/02/2022 00:00,2021,12,5245,N40287,Electrical testing and smoke detectors,1233,Contractor Payments,,,,,,,,
GUILDFORD BOROUGH COUNCIL,Renovations,1000554,Seville Developments,29/03/2022,30045151,11824.75,0,Contractor Payments,,Invoice,BACS,No,22/03/2022 00:00,2021,12,5342,N40287,Electrical testing and smoke detectors,1233,Contractor Payments,,,,,,,,
GUILDFORD BOROUGH COUNCIL,Renovations,1000554,Seville Developments,29/03/2022,30045152,590,0,Contractor Payments,,Invoice,BACS,No,22/03/2022 00:00,2021,12,5344,N40287,Electrical testing and smoke detectors,1233,Contractor Payments,,,,,,,,
GUILDFORD BOROUGH COUNCIL,Renovations,1000554,Seville Developments,29/03/2022,30045153,21375,0,Contractor Payments,,Invoice,BACS,No,22/03/2022 00:00,2021,12,5345,N40287,Electrical testing and smoke detectors,1233,Contractor Payments,,,,,,,,
GUILDFORD BOROUGH COUNCIL,Renovations,1000554,Seville Developments,29/03/2022,30045154,55240.9,0,Contractor Payments,,Invoice,BACS,No,22/03/2022 00:00,2021,12,5348,N40287,Electrical testing and smoke detectors,1233,Contractor Payments,,,,,,,,
GUILDFORD BOROUGH COUNCIL,Renovations,1000554,Seville Developments,29/03/2022,30045157,5550,0,Contractor Payments,,Invoice,BACS,No,22/03/2022 00:00,2021,12,5354,N40287,Electrical testing and smoke detectors,1233,Contractor Payments,,,,,,,,
GUILDFORD BOROUGH COUNCIL,Renovations,1000554,Seville Developments,29/03/2022,30045158,24694.4,0,Contractor Payments,,Invoice,BACS,No,22/03/2022 00:00,2021,12,5356,N40287,Electrical testing and smoke detectors,1233,Contractor Payments,,,,,,,,
GUILDFORD BOROUGH COUNCIL,Renovations,1000554,Seville Developments,29/03/2022,30045159,15704,0,Contractor Payments,,Invoice,BACS,No,22/03/2022 00:00,2021,12,5362,N40287,Electrical testing and smoke detectors,1233,Contractor Payments,,,,,,,,
GUILDFORD BOROUGH COUNCIL,Renovations,1000554,Seville Developments,29/03/2022,30045160,1560,0,Contractor Payments,,Invoice,BACS,No,22/03/2022 00:00,2021,12,5364,N40287,Electrical testing and smoke detectors,1233,Contractor Payments,,,,,,,,
GUILDFORD BOROUGH COUNCIL,Renovations,1000554,Seville Developments,29/03/2022,30045161,6012.5,0,Contractor Payments,,Invoice,BACS,No,22/03/2022 00:00,2021,12,5365,N40287,Electrical testing and smoke detectors,1233,Contractor Payments,,,,,,,,
GUILDFORD BOROUGH COUNCIL,Renovations,1000554,Seville Developments,29/03/2022,30045155,727.1,0,Contractor Payments,,Invoice,BACS,No,07/03/2022 00:00,2021,12,5351,N40287,Electrical testing and smoke detectors,1233,Contractor Payments,,,,,,,,
GUILDFORD BOROUGH COUNCIL,Renovations,1000554,Seville Developments,29/03/2022,30045155,885.96,0,Contractor Payments,,Invoice,BACS,No,07/03/2022 00:00,2021,12,5351,N40287,Electrical testing and smoke detectors,1233,Contractor Payments,,,,,,,,
GUILDFORD BOROUGH COUNCIL,Renovations,1000554,Seville Developments,29/03/2022,30045155,1555.1,0,Contractor Payments,,Invoice,BACS,No,07/03/2022 00:00,2021,12,5351,N40287,Electrical testing and smoke detectors,1233,Contractor Payments,,,,,,,,
GUILDFORD BOROUGH COUNCIL,Renovations,1000554,Seville Developments,29/03/2022,30045155,1047.4,0,Contractor Payments,,Invoice,BACS,No,07/03/2022 00:00,2021,12,5351,N40287,Electrical testing and smoke detectors,1233,Contractor Payments,,,,,,,,
GUILDFORD BOROUGH COUNCIL,Renovations,1000554,Seville Developments,29/03/2022,30045155,934.49,0,Contractor Payments,,Invoice,BACS,No,07/03/2022 00:00,2021,12,5351,N40287,Electrical testing and smoke detectors,1233,Contractor Payments,,,,,,,,
GUILDFORD BOROUGH COUNCIL,Renovations,1000554,Seville Developments,29/03/2022,30045155,1165.82,0,Contractor Payments,,Invoice,BACS,No,07/03/2022 00:00,2021,12,5351,N40287,Electrical testing and smoke detectors,1233,Contractor Payments,,,,,,,,
GUILDFORD BOROUGH COUNCIL,Renovations,1000554,Seville Developments,29/03/2022,30045155,781.69,0,Contractor Payments,,Invoice,BACS,No,07/03/2022 00:00,2021,12,5351,N40287,Electrical testing and smoke detectors,1233,Contractor Payments,,,,,,,,
GUILDFORD BOROUGH COUNCIL,Renovations,1000554,Seville Developments,29/03/2022,30045155,974.28,0,Contractor Payments,,Invoice,BACS,No,07/03/2022 00:00,2021,12,5351,N40287,Electrical testing and smoke detectors,1233,Contractor Payments,,,,,,,,
GUILDFORD BOROUGH COUNCIL,Renovations,1000554,Seville Developments,29/03/2022,30045155,885.45,0,Contractor Payments,,Invoice,BACS,No,07/03/2022 00:00,2021,12,5351,N40287,Electrical testing and smoke detectors,1233,Contractor Payments,,,,,,,,
GUILDFORD BOROUGH COUNCIL,Renovations,1000554,Seville Developments,29/03/2022,30045155,1873.53,0,Contractor Payments,,Invoice,BACS,No,07/03/2022 00:00,2021,12,5351,N40287,Electrical testing and smoke detectors,1233,Contractor Payments,,,,,,,,
GUILDFORD BOROUGH COUNCIL,Renovations,1000554,Seville Developments,29/03/2022,30045155,776.45,0,Contractor Payments,,Invoice,BACS,No,07/03/2022 00:00,2021,12,5351,N40287,Electrical testing and smoke detectors,1233,Contractor Payments,,,,,,,,
GUILDFORD BOROUGH COUNCIL,Renovations,1000554,Seville Developments,29/03/2022,30045155,728.64,0,Contractor Payments,,Invoice,BACS,No,07/03/2022 00:00,2021,12,5351,N40287,Electrical testing and smoke detectors,1233,Contractor Payments,,,,,,,,
GUILDFORD BOROUGH COUNCIL,Renovations,1000554,Seville Developments,29/03/2022,30045155,957.19,0,Contractor Payments,,Invoice,BACS,No,07/03/2022 00:00,2021,12,5351,N40287,Electrical testing and smoke detectors,1233,Contractor Payments,,,,,,,,
GUILDFORD BOROUGH COUNCIL,Renovations,1000554,Seville Developments,29/03/2022,30045155,823.87,0,Contractor Payments,,Invoice,BACS,No,07/03/2022 00:00,2021,12,5351,N40287,Electrical testing and smoke detectors,1233,Contractor Payments,,,,,,,,
GUILDFORD BOROUGH COUNCIL,Renovations,1000554,Seville Developments,29/03/2022,30045155,787.17,0,Contractor Payments,,Invoice,BACS,No,07/03/2022 00:00,2021,12,5351,N40287,Electrical testing and smoke detectors,1233,Contractor Payments,,,,,,,,
GUILDFORD BOROUGH COUNCIL,Renovations,1000554,Seville Developments,29/03/2022,30045155,885.96,0,Contractor Payments,,Invoice,BACS,No,07/03/2022 00:00,2021,12,5351,N40287,Electrical testing and smoke detectors,1233,Contractor Payments,,,,,,,,
GUILDFORD BOROUGH COUNCIL,Renovations,1000554,Seville Developments,29/03/2022,30045155,981.7,0,Contractor Payments,,Invoice,BACS,No,07/03/2022 00:00,2021,12,5351,N40287,Electrical testing and smoke detectors,1233,Contractor Payments,,,,,,,,
GUILDFORD BOROUGH COUNCIL,Renovations,1000554,Seville Developments,29/03/2022,30045155,993.93,0,Contractor Payments,,Invoice,BACS,No,07/03/2022 00:00,2021,12,5351,N40287,Electrical testing and smoke detectors,1233,Contractor Payments,,,,,,,,
GUILDFORD BOROUGH COUNCIL,Renovations,1000554,Seville Developments,29/03/2022,30045155,763.57,0,Contractor Payments,,Invoice,BACS,No,07/03/2022 00:00,2021,12,5351,N40287,Electrical testing and smoke detectors,1233,Contractor Payments,,,,,,,,
GUILDFORD BOROUGH COUNCIL,Renovations,1000554,Seville Developments,29/03/2022,30045155,1656.63,0,Contractor Payments,,Invoice,BACS,No,07/03/2022 00:00,2021,12,5351,N40287,Electrical testing and smoke detectors,1233,Contractor Payments,,,,,,,,
GUILDFORD BOROUGH COUNCIL,Renovations,1000554,Seville Developments,29/03/2022,30045155,1092.27,0,Contractor Payments,,Invoice,BACS,No,07/03/2022 00:00,2021,12,5351,N40287,Electrical testing and smoke detectors,1233,Contractor Payments,,,,,,,,
GUILDFORD BOROUGH COUNCIL,Renovations,1000554,Seville Developments,29/03/2022,30045155,1051.7,0,Contractor Payments,,Invoice,BACS,No,07/03/2022 00:00,2021,12,5351,N40287,Electrical testing and smoke detectors,1233,Contractor Payments,,,,,,,,
GUILDFORD BOROUGH COUNCIL,Renovations,1000554,Seville Developments,29/03/2022,30045155,682.87,0,Contractor Payments,,Invoice,BACS,No,07/03/2022 00:00,2021,12,5351,N40287,Electrical testing and smoke detectors,1233,Contractor Payments,,,,,,,,
GUILDFORD BOROUGH COUNCIL,Renovations,1000554,Seville Developments,29/03/2022,30045155,464.34,0,Contractor Payments,,Invoice,BACS,No,07/03/2022 00:00,2021,12,5351,N40287,Electrical testing and smoke detectors,1233,Contractor Payments,,,,,,,,
GUILDFORD BOROUGH COUNCIL,Renovations,1000554,Seville Developments,29/03/2022,30045155,331.25,0,Contractor Payments,,Invoice,BACS,No,07/03/2022 00:00,2021,12,5351,N40287,Electrical testing and smoke detectors,1233,Contractor Payments,,,,,,,,
GUILDFORD BOROUGH COUNCIL,Renovations,1000554,Seville Developments,29/03/2022,30045155,450.83,0,Contractor Payments,,Invoice,BACS,No,07/03/2022 00:00,2021,12,5351,N40287,Electrical testing and smoke detectors,1233,Contractor Payments,,,,,,,,
GUILDFORD BOROUGH COUNCIL,Renovations,1000554,Seville Developments,29/03/2022,30045155,676.25,0,Contractor Payments,,Invoice,BACS,No,07/03/2022 00:00,2021,12,5351,N40287,Electrical testing and smoke detectors,1233,Contractor Payments,,,,,,,,
GUILDFORD BOROUGH COUNCIL,Renovations,1000554,Seville Developments,29/03/2022,30045155,471.47,0,Contractor Payments,,Invoice,BACS,No,07/03/2022 00:00,2021,12,5351,N40287,Electrical testing and smoke detectors,1233,Contractor Payments,,,,,,,,
GUILDFORD BOROUGH COUNCIL,Renovations,1000554,Seville Developments,29/03/2022,30045155,1651.94,0,Contractor Payments,,Invoice,BACS,No,07/03/2022 00:00,2021,12,5351,N40287,Electrical testing and smoke detectors,1233,Contractor Payments,,,,,,,,
GUILDFORD BOROUGH COUNCIL,Renovations,1000554,Seville Developments,29/03/2022,30045155,1261.38,0,Contractor Payments,,Invoice,BACS,No,07/03/2022 00:00,2021,12,5351,N40287,Electrical testing and smoke detectors,1233,Contractor Payments,,,,,,,,
GUILDFORD BOROUGH COUNCIL,Renovations,1000554,Seville Developments,29/03/2022,30045155,546.19,0,Contractor Payments,,Invoice,BACS,No,07/03/2022 00:00,2021,12,5351,N40287,Electrical testing and smoke detectors,1233,Contractor Payments,,,,,,,,
GUILDFORD BOROUGH COUNCIL,Renovations,1000554,Seville Developments,29/03/2022,30045155,1119.64,0,Contractor Payments,,Invoice,BACS,No,07/03/2022 00:00,2021,12,5351,N40287,Electrical testing and smoke detectors,1233,Contractor Payments,,,,,,,,
GUILDFORD BOROUGH COUNCIL,Renovations,1000554,Seville Developments,29/03/2022,30045155,1297.29,0,Contractor Payments,,Invoice,BACS,No,07/03/2022 00:00,2021,12,5351,N40287,Electrical testing and smoke detectors,1233,Contractor Payments,,,,,,,,
GUILDFORD BOROUGH COUNCIL,Renovations,1000554,Seville Developments,29/03/2022,30045155,1027.26,0,Contractor Payments,,Invoice,BACS,No,07/03/2022 00:00,2021,12,5351,N40287,Electrical testing and smoke detectors,1233,Contractor Payments,,,,,,,,
GUILDFORD BOROUGH COUNCIL,Renovations,1000554,Seville Developments,29/03/2022,30045155,336.93,0,Contractor Payments,,Invoice,BACS,No,07/03/2022 00:00,2021,12,5351,N40287,Electrical testing and smoke detectors,1233,Contractor Payments,,,,,,,,
GUILDFORD BOROUGH COUNCIL,Renovations,1000554,Seville Developments,29/03/2022,30045155,1612.69,0,Contractor Payments,,Invoice,BACS,No,07/03/2022 00:00,2021,12,5351,N40287,Electrical testing and smoke detectors,1233,Contractor Payments,,,,,,,,
GUILDFORD BOROUGH COUNCIL,Renovations,1000554,Seville Developments,29/03/2022,30045155,1067.64,0,Contractor Payments,,Invoice,BACS,No,07/03/2022 00:00,2021,12,5351,N40287,Electrical testing and smoke detectors,1233,Contractor Payments,,,,,,,,
GUILDFORD BOROUGH COUNCIL,Renovations,1000554,Seville Developments,29/03/2022,30045155,1023.13,0,Contractor Payments,,Invoice,BACS,No,07/03/2022 00:00,2021,12,5351,N40287,Electrical testing and smoke detectors,1233,Contractor Payments,,,,,,,,
GUILDFORD BOROUGH COUNCIL,Renovations,1000554,Seville Developments,29/03/2022,30045155,1132.04,0,Contractor Payments,,Invoice,BACS,No,07/03/2022 00:00,2021,12,5351,N40287,Electrical testing and smoke detectors,1233,Contractor Payments,,,,,,,,
GUILDFORD BOROUGH COUNCIL,Renovations,1000554,Seville Developments,29/03/2022,30045155,740.8,0,Contractor Payments,,Invoice,BACS,No,07/03/2022 00:00,2021,12,5351,N40287,Electrical testing and smoke detectors,1233,Contractor Payments,,,,,,,,
GUILDFORD BOROUGH COUNCIL,Renovations,1000554,Seville Developments,29/03/2022,30045155,1495.74,0,Contractor Payments,,Invoice,BACS,No,07/03/2022 00:00,2021,12,5351,N40287,Electrical testing and smoke detectors,1233,Contractor Payments,,,,,,,,
GUILDFORD BOROUGH COUNCIL,Renovations,1000554,Seville Developments,29/03/2022,30045155,949.44,0,Contractor Payments,,Invoice,BACS,No,07/03/2022 00:00,2021,12,5351,N40287,Electrical testing and smoke detectors,1233,Contractor Payments,,,,,,,,
GUILDFORD BOROUGH COUNCIL,Renovations,1000554,Seville Developments,29/03/2022,30045156,1014.91,0,Contractor Payments,,Invoice,BACS,No,14/03/2022 00:00,2021,12,5353,N40287,Electrical testing and smoke detectors,1233,Contractor Payments,,,,,,,,
GUILDFORD BOROUGH COUNCIL,Renovations,1000554,Seville Developments,29/03/2022,30045156,1081.64,0,Contractor Payments,,Invoice,BACS,No,14/03/2022 00:00,2021,12,5353,N40287,Electrical testing and smoke detectors,1233,Contractor Payments,,,,,,,,
GUILDFORD BOROUGH COUNCIL,Renovations,1000554,Seville Developments,29/03/2022,30045156,2021.19,0,Contractor Payments,,Invoice,BACS,No,14/03/2022 00:00,2021,12,5353,N40287,Electrical testing and smoke detectors,1233,Contractor Payments,,,,,,,,
GUILDFORD BOROUGH COUNCIL,Renovations,1000554,Seville Developments,29/03/2022,30045156,1709.6,0,Contractor Payments,,Invoice,BACS,No,14/03/2022 00:00,2021,12,5353,N40287,Electrical testing and smoke detectors,1233,Contractor Payments,,,,,,,,
GUILDFORD BOROUGH COUNCIL,Renovations,1000554,Seville Developments,29/03/2022,30045156,1368.73,0,Contractor Payments,,Invoice,BACS,No,14/03/2022 00:00,2021,12,5353,N40287,Electrical testing and smoke detectors,1233,Contractor Payments,,,,,,,,
GUILDFORD BOROUGH COUNCIL,Renovations,1000554,Seville Developments,29/03/2022,30045156,1039.75,0,Contractor Payments,,Invoice,BACS,No,14/03/2022 00:00,2021,12,5353,N40287,Electrical testing and smoke detectors,1233,Contractor Payments,,,,,,,,
GUILDFORD BOROUGH COUNCIL,Renovations,1000554,Seville Developments,29/03/2022,30045156,1123.11,0,Contractor Payments,,Invoice,BACS,No,14/03/2022 00:00,2021,12,5353,N40287,Electrical testing and smoke detectors,1233,Contractor Payments,,,,,,,,
GUILDFORD BOROUGH COUNCIL,Renovations,1000554,Seville Developments,29/03/2022,30045156,1094.34,0,Contractor Payments,,Invoice,BACS,No,14/03/2022 00:00,2021,12,5353,N40287,Electrical testing and smoke detectors,1233,Contractor Payments,,,,,,,,
GUILDFORD BOROUGH COUNCIL,Renovations,1000554,Seville Developments,29/03/2022,30045156,1067.58,0,Contractor Payments,,Invoice,BACS,No,14/03/2022 00:00,2021,12,5353,N40287,Electrical testing and smoke detectors,1233,Contractor Payments,,,,,,,,
GUILDFORD BOROUGH COUNCIL,Renovations,1000554,Seville Developments,29/03/2022,30045156,1023.75,0,Contractor Payments,,Invoice,BACS,No,14/03/2022 00:00,2021,12,5353,N40287,Electrical testing and smoke detectors,1233,Contractor Payments,,,,,,,,
GUILDFORD BOROUGH COUNCIL,Renovations,1000554,Seville Developments,29/03/2022,30045156,1075.5,0,Contractor Payments,,Invoice,BACS,No,14/03/2022 00:00,2021,12,5353,N40287,Electrical testing and smoke detectors,1233,Contractor Payments,,,,,,,,
GUILDFORD BOROUGH COUNCIL,Renovations,1000554,Seville Developments,29/03/2022,30045156,1147.39,0,Contractor Payments,,Invoice,BACS,No,14/03/2022 00:00,2021,12,5353,N40287,Electrical testing and smoke detectors,1233,Contractor Payments,,,,,,,,
GUILDFORD BOROUGH COUNCIL,Renovations,1000554,Seville Developments,29/03/2022,30045156,1028.35,0,Contractor Payments,,Invoice,BACS,No,14/03/2022 00:00,2021,12,5353,N40287,Electrical testing and smoke detectors,1233,Contractor Payments,,,,,,,,
GUILDFORD BOROUGH COUNCIL,Renovations,1000554,Seville Developments,29/03/2022,30045156,1581.71,0,Contractor Payments,,Invoice,BACS,No,14/03/2022 00:00,2021,12,5353,N40287,Electrical testing and smoke detectors,1233,Contractor Payments,,,,,,,,
GUILDFORD BOROUGH COUNCIL,Renovations,1000554,Seville Developments,29/03/2022,30045156,1115.17,0,Contractor Payments,,Invoice,BACS,No,14/03/2022 00:00,2021,12,5353,N40287,Electrical testing and smoke detectors,1233,Contractor Payments,,,,,,,,
GUILDFORD BOROUGH COUNCIL,Renovations,1000554,Seville Developments,29/03/2022,30045156,927.91,0,Contractor Payments,,Invoice,BACS,No,14/03/2022 00:00,2021,12,5353,N40287,Electrical testing and smoke detectors,1233,Contractor Payments,,,,,,,,
GUILDFORD BOROUGH COUNCIL,Renovations,1000554,Seville Developments,29/03/2022,30045156,779.24,0,Contractor Payments,,Invoice,BACS,No,14/03/2022 00:00,2021,12,5353,N40287,Electrical testing and smoke detectors,1233,Contractor Payments,,,,,,,,
GUILDFORD BOROUGH COUNCIL,Renovations,1000554,Seville Developments,29/03/2022,30045156,740.55,0,Contractor Payments,,Invoice,BACS,No,14/03/2022 00:00,2021,12,5353,N40287,Electrical testing and smoke detectors,1233,Contractor Payments,,,,,,,,
GUILDFORD BOROUGH COUNCIL,Renovations,1000554,Seville Developments,29/03/2022,30045156,924.54,0,Contractor Payments,,Invoice,BACS,No,14/03/2022 00:00,2021,12,5353,N40287,Electrical testing and smoke detectors,1233,Contractor Payments,,,,,,,,
GUILDFORD BOROUGH COUNCIL,Renovations,1000554,Seville Developments,29/03/2022,30045156,1253.38,0,Contractor Payments,,Invoice,BACS,No,14/03/2022 00:00,2021,12,5353,N40287,Electrical testing and smoke detectors,1233,Contractor Payments,,,,,,,,
GUILDFORD BOROUGH COUNCIL,Renovations,1000554,Seville Developments,29/03/2022,30045156,1389.18,0,Contractor Payments,,Invoice,BACS,No,14/03/2022 00:00,2021,12,5353,N40287,Electrical testing and smoke detectors,1233,Contractor Payments,,,,,,,,
GUILDFORD BOROUGH COUNCIL,Renovations,1000554,Seville Developments,29/03/2022,30045156,936.56,0,Contractor Payments,,Invoice,BACS,No,14/03/2022 00:00,2021,12,5353,N40287,Electrical testing and smoke detectors,1233,Contractor Payments,,,,,,,,
GUILDFORD BOROUGH COUNCIL,Renovations,1000554,Seville Developments,29/03/2022,30045156,947.96,0,Contractor Payments,,Invoice,BACS,No,14/03/2022 00:00,2021,12,5353,N40287,Electrical testing and smoke detectors,1233,Contractor Payments,,,,,,,,
GUILDFORD BOROUGH COUNCIL,Renovations,1000554,Seville Developments,29/03/2022,30045156,1515.67,0,Contractor Payments,,Invoice,BACS,No,14/03/2022 00:00,2021,12,5353,N40287,Electrical testing and smoke detectors,1233,Contractor Payments,,,,,,,,
GUILDFORD BOROUGH COUNCIL,Renovations,1000554,Seville Developments,29/03/2022,30045156,835.77,0,Contractor Payments,,Invoice,BACS,No,14/03/2022 00:00,2021,12,5353,N40287,Electrical testing and smoke detectors,1233,Contractor Payments,,,,,,,,
GUILDFORD BOROUGH COUNCIL,Renovations,1000554,Seville Developments,29/03/2022,30045156,1108.84,0,Contractor Payments,,Invoice,BACS,No,14/03/2022 00:00,2021,12,5353,N40287,Electrical testing and smoke detectors,1233,Contractor Payments,,,,,,,,
GUILDFORD BOROUGH COUNCIL,Renovations,1000554,Seville Developments,29/03/2022,30045156,1208.88,0,Contractor Payments,,Invoice,BACS,No,14/03/2022 00:00,2021,12,5353,N40287,Electrical testing and smoke detectors,1233,Contractor Payments,,,,,,,,
GUILDFORD BOROUGH COUNCIL,Renovations,1000554,Seville Developments,29/03/2022,30045156,1040.21,0,Contractor Payments,,Invoice,BACS,No,14/03/2022 00:00,2021,12,5353,N40287,Electrical testing and smoke detectors,1233,Contractor Payments,,,,,,,,
GUILDFORD BOROUGH COUNCIL,Renovations,1000554,Seville Developments,29/03/2022,30045156,930.27,0,Contractor Payments,,Invoice,BACS,No,14/03/2022 00:00,2021,12,5353,N40287,Electrical testing and smoke detectors,1233,Contractor Payments,,,,,,,,
GUILDFORD BOROUGH COUNCIL,Renovations,1000554,Seville Developments,29/03/2022,30045156,825.64,0,Contractor Payments,,Invoice,BACS,No,14/03/2022 00:00,2021,12,5353,N40287,Electrical testing and smoke detectors,1233,Contractor Payments,,,,,,,,
GUILDFORD BOROUGH COUNCIL,Renovations,1000554,Seville Developments,29/03/2022,30045156,1588.28,0,Contractor Payments,,Invoice,BACS,No,14/03/2022 00:00,2021,12,5353,N40287,Electrical testing and smoke detectors,1233,Contractor Payments,,,,,,,,
GUILDFORD BOROUGH COUNCIL,Renovations,1000554,Seville Developments,29/03/2022,30045156,913.73,0,Contractor Payments,,Invoice,BACS,No,14/03/2022 00:00,2021,12,5353,N40287,Electrical testing and smoke detectors,1233,Contractor Payments,,,,,,,,
GUILDFORD BOROUGH COUNCIL,Renovations,1000554,Seville Developments,29/03/2022,30045156,1623.49,0,Contractor Payments,,Invoice,BACS,No,14/03/2022 00:00,2021,12,5353,N40287,Electrical testing and smoke detectors,1233,Contractor Payments,,,,,,,,
GUILDFORD BOROUGH COUNCIL,Renovations,1000554,Seville Developments,29/03/2022,30045156,1855.39,0,Contractor Payments,,Invoice,BACS,No,14/03/2022 00:00,2021,12,5353,N40287,Electrical testing and smoke detectors,1233,Contractor Payments,,,,,,,,
GUILDFORD BOROUGH COUNCIL,Renovations,1000554,Seville Developments,29/03/2022,30045156,873.54,0,Contractor Payments,,Invoice,BACS,No,14/03/2022 00:00,2021,12,5353,N40287,Electrical testing and smoke detectors,1233,Contractor Payments,,,,,,,,
GUILDFORD BOROUGH COUNCIL,Renovations,1000554,Seville Developments,29/03/2022,30045156,801.75,0,Contractor Payments,,Invoice,BACS,No,14/03/2022 00:00,2021,12,5353,N40287,Electrical testing and smoke detectors,1233,Contractor Payments,,,,,,,,
GUILDFORD BOROUGH COUNCIL,Renovations,1000554,Seville Developments,29/03/2022,30045156,1374.82,0,Contractor Payments,,Invoice,BACS,No,14/03/2022 00:00,2021,12,5353,N40287,Electrical testing and smoke detectors,1233,Contractor Payments,,,,,,,,
GUILDFORD BOROUGH COUNCIL,Renovations,1000554,Seville Developments,29/03/2022,30045156,974.02,0,Contractor Payments,,Invoice,BACS,No,14/03/2022 00:00,2021,12,5353,N40287,Electrical testing and smoke detectors,1233,Contractor Payments,,,,,,,,
GUILDFORD BOROUGH COUNCIL,Renovations,1000554,Seville Developments,29/03/2022,30045156,751.78,0,Contractor Payments,,Invoice,BACS,No,14/03/2022 00:00,2021,12,5353,N40287,Electrical testing and smoke detectors,1233,Contractor Payments,,,,,,,,
GUILDFORD BOROUGH COUNCIL,Renovations,1000554,Seville Developments,29/03/2022,30045156,1030.35,0,Contractor Payments,,Invoice,BACS,No,14/03/2022 00:00,2021,12,5353,N40287,Electrical testing and smoke detectors,1233,Contractor Payments,,,,,,,,
GUILDFORD BOROUGH COUNCIL,Renovations,1000554,Seville Developments,29/03/2022,30045156,754.63,0,Contractor Payments,,Invoice,BACS,No,14/03/2022 00:00,2021,12,5353,N40287,Electrical testing and smoke detectors,1233,Contractor Payments,,,,,,,,
GUILDFORD BOROUGH COUNCIL,Renovations,1000554,Seville Developments,29/03/2022,30045156,1276.77,0,Contractor Payments,,Invoice,BACS,No,14/03/2022 00:00,2021,12,5353,N40287,Electrical testing and smoke detectors,1233,Contractor Payments,,,,,,,,
GUILDFORD BOROUGH COUNCIL,Renovations,1000554,Seville Developments,29/03/2022,30045156,818.4,0,Contractor Payments,,Invoice,BACS,No,14/03/2022 00:00,2021,12,5353,N40287,Electrical testing and smoke detectors,1233,Contractor Payments,,,,,,,,
GUILDFORD BOROUGH COUNCIL,Renovations,1000554,Seville Developments,29/03/2022,30045156,1537.88,0,Contractor Payments,,Invoice,BACS,No,14/03/2022 00:00,2021,12,5353,N40287,Electrical testing and smoke detectors,1233,Contractor Payments,,,,,,,,
GUILDFORD BOROUGH COUNCIL,Renovations,1000554,Seville Developments,29/03/2022,30045156,1071.49,0,Contractor Payments,,Invoice,BACS,No,14/03/2022 00:00,2021,12,5353,N40287,Electrical testing and smoke detectors,1233,Contractor Payments,,,,,,,,
GUILDFORD BOROUGH COUNCIL,Renovations,1000554,Seville Developments,29/03/2022,30045156,1172.69,0,Contractor Payments,,Invoice,BACS,No,14/03/2022 00:00,2021,12,5353,N40287,Electrical testing and smoke detectors,1233,Contractor Payments,,,,,,,,
GUILDFORD BOROUGH COUNCIL,Renovations,1000554,Seville Developments,29/03/2022,30045156,911.61,0,Contractor Payments,,Invoice,BACS,No,14/03/2022 00:00,2021,12,5353,N40287,Electrical testing and smoke detectors,1233,Contractor Payments,,,,,,,,
GUILDFORD BOROUGH COUNCIL,Renovations,1000554,Seville Developments,29/03/2022,30045156,973.74,0,Contractor Payments,,Invoice,BACS,No,14/03/2022 00:00,2021,12,5353,N40287,Electrical testing and smoke detectors,1233,Contractor Payments,,,,,,,,
GUILDFORD BOROUGH COUNCIL,Renovations,1000554,Seville Developments,29/03/2022,30045156,884.24,0,Contractor Payments,,Invoice,BACS,No,14/03/2022 00:00,2021,12,5353,N40287,Electrical testing and smoke detectors,1233,Contractor Payments,,,,,,,,
GUILDFORD BOROUGH COUNCIL,Renovations,1000554,Seville Developments,29/03/2022,30045156,532.41,0,Contractor Payments,,Invoice,BACS,No,14/03/2022 00:00,2021,12,5353,N40287,Electrical testing and smoke detectors,1233,Contractor Payments,,,,,,,,
GUILDFORD BOROUGH COUNCIL,Renovations,1000554,Seville Developments,29/03/2022,30045156,499.07,0,Contractor Payments,,Invoice,BACS,No,14/03/2022 00:00,2021,12,5353,N40287,Electrical testing and smoke detectors,1233,Contractor Payments,,,,,,,,
GUILDFORD BOROUGH COUNCIL,Renovations,1000554,Seville Developments,29/03/2022,30045156,381.8,0,Contractor Payments,,Invoice,BACS,No,14/03/2022 00:00,2021,12,5353,N40287,Electrical testing and smoke detectors,1233,Contractor Payments,,,,,,,,
GUILDFORD BOROUGH COUNCIL,Renovations,1000554,Seville Developments,29/03/2022,30045156,1231.94,0,Contractor Payments,,Invoice,BACS,No,14/03/2022 00:00,2021,12,5353,N40287,Electrical testing and smoke detectors,1233,Contractor Payments,,,,,,,,
GUILDFORD BOROUGH COUNCIL,Renovations,1000554,Seville Developments,29/03/2022,30045156,369.07,0,Contractor Payments,,Invoice,BACS,No,14/03/2022 00:00,2021,12,5353,N40287,Electrical testing and smoke detectors,1233,Contractor Payments,,,,,,,,
GUILDFORD BOROUGH COUNCIL,Renovations,1000554,Seville Developments,29/03/2022,30045156,316.55,0,Contractor Payments,,Invoice,BACS,No,14/03/2022 00:00,2021,12,5353,N40287,Electrical testing and smoke detectors,1233,Contractor Payments,,,,,,,,
GUILDFORD BOROUGH COUNCIL,Renovations,1000554,Seville Developments,29/03/2022,30045156,1463.35,0,Contractor Payments,,Invoice,BACS,No,14/03/2022 00:00,2021,12,5353,N40287,Electrical testing and smoke detectors,1233,Contractor Payments,,,,,,,,
GUILDFORD BOROUGH COUNCIL,Renovations,1000554,Seville Developments,29/03/2022,30045156,1482.1,0,Contractor Payments,,Invoice,BACS,No,14/03/2022 00:00,2021,12,5353,N40287,Electrical testing and smoke detectors,1233,Contractor Payments,,,,,,,,
GUILDFORD BOROUGH COUNCIL,Renovations,1000554,Seville Developments,29/03/2022,30045156,1109.81,0,Contractor Payments,,Invoice,BACS,No,14/03/2022 00:00,2021,12,5353,N40287,Electrical testing and smoke detectors,1233,Contractor Payments,,,,,,,,
GUILDFORD BOROUGH COUNCIL,Renovations,1000554,Seville Developments,29/03/2022,30045156,1097.33,0,Contractor Payments,,Invoice,BACS,No,14/03/2022 00:00,2021,12,5353,N40287,Electrical testing and smoke detectors,1233,Contractor Payments,,,,,,,,
GUILDFORD BOROUGH COUNCIL,Renovations,1000554,Seville Developments,29/03/2022,30045156,732.22,0,Contractor Payments,,Invoice,BACS,No,14/03/2022 00:00,2021,12,5353,N40287,Electrical testing and smoke detectors,1233,Contractor Payments,,,,,,,,
GUILDFORD BOROUGH COUNCIL,Renovations,1000554,Seville Developments,29/03/2022,30045156,685.27,0,Contractor Payments,,Invoice,BACS,No,14/03/2022 00:00,2021,12,5353,N40287,Electrical testing and smoke detectors,1233,Contractor Payments,,,,,,,,
GUILDFORD BOROUGH COUNCIL,Renovations,1000554,Seville Developments,08/03/2022,30043466,3550,0,Contractor Payments,,Invoice,BACS,No,14/02/2022 00:00,2021,12,5216,N40287,Electrical testing and smoke detectors,1233,Contractor Payments,,,,,,,,
GUILDFORD BOROUGH COUNCIL,Renovations,1000554,Seville Developments,08/03/2022,30043466,3550,0,Contractor Payments,,Invoice,BACS,No,14/02/2022 00:00,2021,12,5216,N40287,Electrical testing and smoke detectors,1233,Contractor Payments,,,,,,,,
GUILDFORD BOROUGH COUNCIL,Renovations,1000554,Seville Developments,08/03/2022,30043466,3550,0,Contractor Payments,,Invoice,BACS,No,14/02/2022 00:00,2021,12,5216,N40287,Electrical testing and smoke detectors,1233,Contractor Payments,,,,,,,,
GUILDFORD BOROUGH COUNCIL,Renovations,1000554,Seville Developments,08/03/2022,30043466,562.63,0,Contractor Payments,,Invoice,BACS,No,14/02/2022 00:00,2021,12,5216,N40287,Electrical testing and smoke detectors,1233,Contractor Payments,,,,,,,,
GUILDFORD BOROUGH COUNCIL,Renovations,1000554,Seville Developments,08/03/2022,30043466,1147.69,0,Contractor Payments,,Invoice,BACS,No,14/02/2022 00:00,2021,12,5216,N40287,Electrical testing and smoke detectors,1233,Contractor Payments,,,,,,,,
GUILDFORD BOROUGH COUNCIL,Renovations,1000554,Seville Developments,08/03/2022,30043466,1209.1,0,Contractor Payments,,Invoice,BACS,No,14/02/2022 00:00,2021,12,5216,N40287,Electrical testing and smoke detectors,1233,Contractor Payments,,,,,,,,
GUILDFORD BOROUGH COUNCIL,Renovations,1000554,Seville Developments,08/03/2022,30043466,1726.24,0,Contractor Payments,,Invoice,BACS,No,14/02/2022 00:00,2021,12,5216,N40287,Electrical testing and smoke detectors,1233,Contractor Payments,,,,,,,,
GUILDFORD BOROUGH COUNCIL,Renovations,1000554,Seville Developments,08/03/2022,30043466,1430.84,0,Contractor Payments,,Invoice,BACS,No,14/02/2022 00:00,2021,12,5216,N40287,Electrical testing and smoke detectors,1233,Contractor Payments,,,,,,,,
GUILDFORD BOROUGH COUNCIL,Renovations,1000554,Seville Developments,08/03/2022,30043466,934.47,0,Contractor Payments,,Invoice,BACS,No,14/02/2022 00:00,2021,12,5216,N40287,Electrical testing and smoke detectors,1233,Contractor Payments,,,,,,,,
GUILDFORD BOROUGH COUNCIL,Renovations,1000554,Seville Developments,08/03/2022,30043466,1588.1,0,Contractor Payments,,Invoice,BACS,No,14/02/2022 00:00,2021,12,5216,N40287,Electrical testing and smoke detectors,1233,Contractor Payments,,,,,,,,
GUILDFORD BOROUGH COUNCIL,Renovations,1000554,Seville Developments,08/03/2022,30043466,1073.25,0,Contractor Payments,,Invoice,BACS,No,14/02/2022 00:00,2021,12,5216,N40287,Electrical testing and smoke detectors,1233,Contractor Payments,,,,,,,,
GUILDFORD BOROUGH COUNCIL,Renovations,1000554,Seville Developments,08/03/2022,30043466,741.29,0,Contractor Payments,,Invoice,BACS,No,14/02/2022 00:00,2021,12,5216,N40287,Electrical testing and smoke detectors,1233,Contractor Payments,,,,,,,,
GUILDFORD BOROUGH COUNCIL,Renovations,1000554,Seville Developments,08/03/2022,30043466,1046.83,0,Contractor Payments,,Invoice,BACS,No,14/02/2022 00:00,2021,12,5216,N40287,Electrical testing and smoke detectors,1233,Contractor Payments,,,,,,,,
GUILDFORD BOROUGH COUNCIL,Renovations,1000554,Seville Developments,08/03/2022,30043466,1043.74,0,Contractor Payments,,Invoice,BACS,No,14/02/2022 00:00,2021,12,5216,N40287,Electrical testing and smoke detectors,1233,Contractor Payments,,,,,,,,
GUILDFORD BOROUGH COUNCIL,Renovations,1000554,Seville Developments,08/03/2022,30043466,1418.22,0,Contractor Payments,,Invoice,BACS,No,14/02/2022 00:00,2021,12,5216,N40287,Electrical testing and smoke detectors,1233,Contractor Payments,,,,,,,,
GUILDFORD BOROUGH COUNCIL,Renovations,1000554,Seville Developments,08/03/2022,30043466,873.54,0,Contractor Payments,,Invoice,BACS,No,14/02/2022 00:00,2021,12,5216,N40287,Electrical testing and smoke detectors,1233,Contractor Payments,,,,,,,,
GUILDFORD BOROUGH COUNCIL,Renovations,1000554,Seville Developments,08/03/2022,30043466,804.54,0,Contractor Payments,,Invoice,BACS,No,14/02/2022 00:00,2021,12,5216,N40287,Electrical testing and smoke detectors,1233,Contractor Payments,,,,,,,,
GUILDFORD BOROUGH COUNCIL,Renovations,1000554,Seville Developments,08/03/2022,30043466,1018.84,0,Contractor Payments,,Invoice,BACS,No,14/02/2022 00:00,2021,12,5216,N40287,Electrical testing and smoke detectors,1233,Contractor Payments,,,,,,,,
GUILDFORD BOROUGH COUNCIL,Renovations,1000554,Seville Developments,08/03/2022,30043466,984.83,0,Contractor Payments,,Invoice,BACS,No,14/02/2022 00:00,2021,12,5216,N40287,Electrical testing and smoke detectors,1233,Contractor Payments,,,,,,,,
GUILDFORD BOROUGH COUNCIL,Renovations,1000554,Seville Developments,08/03/2022,30043466,873.54,0,Contractor Payments,,Invoice,BACS,No,14/02/2022 00:00,2021,12,5216,N40287,Electrical testing and smoke detectors,1233,Contractor Payments,,,,,,,,
GUILDFORD BOROUGH COUNCIL,Renovations,1000554,Seville Developments,08/03/2022,30043466,1301.51,0,Contractor Payments,,Invoice,BACS,No,14/02/2022 00:00,2021,12,5216,N40287,Electrical testing and smoke detectors,1233,Contractor Payments,,,,,,,,
GUILDFORD BOROUGH COUNCIL,Renovations,1000554,Seville Developments,08/03/2022,30043466,1005.97,0,Contractor Payments,,Invoice,BACS,No,14/02/2022 00:00,2021,12,5216,N40287,Electrical testing and smoke detectors,1233,Contractor Payments,,,,,,,,
GUILDFORD BOROUGH COUNCIL,Renovations,1000554,Seville Developments,08/03/2022,30043466,1293.81,0,Contractor Payments,,Invoice,BACS,No,14/02/2022 00:00,2021,12,5216,N40287,Electrical testing and smoke detectors,1233,Contractor Payments,,,,,,,,
GUILDFORD BOROUGH COUNCIL,Renovations,1000554,Seville Developments,08/03/2022,30043466,1018.44,0,Contractor Payments,,Invoice,BACS,No,14/02/2022 00:00,2021,12,5216,N40287,Electrical testing and smoke detectors,1233,Contractor Payments,,,,,,,,
GUILDFORD BOROUGH COUNCIL,Renovations,1000554,Seville Developments,08/03/2022,30043466,1562.91,0,Contractor Payments,,Invoice,BACS,No,14/02/2022 00:00,2021,12,5216,N40287,Electrical testing and smoke detectors,1233,Contractor Payments,,,,,,,,
GUILDFORD BOROUGH COUNCIL,Renovations,1000554,Seville Developments,08/03/2022,30043466,1031.95,0,Contractor Payments,,Invoice,BACS,No,14/02/2022 00:00,2021,12,5216,N40287,Electrical testing and smoke detectors,1233,Contractor Payments,,,,,,,,
GUILDFORD BOROUGH COUNCIL,Renovations,1000554,Seville Developments,08/03/2022,30043466,1228.23,0,Contractor Payments,,Invoice,BACS,No,14/02/2022 00:00,2021,12,5216,N40287,Electrical testing and smoke detectors,1233,Contractor Payments,,,,,,,,
GUILDFORD BOROUGH COUNCIL,Renovations,1000554,Seville Developments,08/03/2022,30043466,1272.75,0,Contractor Payments,,Invoice,BACS,No,14/02/2022 00:00,2021,12,5216,N40287,Electrical testing and smoke detectors,1233,Contractor Payments,,,,,,,,
GUILDFORD BOROUGH COUNCIL,Renovations,1000554,Seville Developments,08/03/2022,30043466,993.96,0,Contractor Payments,,Invoice,BACS,No,14/02/2022 00:00,2021,12,5216,N40287,Electrical testing and smoke detectors,1233,Contractor Payments,,,,,,,,
GUILDFORD BOROUGH COUNCIL,Renovations,1000554,Seville Developments,08/03/2022,30043466,1064.33,0,Contractor Payments,,Invoice,BACS,No,14/02/2022 00:00,2021,12,5216,N40287,Electrical testing and smoke detectors,1233,Contractor Payments,,,,,,,,
GUILDFORD BOROUGH COUNCIL,Renovations,1000554,Seville Developments,08/03/2022,30043466,989.31,0,Contractor Payments,,Invoice,BACS,No,14/02/2022 00:00,2021,12,5216,N40287,Electrical testing and smoke detectors,1233,Contractor Payments,,,,,,,,
GUILDFORD BOROUGH COUNCIL,Renovations,1000554,Seville Developments,08/03/2022,30043466,1135.24,0,Contractor Payments,,Invoice,BACS,No,14/02/2022 00:00,2021,12,5216,N40287,Electrical testing and smoke detectors,1233,Contractor Payments,,,,,,,,
GUILDFORD BOROUGH COUNCIL,Renovations,1000554,Seville Developments,08/03/2022,30043466,995.1,0,Contractor Payments,,Invoice,BACS,No,14/02/2022 00:00,2021,12,5216,N40287,Electrical testing and smoke detectors,1233,Contractor Payments,,,,,,,,
GUILDFORD BOROUGH COUNCIL,Renovations,1000554,Seville Developments,08/03/2022,30043466,1044.02,0,Contractor Payments,,Invoice,BACS,No,14/02/2022 00:00,2021,12,5216,N40287,Electrical testing and smoke detectors,1233,Contractor Payments,,,,,,,,
GUILDFORD BOROUGH COUNCIL,Renovations,1000554,Seville Developments,08/03/2022,30043466,957.95,0,Contractor Payments,,Invoice,BACS,No,14/02/2022 00:00,2021,12,5216,N40287,Electrical testing and smoke detectors,1233,Contractor Payments,,,,,,,,
GUILDFORD BOROUGH COUNCIL,Renovations,1000554,Seville Developments,08/03/2022,30043466,1685.97,0,Contractor Payments,,Invoice,BACS,No,14/02/2022 00:00,2021,12,5216,N40287,Electrical testing and smoke detectors,1233,Contractor Payments,,,,,,,,
GUILDFORD BOROUGH COUNCIL,Renovations,1000554,Seville Developments,08/03/2022,30043466,662.78,0,Contractor Payments,,Invoice,BACS,No,14/02/2022 00:00,2021,12,5216,N40287,Electrical testing and smoke detectors,1233,Contractor Payments,,,,,,,,
GUILDFORD BOROUGH COUNCIL,Renovations,1000554,Seville Developments,08/03/2022,30043466,1153.66,0,Contractor Payments,,Invoice,BACS,No,14/02/2022 00:00,2021,12,5216,N40287,Electrical testing and smoke detectors,1233,Contractor Payments,,,,,,,,
GUILDFORD BOROUGH COUNCIL,Renovations,1000554,Seville Developments,08/03/2022,30043466,1119.89,0,Contractor Payments,,Invoice,BACS,No,14/02/2022 00:00,2021,12,5216,N40287,Electrical testing and smoke detectors,1233,Contractor Payments,,,,,,,,
GUILDFORD BOROUGH COUNCIL,Renovations,1000554,Seville Developments,08/03/2022,30043466,1691.28,0,Contractor Payments,,Invoice,BACS,No,14/02/2022 00:00,2021,12,5216,N40287,Electrical testing and smoke detectors,1233,Contractor Payments,,,,,,,,
GUILDFORD BOROUGH COUNCIL,Renovations,1000554,Seville Developments,08/03/2022,30043466,1336.13,0,Contractor Payments,,Invoice,BACS,No,14/02/2022 00:00,2021,12,5216,N40287,Electrical testing and smoke detectors,1233,Contractor Payments,,,,,,,,
GUILDFORD BOROUGH COUNCIL,Renovations,1000554,Seville Developments,08/03/2022,30043466,1149.77,0,Contractor Payments,,Invoice,BACS,No,14/02/2022 00:00,2021,12,5216,N40287,Electrical testing and smoke detectors,1233,Contractor Payments,,,,,,,,
GUILDFORD BOROUGH COUNCIL,Renovations,1000554,Seville Developments,08/03/2022,30043466,415.85,0,Contractor Payments,,Invoice,BACS,No,14/02/2022 00:00,2021,12,5216,N40287,Electrical testing and smoke detectors,1233,Contractor Payments,,,,,,,,
GUILDFORD BOROUGH COUNCIL,Renovations,1000554,Seville Developments,08/03/2022,30043466,2400,0,Contractor Payments,,Invoice,BACS,No,14/02/2022 00:00,2021,12,5216,N40287,Electrical testing and smoke detectors,1233,Contractor Payments,,,,,,,,
GUILDFORD BOROUGH COUNCIL,Renovations,1000554,Seville Developments,08/03/2022,30043466,8691.79,0,Contractor Payments,,Invoice,BACS,No,14/02/2022 00:00,2021,12,5216,N40287,Electrical testing and smoke detectors,1233,Contractor Payments,,,,,,,,
GUILDFORD BOROUGH COUNCIL,Renovations,1000554,Seville Developments,08/03/2022,30043466,1369.6,0,Contractor Payments,,Invoice,BACS,No,14/02/2022 00:00,2021,12,5216,N40287,Electrical testing and smoke detectors,1233,Contractor Payments,,,,,,,,
GUILDFORD BOROUGH COUNCIL,Renovations,1000554,Seville Developments,08/03/2022,30043466,2450,0,Contractor Payments,,Invoice,BACS,No,14/02/2022 00:00,2021,12,5216,N40287,Electrical testing and smoke detectors,1233,Contractor Payments,,,,,,,,
GUILDFORD BOROUGH COUNCIL,Renovations,1000554,Seville Developments,08/03/2022,30043466,2710.5,0,Contractor Payments,,Invoice,BACS,No,14/02/2022 00:00,2021,12,5216,N40287,Electrical testing and smoke detectors,1233,Contractor Payments,,,,,,,,
GUILDFORD BOROUGH COUNCIL,Renovations,1000554,Seville Developments,08/03/2022,30043466,1600,0,Contractor Payments,,Invoice,BACS,No,14/02/2022 00:00,2021,12,5216,N40287,Electrical testing and smoke detectors,1233,Contractor Payments,,,,,,,,
GUILDFORD BOROUGH COUNCIL,Renovations,1000554,Seville Developments,08/03/2022,30043466,4345.9,0,Contractor Payments,,Invoice,BACS,No,14/02/2022 00:00,2021,12,5216,N40287,Electrical testing and smoke detectors,1233,Contractor Payments,,,,,,,,
GUILDFORD BOROUGH COUNCIL,Renovations,1000554,Seville Developments,08/03/2022,30043466,446.19,0,Contractor Payments,,Invoice,BACS,No,14/02/2022 00:00,2021,12,5216,N40287,Electrical testing and smoke detectors,1233,Contractor Payments,,,,,,,,
GUILDFORD BOROUGH COUNCIL,Renovations,1000554,Seville Developments,08/03/2022,30043466,477.75,0,Contractor Payments,,Invoice,BACS,No,14/02/2022 00:00,2021,12,5216,N40287,Electrical testing and smoke detectors,1233,Contractor Payments,,,,,,,,
GUILDFORD BOROUGH COUNCIL,Renovations,1000554,Seville Developments,08/03/2022,30043467,926.59,0,Contractor Payments,,Invoice,BACS,No,07/02/2022 00:00,2021,12,5217,N40287,Electrical testing and smoke detectors,1233,Contractor Payments,,,,,,,,
GUILDFORD BOROUGH COUNCIL,Renovations,1000554,Seville Developments,08/03/2022,30043467,973.62,0,Contractor Payments,,Invoice,BACS,No,07/02/2022 00:00,2021,12,5217,N40287,Electrical testing and smoke detectors,1233,Contractor Payments,,,,,,,,
GUILDFORD BOROUGH COUNCIL,Renovations,1000554,Seville Developments,08/03/2022,30043467,901.93,0,Contractor Payments,,Invoice,BACS,No,07/02/2022 00:00,2021,12,5217,N40287,Electrical testing and smoke detectors,1233,Contractor Payments,,,,,,,,
GUILDFORD BOROUGH COUNCIL,Renovations,1000554,Seville Developments,08/03/2022,30043467,633.9,0,Contractor Payments,,Invoice,BACS,No,07/02/2022 00:00,2021,12,5217,N40287,Electrical testing and smoke detectors,1233,Contractor Payments,,,,,,,,
GUILDFORD BOROUGH COUNCIL,Renovations,1000554,Seville Developments,08/03/2022,30043467,938.5,0,Contractor Payments,,Invoice,BACS,No,07/02/2022 00:00,2021,12,5217,N40287,Electrical testing and smoke detectors,1233,Contractor Payments,,,,,,,,
GUILDFORD BOROUGH COUNCIL,Renovations,1000554,Seville Developments,08/03/2022,30043467,1095.52,0,Contractor Payments,,Invoice,BACS,No,07/02/2022 00:00,2021,12,5217,N40287,Electrical testing and smoke detectors,1233,Contractor Payments,,,,,,,,
GUILDFORD BOROUGH COUNCIL,Renovations,1000554,Seville Developments,08/03/2022,30043467,334.02,0,Contractor Payments,,Invoice,BACS,No,07/02/2022 00:00,2021,12,5217,N40287,Electrical testing and smoke detectors,1233,Contractor Payments,,,,,,,,
GUILDFORD BOROUGH COUNCIL,Renovations,1000554,Seville Developments,08/03/2022,30043467,742.19,0,Contractor Payments,,Invoice,BACS,No,07/02/2022 00:00,2021,12,5217,N40287,Electrical testing and smoke detectors,1233,Contractor Payments,,,,,,,,
GUILDFORD BOROUGH COUNCIL,Renovations,1000554,Seville Developments,08/03/2022,30043467,1362.97,0,Contractor Payments,,Invoice,BACS,No,07/02/2022 00:00,2021,12,5217,N40287,Electrical testing and smoke detectors,1233,Contractor Payments,,,,,,,,
GUILDFORD BOROUGH COUNCIL,Renovations,1000554,Seville Developments,08/03/2022,30043467,926.59,0,Contractor Payments,,Invoice,BACS,No,07/02/2022 00:00,2021,12,5217,N40287,Electrical testing and smoke detectors,1233,Contractor Payments,,,,,,,,
GUILDFORD BOROUGH COUNCIL,Renovations,1000554,Seville Developments,08/03/2022,30043467,755.25,0,Contractor Payments,,Invoice,BACS,No,07/02/2022 00:00,2021,12,5217,N40287,Electrical testing and smoke detectors,1233,Contractor Payments,,,,,,,,
GUILDFORD BOROUGH COUNCIL,Renovations,1000554,Seville Developments,08/03/2022,30043467,862.19,0,Contractor Payments,,Invoice,BACS,No,07/02/2022 00:00,2021,12,5217,N40287,Electrical testing and smoke detectors,1233,Contractor Payments,,,,,,,,
GUILDFORD BOROUGH COUNCIL,Renovations,1000554,Seville Developments,08/03/2022,30043467,804.84,0,Contractor Payments,,Invoice,BACS,No,07/02/2022 00:00,2021,12,5217,N40287,Electrical testing and smoke detectors,1233,Contractor Payments,,,,,,,,
GUILDFORD BOROUGH COUNCIL,Renovations,1000554,Seville Developments,08/03/2022,30043467,901.93,0,Contractor Payments,,Invoice,BACS,No,07/02/2022 00:00,2021,12,5217,N40287,Electrical testing and smoke detectors,1233,Contractor Payments,,,,,,,,
GUILDFORD BOROUGH COUNCIL,Renovations,1000554,Seville Developments,08/03/2022,30043467,1094.34,0,Contractor Payments,,Invoice,BACS,No,07/02/2022 00:00,2021,12,5217,N40287,Electrical testing and smoke detectors,1233,Contractor Payments,,,,,,,,
GUILDFORD BOROUGH COUNCIL,Renovations,1000554,Seville Developments,08/03/2022,30043467,968.94,0,Contractor Payments,,Invoice,BACS,No,07/02/2022 00:00,2021,12,5217,N40287,Electrical testing and smoke detectors,1233,Contractor Payments,,,,,,,,
GUILDFORD BOROUGH COUNCIL,Renovations,1000554,Seville Developments,08/03/2022,30043467,1121.52,0,Contractor Payments,,Invoice,BACS,No,07/02/2022 00:00,2021,12,5217,N40287,Electrical testing and smoke detectors,1233,Contractor Payments,,,,,,,,
GUILDFORD BOROUGH COUNCIL,Renovations,1000554,Seville Developments,08/03/2022,30043467,1150.86,0,Contractor Payments,,Invoice,BACS,No,07/02/2022 00:00,2021,12,5217,N40287,Electrical testing and smoke detectors,1233,Contractor Payments,,,,,,,,
GUILDFORD BOROUGH COUNCIL,Renovations,1000554,Seville Developments,08/03/2022,30043467,1349.65,0,Contractor Payments,,Invoice,BACS,No,07/02/2022 00:00,2021,12,5217,N40287,Electrical testing and smoke detectors,1233,Contractor Payments,,,,,,,,
GUILDFORD BOROUGH COUNCIL,Renovations,1000554,Seville Developments,08/03/2022,30043467,782.33,0,Contractor Payments,,Invoice,BACS,No,07/02/2022 00:00,2021,12,5217,N40287,Electrical testing and smoke detectors,1233,Contractor Payments,,,,,,,,
GUILDFORD BOROUGH COUNCIL,Renovations,1000554,Seville Developments,08/03/2022,30043467,1024.46,0,Contractor Payments,,Invoice,BACS,No,07/02/2022 00:00,2021,12,5217,N40287,Electrical testing and smoke detectors,1233,Contractor Payments,,,,,,,,
GUILDFORD BOROUGH COUNCIL,Renovations,1000554,Seville Developments,08/03/2022,30043467,1020.44,0,Contractor Payments,,Invoice,BACS,No,07/02/2022 00:00,2021,12,5217,N40287,Electrical testing and smoke detectors,1233,Contractor Payments,,,,,,,,
GUILDFORD BOROUGH COUNCIL,Renovations,1000554,Seville Developments,08/03/2022,30043467,615.46,0,Contractor Payments,,Invoice,BACS,No,07/02/2022 00:00,2021,12,5217,N40287,Electrical testing and smoke detectors,1233,Contractor Payments,,,,,,,,
GUILDFORD BOROUGH COUNCIL,Renovations,1000554,Seville Developments,08/03/2022,30043467,496.84,0,Contractor Payments,,Invoice,BACS,No,07/02/2022 00:00,2021,12,5217,N40287,Electrical testing and smoke detectors,1233,Contractor Payments,,,,,,,,
GUILDFORD BOROUGH COUNCIL,Renovations,1000554,Seville Developments,08/03/2022,30043467,1018.44,0,Contractor Payments,,Invoice,BACS,No,07/02/2022 00:00,2021,12,5217,N40287,Electrical testing and smoke detectors,1233,Contractor Payments,,,,,,,,
GUILDFORD BOROUGH COUNCIL,Renovations,1000554,Seville Developments,08/03/2022,30043467,1640,0,Contractor Payments,,Invoice,BACS,No,07/02/2022 00:00,2021,12,5217,N40287,Electrical testing and smoke detectors,1233,Contractor Payments,,,,,,,,
GUILDFORD BOROUGH COUNCIL,Renovations,1000554,Seville Developments,08/03/2022,30043467,916.86,0,Contractor Payments,,Invoice,BACS,No,07/02/2022 00:00,2021,12,5217,N40287,Electrical testing and smoke detectors,1233,Contractor Payments,,,,,,,,
GUILDFORD BOROUGH COUNCIL,Renovations,1000554,Seville Developments,08/03/2022,30043467,937.34,0,Contractor Payments,,Invoice,BACS,No,07/02/2022 00:00,2021,12,5217,N40287,Electrical testing and smoke detectors,1233,Contractor Payments,,,,,,,,
GUILDFORD BOROUGH COUNCIL,Renovations,1000554,Seville Developments,08/03/2022,30043467,1018.03,0,Contractor Payments,,Invoice,BACS,No,07/02/2022 00:00,2021,12,5217,N40287,Electrical testing and smoke detectors,1233,Contractor Payments,,,,,,,,
GUILDFORD BOROUGH COUNCIL,Renovations,1000554,Seville Developments,08/03/2022,30043467,1453.07,0,Contractor Payments,,Invoice,BACS,No,07/02/2022 00:00,2021,12,5217,N40287,Electrical testing and smoke detectors,1233,Contractor Payments,,,,,,,,
GUILDFORD BOROUGH COUNCIL,Renovations,1000554,Seville Developments,08/03/2022,30043467,1263.56,0,Contractor Payments,,Invoice,BACS,No,07/02/2022 00:00,2021,12,5217,N40287,Electrical testing and smoke detectors,1233,Contractor Payments,,,,,,,,
GUILDFORD BOROUGH COUNCIL,Renovations,1000554,Seville Developments,08/03/2022,30043467,954,0,Contractor Payments,,Invoice,BACS,No,07/02/2022 00:00,2021,12,5217,N40287,Electrical testing and smoke detectors,1233,Contractor Payments,,,,,,,,
GUILDFORD BOROUGH COUNCIL,Renovations,1000554,Seville Developments,08/03/2022,30043467,980.67,0,Contractor Payments,,Invoice,BACS,No,07/02/2022 00:00,2021,12,5217,N40287,Electrical testing and smoke detectors,1233,Contractor Payments,,,,,,,,
GUILDFORD BOROUGH COUNCIL,Renovations,1000554,Seville Developments,08/03/2022,30043467,873.54,0,Contractor Payments,,Invoice,BACS,No,07/02/2022 00:00,2021,12,5217,N40287,Electrical testing and smoke detectors,1233,Contractor Payments,,,,,,,,
GUILDFORD BOROUGH COUNCIL,Renovations,1000554,Seville Developments,08/03/2022,30043467,1164.65,0,Contractor Payments,,Invoice,BACS,No,07/02/2022 00:00,2021,12,5217,N40287,Electrical testing and smoke detectors,1233,Contractor Payments,,,,,,,,
GUILDFORD BOROUGH COUNCIL,Renovations,1000554,Seville Developments,08/03/2022,30043467,977.21,0,Contractor Payments,,Invoice,BACS,No,07/02/2022 00:00,2021,12,5217,N40287,Electrical testing and smoke detectors,1233,Contractor Payments,,,,,,,,
GUILDFORD BOROUGH COUNCIL,Renovations,1000554,Seville Developments,08/03/2022,30043467,914.09,0,Contractor Payments,,Invoice,BACS,No,07/02/2022 00:00,2021,12,5217,N40287,Electrical testing and smoke detectors,1233,Contractor Payments,,,,,,,,
GUILDFORD BOROUGH COUNCIL,Renovations,1000554,Seville Developments,08/03/2022,30043467,1807,0,Contractor Payments,,Invoice,BACS,No,07/02/2022 00:00,2021,12,5217,N40287,Electrical testing and smoke detectors,1233,Contractor Payments,,,,,,,,
GUILDFORD BOROUGH COUNCIL,Renovations,1000554,Seville Developments,08/03/2022,30043467,2400,0,Contractor Payments,,Invoice,BACS,No,07/02/2022 00:00,2021,12,5217,N40287,Electrical testing and smoke detectors,1233,Contractor Payments,,,,,,,,
GUILDFORD BOROUGH COUNCIL,Renovations,1000554,Seville Developments,08/03/2022,30043467,4345.88,0,Contractor Payments,,Invoice,BACS,No,07/02/2022 00:00,2021,12,5217,N40287,Electrical testing and smoke detectors,1233,Contractor Payments,,,,,,,,
GUILDFORD BOROUGH COUNCIL,Renovations,1000554,Seville Developments,08/03/2022,30043467,4345.9,0,Contractor Payments,,Invoice,BACS,No,07/02/2022 00:00,2021,12,5217,N40287,Electrical testing and smoke detectors,1233,Contractor Payments,,,,,,,,
GUILDFORD BOROUGH COUNCIL,Renovations,1000554,Seville Developments,08/03/2022,30043467,907.64,0,Contractor Payments,,Invoice,BACS,No,07/02/2022 00:00,2021,12,5217,N40287,Electrical testing and smoke detectors,1233,Contractor Payments,,,,,,,,
GUILDFORD BOROUGH COUNCIL,Renovations,1000554,Seville Developments,08/03/2022,30043467,958.12,0,Contractor Payments,,Invoice,BACS,No,07/02/2022 00:00,2021,12,5217,N40287,Electrical testing and smoke detectors,1233,Contractor Payments,,,,,,,,
GUILDFORD BOROUGH COUNCIL,Renovations,1000554,Seville Developments,08/03/2022,30043467,258.42,0,Contractor Payments,,Invoice,BACS,No,07/02/2022 00:00,2021,12,5217,N40287,Electrical testing and smoke detectors,1233,Contractor Payments,,,,,,,,
GUILDFORD BOROUGH COUNCIL,Renovations,1000554,Seville Developments,08/03/2022,30043468,1094.34,0,Contractor Payments,,Invoice,BACS,No,31/01/2022 00:00,2021,12,5218,N40287,Electrical testing and smoke detectors,1233,Contractor Payments,,,,,,,,
GUILDFORD BOROUGH COUNCIL,Renovations,1000554,Seville Developments,08/03/2022,30043468,1067.73,0,Contractor Payments,,Invoice,BACS,No,31/01/2022 00:00,2021,12,5218,N40287,Electrical testing and smoke detectors,1233,Contractor Payments,,,,,,,,
GUILDFORD BOROUGH COUNCIL,Renovations,1000554,Seville Developments,08/03/2022,30043468,1072.64,0,Contractor Payments,,Invoice,BACS,No,31/01/2022 00:00,2021,12,5218,N40287,Electrical testing and smoke detectors,1233,Contractor Payments,,,,,,,,
GUILDFORD BOROUGH COUNCIL,Renovations,1000554,Seville Developments,08/03/2022,30043468,1181.25,0,Contractor Payments,,Invoice,BACS,No,31/01/2022 00:00,2021,12,5218,N40287,Electrical testing and smoke detectors,1233,Contractor Payments,,,,,,,,
GUILDFORD BOROUGH COUNCIL,Renovations,1000554,Seville Developments,08/03/2022,30043468,1183.22,0,Contractor Payments,,Invoice,BACS,No,31/01/2022 00:00,2021,12,5218,N40287,Electrical testing and smoke detectors,1233,Contractor Payments,,,,,,,,
GUILDFORD BOROUGH COUNCIL,Renovations,1000554,Seville Developments,08/03/2022,30043468,1219.31,0,Contractor Payments,,Invoice,BACS,No,31/01/2022 00:00,2021,12,5218,N40287,Electrical testing and smoke detectors,1233,Contractor Payments,,,,,,,,
GUILDFORD BOROUGH COUNCIL,Renovations,1000554,Seville Developments,08/03/2022,30043468,1321.8,0,Contractor Payments,,Invoice,BACS,No,31/01/2022 00:00,2021,12,5218,N40287,Electrical testing and smoke detectors,1233,Contractor Payments,,,,,,,,
GUILDFORD BOROUGH COUNCIL,Renovations,1000554,Seville Developments,08/03/2022,30043468,4517.5,0,Contractor Payments,,Invoice,BACS,No,31/01/2022 00:00,2021,12,5218,N40287,Electrical testing and smoke detectors,1233,Contractor Payments,,,,,,,,
GUILDFORD BOROUGH COUNCIL,Renovations,1000554,Seville Developments,08/03/2022,30043468,4000,0,Contractor Payments,,Invoice,BACS,No,31/01/2022 00:00,2021,12,5218,N40287,Electrical testing and smoke detectors,1233,Contractor Payments,,,,,,,,
GUILDFORD BOROUGH COUNCIL,Renovations,1000554,Seville Developments,08/03/2022,30043468,8691.79,0,Contractor Payments,,Invoice,BACS,No,31/01/2022 00:00,2021,12,5218,N40287,Electrical testing and smoke detectors,1233,Contractor Payments,,,,,,,,
GUILDFORD BOROUGH COUNCIL,Renovations,1000554,Seville Developments,08/03/2022,30043468,4345.9,0,Contractor Payments,,Invoice,BACS,No,31/01/2022 00:00,2021,12,5218,N40287,Electrical testing and smoke detectors,1233,Contractor Payments,,,,,,,,
GUILDFORD BOROUGH COUNCIL,Renovations,1000554,Seville Developments,08/03/2022,30043468,1530.35,0,Contractor Payments,,Invoice,BACS,No,31/01/2022 00:00,2021,12,5218,N40287,Electrical testing and smoke detectors,1233,Contractor Payments,,,,,,,,
GUILDFORD BOROUGH COUNCIL,Renovations,1000554,Seville Developments,08/03/2022,30043468,579.78,0,Contractor Payments,,Invoice,BACS,No,31/01/2022 00:00,2021,12,5218,N40287,Electrical testing and smoke detectors,1233,Contractor Payments,,,,,,,,
GUILDFORD BOROUGH COUNCIL,Renovations,1000554,Seville Developments,08/03/2022,30043468,1715.19,0,Contractor Payments,,Invoice,BACS,No,31/01/2022 00:00,2021,12,5218,N40287,Electrical testing and smoke detectors,1233,Contractor Payments,,,,,,,,
GUILDFORD BOROUGH COUNCIL,Renovations,1000554,Seville Developments,08/03/2022,30043468,1199.25,0,Contractor Payments,,Invoice,BACS,No,31/01/2022 00:00,2021,12,5218,N40287,Electrical testing and smoke detectors,1233,Contractor Payments,,,,,,,,
GUILDFORD BOROUGH COUNCIL,Renovations,1000554,Seville Developments,08/03/2022,30043468,408.52,0,Contractor Payments,,Invoice,BACS,No,31/01/2022 00:00,2021,12,5218,N40287,Electrical testing and smoke detectors,1233,Contractor Payments,,,,,,,,
GUILDFORD BOROUGH COUNCIL,Renovations,1000554,Seville Developments,08/03/2022,30043468,915.89,0,Contractor Payments,,Invoice,BACS,No,31/01/2022 00:00,2021,12,5218,N40287,Electrical testing and smoke detectors,1233,Contractor Payments,,,,,,,,
GUILDFORD BOROUGH COUNCIL,Renovations,1000554,Seville Developments,08/03/2022,30043468,3665,0,Contractor Payments,,Invoice,BACS,No,31/01/2022 00:00,2021,12,5218,N40287,Electrical testing and smoke detectors,1233,Contractor Payments,,,,,,,,
GUILDFORD BOROUGH COUNCIL,Renovations,1000554,Seville Developments,08/03/2022,30043468,3665,0,Contractor Payments,,Invoice,BACS,No,31/01/2022 00:00,2021,12,5218,N40287,Electrical testing and smoke detectors,1233,Contractor Payments,,,,,,,,
GUILDFORD BOROUGH COUNCIL,Renovations,1000554,Seville Developments,08/03/2022,30043468,953.23,0,Contractor Payments,,Invoice,BACS,No,31/01/2022 00:00,2021,12,5218,N40287,Electrical testing and smoke detectors,1233,Contractor Payments,,,,,,,,
GUILDFORD BOROUGH COUNCIL,Renovations,1000554,Seville Developments,08/03/2022,30043468,1527.61,0,Contractor Payments,,Invoice,BACS,No,31/01/2022 00:00,2021,12,5218,N40287,Electrical testing and smoke detectors,1233,Contractor Payments,,,,,,,,
GUILDFORD BOROUGH COUNCIL,Renovations,1000554,Seville Developments,08/03/2022,30043468,1115.19,0,Contractor Payments,,Invoice,BACS,No,31/01/2022 00:00,2021,12,5218,N40287,Electrical testing and smoke detectors,1233,Contractor Payments,,,,,,,,
GUILDFORD BOROUGH COUNCIL,Renovations,1000554,Seville Developments,08/03/2022,30043468,924.14,0,Contractor Payments,,Invoice,BACS,No,31/01/2022 00:00,2021,12,5218,N40287,Electrical testing and smoke detectors,1233,Contractor Payments,,,,,,,,
GUILDFORD BOROUGH COUNCIL,Renovations,1000554,Seville Developments,08/03/2022,30043468,765.76,0,Contractor Payments,,Invoice,BACS,No,31/01/2022 00:00,2021,12,5218,N40287,Electrical testing and smoke detectors,1233,Contractor Payments,,,,,,,,
GUILDFORD BOROUGH COUNCIL,Renovations,1000554,Seville Developments,08/03/2022,30043468,804.73,0,Contractor Payments,,Invoice,BACS,No,31/01/2022 00:00,2021,12,5218,N40287,Electrical testing and smoke detectors,1233,Contractor Payments,,,,,,,,
GUILDFORD BOROUGH COUNCIL,Renovations,1000554,Seville Developments,08/03/2022,30043468,1299.05,0,Contractor Payments,,Invoice,BACS,No,31/01/2022 00:00,2021,12,5218,N40287,Electrical testing and smoke detectors,1233,Contractor Payments,,,,,,,,
GUILDFORD BOROUGH COUNCIL,Renovations,1000554,Seville Developments,08/03/2022,30043468,1114.78,0,Contractor Payments,,Invoice,BACS,No,31/01/2022 00:00,2021,12,5218,N40287,Electrical testing and smoke detectors,1233,Contractor Payments,,,,,,,,
GUILDFORD BOROUGH COUNCIL,Renovations,1000554,Seville Developments,08/03/2022,30043468,1167.79,0,Contractor Payments,,Invoice,BACS,No,31/01/2022 00:00,2021,12,5218,N40287,Electrical testing and smoke detectors,1233,Contractor Payments,,,,,,,,
GUILDFORD BOROUGH COUNCIL,Renovations,1000554,Seville Developments,08/03/2022,30043468,430.43,0,Contractor Payments,,Invoice,BACS,No,31/01/2022 00:00,2021,12,5218,N40287,Electrical testing and smoke detectors,1233,Contractor Payments,,,,,,,,
GUILDFORD BOROUGH COUNCIL,Renovations,1000554,Seville Developments,08/03/2022,30043468,807.29,0,Contractor Payments,,Invoice,BACS,No,31/01/2022 00:00,2021,12,5218,N40287,Electrical testing and smoke detectors,1233,Contractor Payments,,,,,,,,
GUILDFORD BOROUGH COUNCIL,Renovations,1000554,Seville Developments,08/03/2022,30043468,751.15,0,Contractor Payments,,Invoice,BACS,No,31/01/2022 00:00,2021,12,5218,N40287,Electrical testing and smoke detectors,1233,Contractor Payments,,,,,,,,
GUILDFORD BOROUGH COUNCIL,Renovations,1000554,Seville Developments,08/03/2022,30043468,738.5,0,Contractor Payments,,Invoice,BACS,No,31/01/2022 00:00,2021,12,5218,N40287,Electrical testing and smoke detectors,1233,Contractor Payments,,,,,,,,
GUILDFORD BOROUGH COUNCIL,Renovations,1000554,Seville Developments,08/03/2022,30043468,900.78,0,Contractor Payments,,Invoice,BACS,No,31/01/2022 00:00,2021,12,5218,N40287,Electrical testing and smoke detectors,1233,Contractor Payments,,,,,,,,
GUILDFORD BOROUGH COUNCIL,Renovations,1000554,Seville Developments,08/03/2022,30043468,986.74,0,Contractor Payments,,Invoice,BACS,No,31/01/2022 00:00,2021,12,5218,N40287,Electrical testing and smoke detectors,1233,Contractor Payments,,,,,,,,
GUILDFORD BOROUGH COUNCIL,Renovations,1000554,Seville Developments,08/03/2022,30043468,998.82,0,Contractor Payments,,Invoice,BACS,No,31/01/2022 00:00,2021,12,5218,N40287,Electrical testing and smoke detectors,1233,Contractor Payments,,,,,,,,
GUILDFORD BOROUGH COUNCIL,Renovations,1000554,Seville Developments,08/03/2022,30043468,747.79,0,Contractor Payments,,Invoice,BACS,No,31/01/2022 00:00,2021,12,5218,N40287,Electrical testing and smoke detectors,1233,Contractor Payments,,,,,,,,
GUILDFORD BOROUGH COUNCIL,Renovations,1000554,Seville Developments,08/03/2022,30043468,1729.66,0,Contractor Payments,,Invoice,BACS,No,31/01/2022 00:00,2021,12,5218,N40287,Electrical testing and smoke detectors,1233,Contractor Payments,,,,,,,,
GUILDFORD BOROUGH COUNCIL,Renovations,1000554,Seville Developments,08/03/2022,30043468,580.95,0,Contractor Payments,,Invoice,BACS,No,31/01/2022 00:00,2021,12,5218,N40287,Electrical testing and smoke detectors,1233,Contractor Payments,,,,,,,,
GUILDFORD BOROUGH COUNCIL,Renovations,1000554,Seville Developments,08/03/2022,30043468,1459.04,0,Contractor Payments,,Invoice,BACS,No,31/01/2022 00:00,2021,12,5218,N40287,Electrical testing and smoke detectors,1233,Contractor Payments,,,,,,,,
GUILDFORD BOROUGH COUNCIL,Renovations,1000554,Seville Developments,08/03/2022,30043468,770.3,0,Contractor Payments,,Invoice,BACS,No,31/01/2022 00:00,2021,12,5218,N40287,Electrical testing and smoke detectors,1233,Contractor Payments,,,,,,,,
GUILDFORD BOROUGH COUNCIL,Renovations,1000554,Seville Developments,08/03/2022,30043468,351.8,0,Contractor Payments,,Invoice,BACS,No,31/01/2022 00:00,2021,12,5218,N40287,Electrical testing and smoke detectors,1233,Contractor Payments,,,,,,,,
GUILDFORD BOROUGH COUNCIL,Renovations,1000554,Seville Developments,08/03/2022,30043468,428.2,0,Contractor Payments,,Invoice,BACS,No,31/01/2022 00:00,2021,12,5218,N40287,Electrical testing and smoke detectors,1233,Contractor Payments,,,,,,,,
GUILDFORD BOROUGH COUNCIL,Renovations,1000554,Seville Developments,08/03/2022,30043468,798.39,0,Contractor Payments,,Invoice,BACS,No,31/01/2022 00:00,2021,12,5218,N40287,Electrical testing and smoke detectors,1233,Contractor Payments,,,,,,,,
GUILDFORD BOROUGH COUNCIL,Renovations,1000554,Seville Developments,08/03/2022,30043468,764.08,0,Contractor Payments,,Invoice,BACS,No,31/01/2022 00:00,2021,12,5218,N40287,Electrical testing and smoke detectors,1233,Contractor Payments,,,,,,,,
GUILDFORD BOROUGH COUNCIL,Renovations,1000554,Seville Developments,08/03/2022,30043468,888.87,0,Contractor Payments,,Invoice,BACS,No,31/01/2022 00:00,2021,12,5218,N40287,Electrical testing and smoke detectors,1233,Contractor Payments,,,,,,,,
GUILDFORD BOROUGH COUNCIL,Renovations,1000554,Seville Developments,08/03/2022,30043468,645.12,0,Contractor Payments,,Invoice,BACS,No,31/01/2022 00:00,2021,12,5218,N40287,Electrical testing and smoke detectors,1233,Contractor Payments,,,,,,,,
GUILDFORD BOROUGH COUNCIL,Renovations,1000554,Seville Developments,08/03/2022,30043468,806.99,0,Contractor Payments,,Invoice,BACS,No,31/01/2022 00:00,2021,12,5218,N40287,Electrical testing and smoke detectors,1233,Contractor Payments,,,,,,,,
GUILDFORD BOROUGH COUNCIL,Renovations,1000554,Seville Developments,08/03/2022,30043468,946.51,0,Contractor Payments,,Invoice,BACS,No,31/01/2022 00:00,2021,12,5218,N40287,Electrical testing and smoke detectors,1233,Contractor Payments,,,,,,,,
GUILDFORD BOROUGH COUNCIL,Renovations,1000554,Seville Developments,08/03/2022,30043468,1426.4,0,Contractor Payments,,Invoice,BACS,No,31/01/2022 00:00,2021,12,5218,N40287,Electrical testing and smoke detectors,1233,Contractor Payments,,,,,,,,
GUILDFORD BOROUGH COUNCIL,Renovations,1000554,Seville Developments,08/03/2022,30043468,1435.44,0,Contractor Payments,,Invoice,BACS,No,31/01/2022 00:00,2021,12,5218,N40287,Electrical testing and smoke detectors,1233,Contractor Payments,,,,,,,,
GUILDFORD BOROUGH COUNCIL,Renovations,1000554,Seville Developments,08/03/2022,30043468,977.19,0,Contractor Payments,,Invoice,BACS,No,31/01/2022 00:00,2021,12,5218,N40287,Electrical testing and smoke detectors,1233,Contractor Payments,,,,,,,,
GUILDFORD BOROUGH COUNCIL,Renovations,1000554,Seville Developments,08/03/2022,30043468,1090.98,0,Contractor Payments,,Invoice,BACS,No,31/01/2022 00:00,2021,12,5218,N40287,Electrical testing and smoke detectors,1233,Contractor Payments,,,,,,,,
GUILDFORD BOROUGH COUNCIL,Renovations,1000554,Seville Developments,08/03/2022,30043468,1029.53,0,Contractor Payments,,Invoice,BACS,No,31/01/2022 00:00,2021,12,5218,N40287,Electrical testing and smoke detectors,1233,Contractor Payments,,,,,,,,
GUILDFORD BOROUGH COUNCIL,Renovations,1000554,Seville Developments,08/03/2022,30043468,816.89,0,Contractor Payments,,Invoice,BACS,No,31/01/2022 00:00,2021,12,5218,N40287,Electrical testing and smoke detectors,1233,Contractor Payments,,,,,,,,
GUILDFORD BOROUGH COUNCIL,Renovations,1000554,Seville Developments,08/03/2022,30043468,915.89,0,Contractor Payments,,Invoice,BACS,No,31/01/2022 00:00,2021,12,5218,N40287,Electrical testing and smoke detectors,1233,Contractor Payments,,,,,,,,
GUILDFORD BOROUGH COUNCIL,Renovations,1000554,Seville Developments,08/03/2022,30043468,1039.13,0,Contractor Payments,,Invoice,BACS,No,31/01/2022 00:00,2021,12,5218,N40287,Electrical testing and smoke detectors,1233,Contractor Payments,,,,,,,,
GUILDFORD BOROUGH COUNCIL,Renovations,1000554,Seville Developments,08/03/2022,30043468,988.24,0,Contractor Payments,,Invoice,BACS,No,31/01/2022 00:00,2021,12,5218,N40287,Electrical testing and smoke detectors,1233,Contractor Payments,,,,,,,,
GUILDFORD BOROUGH COUNCIL,Renovations,1000554,Seville Developments,08/03/2022,30043468,1005.51,0,Contractor Payments,,Invoice,BACS,No,31/01/2022 00:00,2021,12,5218,N40287,Electrical testing and smoke detectors,1233,Contractor Payments,,,,,,,,
GUILDFORD BOROUGH COUNCIL,Renovations,1000554,Seville Developments,08/03/2022,30043468,1087.8,0,Contractor Payments,,Invoice,BACS,No,31/01/2022 00:00,2021,12,5218,N40287,Electrical testing and smoke detectors,1233,Contractor Payments,,,,,,,,
GUILDFORD BOROUGH COUNCIL,Renovations,1000554,Seville Developments,08/03/2022,30043468,716.03,0,Contractor Payments,,Invoice,BACS,No,31/01/2022 00:00,2021,12,5218,N40287,Electrical testing and smoke detectors,1233,Contractor Payments,,,,,,,,
GUILDFORD BOROUGH COUNCIL,Renovations,1000554,Seville Developments,08/03/2022,30043468,1072.3,0,Contractor Payments,,Invoice,BACS,No,31/01/2022 00:00,2021,12,5218,N40287,Electrical testing and smoke detectors,1233,Contractor Payments,,,,,,,,
GUILDFORD BOROUGH COUNCIL,Renovations,1000554,Seville Developments,08/03/2022,30043468,1445.13,0,Contractor Payments,,Invoice,BACS,No,31/01/2022 00:00,2021,12,5218,N40287,Electrical testing and smoke detectors,1233,Contractor Payments,,,,,,,,
GUILDFORD BOROUGH COUNCIL,Renovations,1000554,Seville Developments,08/03/2022,30043468,1096.06,0,Contractor Payments,,Invoice,BACS,No,31/01/2022 00:00,2021,12,5218,N40287,Electrical testing and smoke detectors,1233,Contractor Payments,,,,,,,,
GUILDFORD BOROUGH COUNCIL,Renovations,1000554,Seville Developments,08/03/2022,30043468,1245.73,0,Contractor Payments,,Invoice,BACS,No,31/01/2022 00:00,2021,12,5218,N40287,Electrical testing and smoke detectors,1233,Contractor Payments,,,,,,,,
GUILDFORD BOROUGH COUNCIL,Renovations,1000554,Seville Developments,08/03/2022,30043468,850.22,0,Contractor Payments,,Invoice,BACS,No,31/01/2022 00:00,2021,12,5218,N40287,Electrical testing and smoke detectors,1233,Contractor Payments,,,,,,,,
GUILDFORD BOROUGH COUNCIL,Renovations,1000554,Seville Developments,08/03/2022,30043468,956.91,0,Contractor Payments,,Invoice,BACS,No,31/01/2022 00:00,2021,12,5218,N40287,Electrical testing and smoke detectors,1233,Contractor Payments,,,,,,,,
GUILDFORD BOROUGH COUNCIL,Renovations,1000554,Seville Developments,08/03/2022,30043468,1201.66,0,Contractor Payments,,Invoice,BACS,No,31/01/2022 00:00,2021,12,5218,N40287,Electrical testing and smoke detectors,1233,Contractor Payments,,,,,,,,
GUILDFORD BOROUGH COUNCIL,Renovations,1000554,Seville Developments,08/03/2022,30043468,1467.39,0,Contractor Payments,,Invoice,BACS,No,31/01/2022 00:00,2021,12,5218,N40287,Electrical testing and smoke detectors,1233,Contractor Payments,,,,,,,,
GUILDFORD BOROUGH COUNCIL,Renovations,1000554,Seville Developments,08/03/2022,30043468,745.69,0,Contractor Payments,,Invoice,BACS,No,31/01/2022 00:00,2021,12,5218,N40287,Electrical testing and smoke detectors,1233,Contractor Payments,,,,,,,,
GUILDFORD BOROUGH COUNCIL,Renovations,1000554,Seville Developments,08/03/2022,30043468,985.99,0,Contractor Payments,,Invoice,BACS,No,31/01/2022 00:00,2021,12,5218,N40287,Electrical testing and smoke detectors,1233,Contractor Payments,,,,,,,,
GUILDFORD BOROUGH COUNCIL,Renovations,1000554,Seville Developments,08/03/2022,30043468,955.64,0,Contractor Payments,,Invoice,BACS,No,31/01/2022 00:00,2021,12,5218,N40287,Electrical testing and smoke detectors,1233,Contractor Payments,,,,,,,,
GUILDFORD BOROUGH COUNCIL,Renovations,1000554,Seville Developments,08/03/2022,30043468,1328.79,0,Contractor Payments,,Invoice,BACS,No,31/01/2022 00:00,2021,12,5218,N40287,Electrical testing and smoke detectors,1233,Contractor Payments,,,,,,,,
GUILDFORD BOROUGH COUNCIL,Renovations,1000554,Seville Developments,08/03/2022,30043468,1119.18,0,Contractor Payments,,Invoice,BACS,No,31/01/2022 00:00,2021,12,5218,N40287,Electrical testing and smoke detectors,1233,Contractor Payments,,,,,,,,
GUILDFORD BOROUGH COUNCIL,Renovations,1000554,Seville Developments,08/03/2022,30043468,1734.8,0,Contractor Payments,,Invoice,BACS,No,31/01/2022 00:00,2021,12,5218,N40287,Electrical testing and smoke detectors,1233,Contractor Payments,,,,,,,,
GUILDFORD BOROUGH COUNCIL,Renovations,1000554,Seville Developments,08/03/2022,30043468,1038.38,0,Contractor Payments,,Invoice,BACS,No,31/01/2022 00:00,2021,12,5218,N40287,Electrical testing and smoke detectors,1233,Contractor Payments,,,,,,,,
GUILDFORD BOROUGH COUNCIL,Renovations,1000554,Seville Developments,08/03/2022,30043468,929.96,0,Contractor Payments,,Invoice,BACS,No,31/01/2022 00:00,2021,12,5218,N40287,Electrical testing and smoke detectors,1233,Contractor Payments,,,,,,,,
GUILDFORD BOROUGH COUNCIL,Renovations,1000554,Seville Developments,08/03/2022,30043468,1261.58,0,Contractor Payments,,Invoice,BACS,No,31/01/2022 00:00,2021,12,5218,N40287,Electrical testing and smoke detectors,1233,Contractor Payments,,,,,,,,
GUILDFORD BOROUGH COUNCIL,Renovations,1000554,Seville Developments,08/03/2022,30043468,1044.1,0,Contractor Payments,,Invoice,BACS,No,31/01/2022 00:00,2021,12,5218,N40287,Electrical testing and smoke detectors,1233,Contractor Payments,,,,,,,,
GUILDFORD BOROUGH COUNCIL,Renovations,1000554,Seville Developments,08/03/2022,30043468,916.29,0,Contractor Payments,,Invoice,BACS,No,31/01/2022 00:00,2021,12,5218,N40287,Electrical testing and smoke detectors,1233,Contractor Payments,,,,,,,,
GUILDFORD BOROUGH COUNCIL,Renovations,1000554,Seville Developments,08/03/2022,30043468,915.89,0,Contractor Payments,,Invoice,BACS,No,31/01/2022 00:00,2021,12,5218,N40287,Electrical testing and smoke detectors,1233,Contractor Payments,,,,,,,,
GUILDFORD BOROUGH COUNCIL,Renovations,1000554,Seville Developments,08/03/2022,30043468,873.54,0,Contractor Payments,,Invoice,BACS,No,31/01/2022 00:00,2021,12,5218,N40287,Electrical testing and smoke detectors,1233,Contractor Payments,,,,,,,,
GUILDFORD BOROUGH COUNCIL,Renovations,1000554,Seville Developments,08/03/2022,30043468,1047.71,0,Contractor Payments,,Invoice,BACS,No,31/01/2022 00:00,2021,12,5218,N40287,Electrical testing and smoke detectors,1233,Contractor Payments,,,,,,,,
GUILDFORD BOROUGH COUNCIL,Renovations,1000554,Seville Developments,08/03/2022,30043468,1102.13,0,Contractor Payments,,Invoice,BACS,No,31/01/2022 00:00,2021,12,5218,N40287,Electrical testing and smoke detectors,1233,Contractor Payments,,,,,,,,
GUILDFORD BOROUGH COUNCIL,Renovations,1000554,Seville Developments,24/03/2022,30044888,10006.5,0,Contractor Payments,,Invoice,BACS,No,21/02/2022 00:00,2021,12,5265,N40287,Electrical testing and smoke detectors,1233,Contractor Payments,,,,,,,,
GUILDFORD BOROUGH COUNCIL,Renovations,1000554,Seville Developments,24/03/2022,30044890,5015,0,Contractor Payments,,Invoice,BACS,No,28/02/2022 00:00,2021,12,5272,N40287,Electrical testing and smoke detectors,1233,Contractor Payments,,,,,,,,
GUILDFORD BOROUGH COUNCIL,Miscellaneous Expenses,1000454,Lexicon School Ltd,10/03/2022,30041928,1500,0,Grants And Subscriptions,,Invoice,BACS,No,15/02/2022 00:00,2021,11,Household support fund,F7539,COVID-19,D9001,Grants And Subscriptions,,,,,,,,
GUILDFORD BOROUGH COUNCIL,Doors and Windows,1000455,Signature Home Improvements Limited,29/03/2022,30044770,5941,0,Contractor Payments,,Invoice,BACS,No,07/03/2022 00:00,2021,12,INV-1635,N45075,Replacement of windows and doors,1233,Contractor Payments,,,,,,,,
GUILDFORD BOROUGH COUNCIL,Doors and Windows,1000455,Signature Home Improvements Limited,29/03/2022,30044769,400,0,Contractor Payments,,Invoice,BACS,No,07/03/2022 00:00,2021,12,INV-1205,N45072,Replacement of windows 2020-21,1233,Contractor Payments,,,,,,,,
GUILDFORD BOROUGH COUNCIL,Doors and Windows,1000455,Signature Home Improvements Limited,29/03/2022,30044769,400,0,Contractor Payments,,Invoice,BACS,No,07/03/2022 00:00,2021,12,INV-1205,N45072,Replacement of windows 2020-21,1233,Contractor Payments,,,,,,,,
GUILDFORD BOROUGH COUNCIL,Doors and Windows,1000455,Signature Home Improvements Limited,29/03/2022,30044769,400,0,Contractor Payments,,Invoice,BACS,No,07/03/2022 00:00,2021,12,INV-1205,N45072,Replacement of windows 2020-21,1233,Contractor Payments,,,,,,,,
GUILDFORD BOROUGH COUNCIL,Doors and Windows,1000455,Signature Home Improvements Limited,29/03/2022,30044769,400,0,Contractor Payments,,Invoice,BACS,No,07/03/2022 00:00,2021,12,INV-1205,N45072,Replacement of windows 2020-21,1233,Contractor Payments,,,,,,,,
GUILDFORD BOROUGH COUNCIL,Doors and Windows,1000455,Signature Home Improvements Limited,29/03/2022,30044769,400,0,Contractor Payments,,Invoice,BACS,No,07/03/2022 00:00,2021,12,INV-1205,N45072,Replacement of windows 2020-21,1233,Contractor Payments,,,,,,,,
GUILDFORD BOROUGH COUNCIL,Revenue Balances,1000456,Birketts LLP,22/03/2022,30043192,650,0,OOE - G/L On Disp - Rev Inc,,Invoice,BACS,No,17/01/2022 00:00,2021,12,768044,V02005,Hra Net Revenue Account,2300,OOE - G/L On Disp - Rev Inc,,,,,,,,
GUILDFORD BOROUGH COUNCIL,Renovations,1000433,Stiltz Ltd,06/01/2022,30038104,11813,0,Contractor Payments,,Invoice,BACS,No,27/10/2021 00:00,2021,10,21498,N40295,Disabled adaptations,1233,Contractor Payments,,,,,,,,
GUILDFORD BOROUGH COUNCIL,Renovations,1000433,Stiltz Ltd,06/01/2022,30038104,1000,0,Contractor Payments,,Invoice,BACS,No,27/10/2021 00:00,2021,10,21498,N40295,Disabled adaptations,1233,Contractor Payments,,,,,,,,
GUILDFORD BOROUGH COUNCIL,Other Short Term Creditors,1000477,Liberty Adaptations Ltd,08/02/2022,30040092,1967.47,0,Payments,,Invoice,BACS,No,16/01/2022 00:00,2021,11,Liberty Adaptations PR0987763,L02088,Care & Repair Client Fund,2489,Payments,,,,,,,,
GUILDFORD BOROUGH COUNCIL,Miscellaneous Expenses,1000503,Roadware Ltd,29/03/2022,30044360,859.4,0,Materials,,Invoice,BACS,No,18/03/2022 00:00,2021,12,8623,F7539,COVID-19,D2003,Materials,,,,,,,,
GUILDFORD BOROUGH COUNCIL,Spectrum,1000507,Bill Kear Plant & Agricultural Cont. Ltd (CIS),15/02/2022,30040958,16460.12,0,Contractor Payments,,Invoice,BACS,No,08/02/2022 00:00,2021,11,INV-1045,P22066,Spectrum Retaining Wall,1233,Contractor Payments,,,,,,,,
GUILDFORD BOROUGH COUNCIL,Spectrum,1000507,Bill Kear Plant & Agricultural Cont. Ltd (CIS),18/01/2022,30037551,68893.4,0,Contractor Payments,,Invoice,BACS,No,21/12/2021 00:00,2021,10,INV-0992,P22066,Spectrum Retaining Wall,1233,Contractor Payments,,,,,,,,
GUILDFORD BOROUGH COUNCIL,Other Short Term Creditors,1000531,Vistar Construction Ltd,15/02/2022,30041178,1174.5,0,Payments,,Invoice,BACS,No,22/01/2022 00:00,2021,11,4577 re 44 Homestall,L02088,Care & Repair Client Fund,2489,Payments,,,,,,,,
GUILDFORD BOROUGH COUNCIL,Other Short Term Creditors,1000568,Adaptec Mobility,18/01/2022,30038486,1830,0,Payments,,Invoice,BACS,No,01/12/2021 00:00,2021,10,INV-0386,L02088,Care & Repair Client Fund,2489,Payments,,,,,,,,
GUILDFORD BOROUGH COUNCIL,Miscellaneous Expenses,1000593,Safeplay Playground Services Ltd (non-CIS),29/03/2022,30044293,540,0,Materials,,Invoice,BACS,No,18/03/2022 00:00,2021,12,20623,F7539,COVID-19,D2003,Materials,,,,,,,,
GUILDFORD BOROUGH COUNCIL,Renovations,1000608,Frankham Risk Management Services Limited NON CIS,24/03/2022,30044882,3390,0,Contractor Payments,,Invoice,BACS,No,25/01/2022 00:00,2021,12,16242,N40294,Condition Appraisal works 2021/22,1233,Contractor Payments,,,,,,,,
GUILDFORD BOROUGH COUNCIL,Renovations,1000608,Frankham Risk Management Services Limited NON CIS,24/03/2022,30044881,1835,0,Contractor Payments,,Invoice,BACS,No,31/12/2021 00:00,2021,12,16180,N40294,Condition Appraisal works 2021/22,1233,Contractor Payments,,,,,,,,
GUILDFORD BOROUGH COUNCIL,Renovations,1000608,Frankham Risk Management Services Limited NON CIS,24/03/2022,30044883,3249,0,Contractor Payments,,Invoice,BACS,No,26/01/2022 00:00,2021,12,16253,N40294,Condition Appraisal works 2021/22,1233,Contractor Payments,,,,,,,,
GUILDFORD BOROUGH COUNCIL,Renovations,1000608,Frankham Risk Management Services Limited NON CIS,18/01/2022,30038879,9960,0,Contractor Payments,,Invoice,BACS,No,17/12/2021 00:00,2021,10,16094,N40294,Condition Appraisal works 2021/22,1233,Contractor Payments,,,,,,,,
GUILDFORD BOROUGH COUNCIL,Renovations,1000608,Frankham Risk Management Services Limited NON CIS,18/01/2022,30038877,5755,0,Contractor Payments,,Invoice,BACS,No,30/11/2021 00:00,2021,10,16004,N40294,Condition Appraisal works 2021/22,1233,Contractor Payments,,,,,,,,
GUILDFORD BOROUGH COUNCIL,Renovations,1000608,Frankham Risk Management Services Limited NON CIS,18/01/2022,30038878,2030,0,Contractor Payments,,Invoice,BACS,No,30/11/2021 00:00,2021,10,16005,N40294,Condition Appraisal works 2021/22,1233,Contractor Payments,,,,,,,,
GUILDFORD BOROUGH COUNCIL,Renovations,1000608,Frankham Risk Management Services Limited NON CIS,18/01/2022,30038880,1949,0,Contractor Payments,,Invoice,BACS,No,22/12/2021 00:00,2021,10,16165,N40294,Condition Appraisal works 2021/22,1233,Contractor Payments,,,,,,,,
GUILDFORD BOROUGH COUNCIL,Miscellaneous Expenses,1000615,Odin Events Limited,11/01/2022,30038315,5600,0,Events,,Invoice,BACS,No,20/12/2021 00:00,2021,10,INV-2144,F7539,COVID-19,D8006,Events,,,,,,,,
GUILDFORD BOROUGH COUNCIL,Miscellaneous Expenses,1000615,Odin Events Limited,11/01/2022,30037216,9000,0,Events,,Invoice,BACS,No,17/12/2021 00:00,2021,10,INV-2093,F7539,COVID-19,D8006,Events,,,,,,,,
GUILDFORD BOROUGH COUNCIL,Miscellaneous Expenses,1000623,Container Team Ltd,22/02/2022,30039879,2247,0,Services,,Invoice,BACS,No,27/01/2022 00:00,2021,10,22812,F7539,COVID-19,D6004,Services,,,,,,,,
GUILDFORD BOROUGH COUNCIL,Miscellaneous Expenses,1000623,Container Team Ltd,24/02/2022,30040295,576.33,0,Services,,Invoice,BACS,No,01/02/2022 00:00,2021,11,22864,F7539,COVID-19,D6004,Services,,,,,,,,
GUILDFORD BOROUGH COUNCIL,Miscellaneous Expenses,1000623,Container Team Ltd,24/03/2022,30043085,576.33,0,Services,,Invoice,BACS,No,01/03/2022 00:00,2021,12,24047,F7539,COVID-19,D6004,Services,,,,,,,,
GUILDFORD BOROUGH COUNCIL,Miscellaneous Expenses,1000624,Shalford.Life CIC  (Community Interest Company),18/01/2022,30038398,5000,0,Hire,,Invoice,BACS,No,22/12/2021 00:00,2021,10,Shalford Life CIC Welcome Back Grant invoice,F7539,COVID-19,D1001,Hire,,,,,,,,
GUILDFORD BOROUGH COUNCIL,Acquisition of Land and Buildings,1000649,Brookworth Homes (Holdings) Limited,10/02/2022,30040917,47018.52,0,Property Purchase-Price,,Invoice,BACS,No,11/01/2022 00:00,2021,11,219003,N10026,20 The Street,1566,Property Purchase-Price,,,,,,,,
GUILDFORD BOROUGH COUNCIL,Acquisition of Land and Buildings,1000649,Brookworth Homes (Holdings) Limited,31/03/2022,30045395,23467.5,0,Property Purchase-Price,,Invoice,BACS,No,01/03/2022 00:00,2021,12,219004,N10026,20 The Street,1566,Property Purchase-Price,,,,,,,,
GUILDFORD BOROUGH COUNCIL,New Build,1000653,V4 Services Ltd,24/03/2022,30043339,686.25,0,Consultants Fees,,Invoice,BACS,No,28/02/2022 00:00,2021,12,INVOICETO,N30031,Rapleys Field,1221,Consultants Fees,,,,,,,,
GUILDFORD BOROUGH COUNCIL,New Build,1000653,V4 Services Ltd,24/03/2022,30043339,907.5,0,Consultants Fees,,Invoice,BACS,No,28/02/2022 00:00,2021,12,INVOICETO,N30030,Clover Road Garages,1221,Consultants Fees,,,,,,,,
GUILDFORD BOROUGH COUNCIL,Inventories,100300,British Polythene Industries Ltd T/A RPC BPI Refuse,29/03/2022,30044719,4922.74,0,Purchases,Recycling Service Providers,Invoice,BACS,No,08/03/2022 00:00,2021,12,INR628254,I01001,Stocks,2591,Purchases,,,,,,,,
GUILDFORD BOROUGH COUNCIL,Inventories,100300,British Polythene Industries Ltd T/A RPC BPI Refuse,24/02/2022,30042596,594,0,Purchases,Recycling Service Providers,Invoice,BACS,No,04/02/2022 00:00,2021,11,INR625683,I01001,Stocks,2591,Purchases,,,,,,,,
GUILDFORD BOROUGH COUNCIL,Inventories,100300,British Polythene Industries Ltd T/A RPC BPI Refuse,22/03/2022,30043361,6645.24,0,Purchases,Recycling Service Providers,Invoice,BACS,No,23/02/2022 00:00,2021,12,INR627233,I01001,Stocks,2591,Purchases,,,,,,,,
GUILDFORD BOROUGH COUNCIL,Telephony Holding Account (Service),105900,British Telecom (Durham),31/03/2022,30045396,8760.33,0,Telephones & Broadband,Fixed Telecoms Service Providers,Invoice,BACS,No,23/03/2022 00:00,2021,12,M263SJ,G1151,Telephony Holding Account,D7004,Telephones & Broadband,,,,,,,,
GUILDFORD BOROUGH COUNCIL,Telephony Holding Account (Service),105900,British Telecom (Durham),22/02/2022,30042166,8835.64,0,Telephones & Broadband,Fixed Telecoms Service Providers,Invoice,BACS,No,23/10/2021 00:00,2021,11,M2586A,G1151,Telephony Holding Account,D7004,Telephones & Broadband,,,,,,,,
GUILDFORD BOROUGH COUNCIL,Telephony Holding Account (Service),105900,British Telecom (Durham),29/03/2022,30043343,9108.08,0,Telephones & Broadband,Fixed Telecoms Service Providers,Invoice,BACS,No,23/01/2022 00:00,2021,12,VP557041702611,G1151,Telephony Holding Account,D7004,Telephones & Broadband,,,,,,,,
GUILDFORD BOROUGH COUNCIL,Telephony Holding Account (Service),105900,British Telecom (Durham),20/01/2022,30038906,8815.65,0,Telephones & Broadband,Fixed Telecoms Service Providers,Invoice,BACS,No,23/12/2021 00:00,2021,10,VP557041702601,G1151,Telephony Holding Account,D7004,Telephones & Broadband,,,,,,,,
GUILDFORD BOROUGH COUNCIL,Telephony Holding Account (Service),105900,British Telecom (Durham),01/02/2022,30039801,491.05,0,Telephones & Broadband,Fixed Telecoms Service Providers,Invoice,BACS,No,11/01/2022 00:00,2021,10,Q0101L,G1151,Telephony Holding Account,D7004,Telephones & Broadband,,,,,,,,
GUILDFORD BOROUGH COUNCIL,Inventories,127400,Chambers Runfold Plc,24/03/2022,30044700,299.18,0,Purchases,Quarry And Aggregates Suppliers,Invoice,BACS,No,16/02/2022 00:00,2021,12,193140,I01001,Stocks,2591,Purchases,,,,,,,,
GUILDFORD BOROUGH COUNCIL,Property,129090,Breyer Group Plc,15/03/2022,30043603,21871.89,0,Contractor Payments,General Builders,Invoice,BACS,No,09/03/2022 00:00,2021,12,53742,P74064,The Billings Roof,1233,Contractor Payments,,,,,,,,
GUILDFORD BOROUGH COUNCIL,Modern Homes,129090,Breyer Group Plc,01/03/2022,30042906,30545.34,0,Contractor Payments,General Builders,Invoice,BACS,No,28/01/2022 00:00,2021,12,53392,N42069,Void Properties - refurbishment,1233,Contractor Payments,,,,,,,,
GUILDFORD BOROUGH COUNCIL,Heating,129090,Breyer Group Plc,01/03/2022,30042907,10000,0,Contractor Payments,General Builders,Invoice,BACS,No,01/01/2022 00:00,2021,12,53499,N44074,External wall insulation system to solid wall properties 2021/22,1233,Contractor Payments,,,,,,,,
GUILDFORD BOROUGH COUNCIL,Heating,129090,Breyer Group Plc,01/03/2022,30042908,10000,0,Contractor Payments,General Builders,Invoice,BACS,No,08/02/2022 00:00,2021,12,53500,N44074,External wall insulation system to solid wall properties 2021/22,1233,Contractor Payments,,,,,,,,
GUILDFORD BOROUGH COUNCIL,Heating,129090,Breyer Group Plc,01/03/2022,30042909,10000,0,Contractor Payments,General Builders,Invoice,BACS,No,01/01/2022 00:00,2021,12,53501,N44074,External wall insulation system to solid wall properties 2021/22,1233,Contractor Payments,,,,,,,,
GUILDFORD BOROUGH COUNCIL,Heating,129090,Breyer Group Plc,01/03/2022,30042910,10000,0,Contractor Payments,General Builders,Invoice,BACS,No,01/01/2022 00:00,2021,12,53502,N44074,External wall insulation system to solid wall properties 2021/22,1233,Contractor Payments,,,,,,,,
GUILDFORD BOROUGH COUNCIL,Heating,129090,Breyer Group Plc,01/03/2022,30042911,10000,0,Contractor Payments,General Builders,Invoice,BACS,No,01/01/2022 00:00,2021,12,53503,N44074,External wall insulation system to solid wall properties 2021/22,1233,Contractor Payments,,,,,,,,
GUILDFORD BOROUGH COUNCIL,Modern Homes,129090,Breyer Group Plc,01/03/2022,30042912,1650,0,Contractor Payments,General Builders,Invoice,BACS,No,11/02/2022 00:00,2021,12,53513,N42069,Void Properties - refurbishment,1233,Contractor Payments,,,,,,,,
GUILDFORD BOROUGH COUNCIL,Doors and Windows,129090,Breyer Group Plc,01/03/2022,30042913,758,0,Contractor Payments,General Builders,Invoice,BACS,No,11/02/2022 00:00,2021,12,53517,N45072,Replacement of windows 2020-21,1233,Contractor Payments,,,,,,,,
GUILDFORD BOROUGH COUNCIL,Heating,129090,Breyer Group Plc,08/03/2022,30043228,2264.46,0,Contractor Payments,General Builders,Invoice,BACS,No,22/02/2022 00:00,2021,12,53582,N44074,External wall insulation system to solid wall properties 2021/22,1233,Contractor Payments,,,,,,,,
GUILDFORD BOROUGH COUNCIL,Modern Homes,129090,Breyer Group Plc,08/03/2022,30043229,13594.35,0,Contractor Payments,General Builders,Invoice,BACS,No,23/02/2022 00:00,2021,12,53590,N42069,Void Properties - refurbishment,1233,Contractor Payments,,,,,,,,
GUILDFORD BOROUGH COUNCIL,Modern Homes,129090,Breyer Group Plc,08/03/2022,30043230,15618.63,0,Contractor Payments,General Builders,Invoice,BACS,No,23/02/2022 00:00,2021,12,53591,N42068,"Kitchen, bathroom and electrical upgrades",1233,Contractor Payments,,,,,,,,
GUILDFORD BOROUGH COUNCIL,Modern Homes,129090,Breyer Group Plc,08/03/2022,30043230,16773.36,0,Contractor Payments,General Builders,Invoice,BACS,No,23/02/2022 00:00,2021,12,53591,N42069,Void Properties - refurbishment,1233,Contractor Payments,,,,,,,,
GUILDFORD BOROUGH COUNCIL,Modern Homes,129090,Breyer Group Plc,08/03/2022,30043449,17500,0,Contractor Payments,General Builders,Invoice,BACS,No,31/01/2022 00:00,2021,12,53413,N42068,"Kitchen, bathroom and electrical upgrades",1233,Contractor Payments,,,,,,,,
GUILDFORD BOROUGH COUNCIL,Modern Homes,129090,Breyer Group Plc,08/03/2022,30043450,2000,0,Contractor Payments,General Builders,Invoice,BACS,No,17/02/2022 00:00,2021,12,53553,N48057,Structural works - various properties,1233,Contractor Payments,,,,,,,,
GUILDFORD BOROUGH COUNCIL,Modern Homes,129090,Breyer Group Plc,08/03/2022,30043451,1341.76,0,Contractor Payments,General Builders,Invoice,BACS,No,21/02/2022 00:00,2021,12,53580,N42069,Void Properties - refurbishment,1233,Contractor Payments,,,,,,,,
GUILDFORD BOROUGH COUNCIL,Modern Homes,129090,Breyer Group Plc,08/03/2022,30043452,20000,0,Contractor Payments,General Builders,Invoice,BACS,No,31/01/2022 00:00,2021,12,534114,N42069,Void Properties - refurbishment,1233,Contractor Payments,,,,,,,,
